Service Area,Service Division,Expense Type,Expense Code,Detailed Expense Type,Payment Date,Transaction Number,Amount Exc Vat,Supplier Name
Adult and Health Services,Public Health,Third Party Payments,460802,Contract Payments,01-Nov-16,3200149-N0007647,508.53,CHELSEA & WESTMINSTER NHSFT.
Adult and Health Services,Head of Adults,Supplies and Services,304403,Equipment and Materials,01-Nov-16,3200163-4100554083,"1,785.00",DAG SL.
Adult and Health Services,Head of Adults,Third Party Payments,470101,Purchase of Care,01-Nov-16,3200236-28056,"72,801.55",PERCY HEDLEY FOUNDATION.
Adult and Health Services,Commissioning inc Supporting People,Third Party Payments,479111,Purchase of Care,01-Nov-16,3200237-14698/17,"49,225.00",PIONEERING CARE PARTNERSHIP.
Adult and Health Services,Head of Adults,Third Party Payments,478151,Purchase of Care,01-Nov-16,3200243-SI/00009756,"15,747.55",RICHMOND FELLOWSHIP.
Adult and Health Services,Head of Adults,Third Party Payments,478151,Purchase of Care,01-Nov-16,3200243-SI/00009757,"14,637.15",RICHMOND FELLOWSHIP.
Adult and Health Services,Head of Adults,Third Party Payments,478151,Purchase of Care,01-Nov-16,3200243-SI/00010452,"4,461.60",RICHMOND FELLOWSHIP.
Adult and Health Services,Head of Adults,Third Party Payments,470101,Purchase of Care,01-Nov-16,3200287-2341600,"6,031.16",3 RED ADMIRAL COURT.
Adult and Health Services,Head of Adults,Third Party Payments,470101,Purchase of Care,01-Nov-16,3200288-2341993,"6,397.60",368 THE RIDGE.
Adult and Health Services,Head of Adults,Third Party Payments,470101,Purchase of Care,01-Nov-16,3200289-2339331,"2,059.56",A CHARLES THOMAS (CARE) LTD.
Adult and Health Services,Head of Adults,Third Party Payments,470101,Purchase of Care,01-Nov-16,3200289-2339332,"2,059.56",A CHARLES THOMAS (CARE) LTD.
Adult and Health Services,Head of Adults,Third Party Payments,470101,Purchase of Care,01-Nov-16,3200289-2339334,"2,059.56",A CHARLES THOMAS (CARE) LTD.
Adult and Health Services,Head of Adults,Third Party Payments,470101,Purchase of Care,01-Nov-16,3200289-2339336,"2,059.56",A CHARLES THOMAS (CARE) LTD.
Adult and Health Services,Head of Adults,Third Party Payments,470101,Purchase of Care,01-Nov-16,3200289-2339337,"2,059.56",A CHARLES THOMAS (CARE) LTD.
Adult and Health Services,Head of Adults,Third Party Payments,470101,Purchase of Care,01-Nov-16,3200289-2339338,"2,059.56",A CHARLES THOMAS (CARE) LTD.
Adult and Health Services,Head of Adults,Third Party Payments,470101,Purchase of Care,01-Nov-16,3200289-2339339,"2,059.56",A CHARLES THOMAS (CARE) LTD.
Adult and Health Services,Head of Adults,Third Party Payments,470101,Purchase of Care,01-Nov-16,3200289-2339340,"2,059.56",A CHARLES THOMAS (CARE) LTD.
Adult and Health Services,Head of Adults,Third Party Payments,470101,Purchase of Care,01-Nov-16,3200289-2339341,"2,059.56",A CHARLES THOMAS (CARE) LTD.
Adult and Health Services,Head of Adults,Third Party Payments,470101,Purchase of Care,01-Nov-16,3200289-2339342,"6,031.56",A CHARLES THOMAS (CARE) LTD.
Adult and Health Services,Head of Adults,Third Party Payments,470101,Purchase of Care,01-Nov-16,3200289-2339343,"2,059.56",A CHARLES THOMAS (CARE) LTD.
Adult and Health Services,Head of Adults,Third Party Payments,470101,Purchase of Care,01-Nov-16,3200289-2339344,"2,059.56",A CHARLES THOMAS (CARE) LTD.
Adult and Health Services,Head of Adults,Third Party Payments,470101,Purchase of Care,01-Nov-16,3200289-2339345,"2,059.56",A CHARLES THOMAS (CARE) LTD.
Adult and Health Services,Head of Adults,Third Party Payments,470101,Purchase of Care,01-Nov-16,3200289-2339346,"2,059.56",A CHARLES THOMAS (CARE) LTD.
Adult and Health Services,Head of Adults,Third Party Payments,470101,Purchase of Care,01-Nov-16,3200289-2339347,"2,059.56",A CHARLES THOMAS (CARE) LTD.
Adult and Health Services,Head of Adults,Third Party Payments,470101,Purchase of Care,01-Nov-16,3200289-2339348,"1,618.22",A CHARLES THOMAS (CARE) LTD.
Adult and Health Services,Head of Adults,Third Party Payments,470101,Purchase of Care,01-Nov-16,3200289-2339349,"2,059.56",A CHARLES THOMAS (CARE) LTD.
Adult and Health Services,Head of Adults,Third Party Payments,470101,Purchase of Care,01-Nov-16,3200289-2339350,"2,059.56",A CHARLES THOMAS (CARE) LTD.
Adult and Health Services,Head of Adults,Third Party Payments,470101,Purchase of Care,01-Nov-16,3200289-2339351,"2,059.56",A CHARLES THOMAS (CARE) LTD.
Adult and Health Services,Head of Adults,Third Party Payments,470101,Purchase of Care,01-Nov-16,3200289-2343080,"2,309.64",A CHARLES THOMAS (CARE) LTD.
Adult and Health Services,Head of Adults,Third Party Payments,474101,Purchase of Care,01-Nov-16,3200290-2340905,"2,848.00",ABBEYMOOR CLINIC.
Adult and Health Services,Head of Adults,Third Party Payments,470101,Purchase of Care,01-Nov-16,3200290-2340906,"2,000.00",ABBEYMOOR CLINIC.
Adult and Health Services,Head of Adults,Third Party Payments,470101,Purchase of Care,01-Nov-16,3200290-2340907,"2,100.00",ABBEYMOOR CLINIC.
Adult and Health Services,Head of Adults,Third Party Payments,474101,Purchase of Care,01-Nov-16,3200290-2340908,"2,447.40",ABBEYMOOR CLINIC.
Adult and Health Services,Head of Adults,Third Party Payments,474101,Purchase of Care,01-Nov-16,3200290-2340909,"1,322.28",ABBEYMOOR CLINIC.
Adult and Health Services,Head of Adults,Third Party Payments,474101,Purchase of Care,01-Nov-16,3200290-2340910,"2,848.00",ABBEYMOOR CLINIC.
Adult and Health Services,Head of Adults,Third Party Payments,474101,Purchase of Care,01-Nov-16,3200290-2340911,"2,303.28",ABBEYMOOR CLINIC.
Adult and Health Services,Head of Adults,Third Party Payments,471101,Purchase of Care,01-Nov-16,3200291-2342046,"2,026.40",ABBEYVALE CARE CENTRE.
Adult and Health Services,Head of Adults,Third Party Payments,470101,Purchase of Care,01-Nov-16,3200291-2342047,"1,949.24",ABBEYVALE CARE CENTRE.
Adult and Health Services,Head of Adults,Third Party Payments,470101,Purchase of Care,01-Nov-16,3200291-2342049,"1,949.24",ABBEYVALE CARE CENTRE.
Adult and Health Services,Head of Adults,Third Party Payments,471101,Purchase of Care,01-Nov-16,3200291-2342050,"2,026.40",ABBEYVALE CARE CENTRE.
Adult and Health Services,Head of Adults,Third Party Payments,470101,Purchase of Care,01-Nov-16,3200291-2342052,"1,949.24",ABBEYVALE CARE CENTRE.
Adult and Health Services,Head of Adults,Third Party Payments,471101,Purchase of Care,01-Nov-16,3200291-2342053,"1,447.42",ABBEYVALE CARE CENTRE.
Adult and Health Services,Head of Adults,Third Party Payments,471101,Purchase of Care,01-Nov-16,3200291-2342054,578.97,ABBEYVALE CARE CENTRE.
Adult and Health Services,Head of Adults,Third Party Payments,471101,Purchase of Care,01-Nov-16,3200291-2342055,"2,026.40",ABBEYVALE CARE CENTRE.
Adult and Health Services,Head of Adults,Third Party Payments,470101,Purchase of Care,01-Nov-16,3200291-2342056,"1,949.24",ABBEYVALE CARE CENTRE.
Adult and Health Services,Head of Adults,Third Party Payments,470101,Purchase of Care,01-Nov-16,3200291-2342057,"1,949.24",ABBEYVALE CARE CENTRE.
Adult and Health Services,Head of Adults,Third Party Payments,471101,Purchase of Care,01-Nov-16,3200291-2342058,"2,026.40",ABBEYVALE CARE CENTRE.
Adult and Health Services,Head of Adults,Third Party Payments,470101,Purchase of Care,01-Nov-16,3200291-2342059,"1,949.24",ABBEYVALE CARE CENTRE.
Adult and Health Services,Head of Adults,Third Party Payments,470101,Purchase of Care,01-Nov-16,3200291-2342060,"1,949.24",ABBEYVALE CARE CENTRE.
Adult and Health Services,Head of Adults,Third Party Payments,470101,Purchase of Care,01-Nov-16,3200291-2342061,"1,949.24",ABBEYVALE CARE CENTRE.
Adult and Health Services,Head of Adults,Third Party Payments,471101,Purchase of Care,01-Nov-16,3200291-2342062,"2,026.40",ABBEYVALE CARE CENTRE.
Adult and Health Services,Head of Adults,Third Party Payments,470101,Purchase of Care,01-Nov-16,3200291-2342063,"1,183.46",ABBEYVALE CARE CENTRE.
Adult and Health Services,Head of Adults,Third Party Payments,470101,Purchase of Care,01-Nov-16,3200291-2342064,"1,390.00",ABBEYVALE CARE CENTRE.
Adult and Health Services,Head of Adults,Third Party Payments,470101,Purchase of Care,01-Nov-16,3200291-2342065,"1,949.24",ABBEYVALE CARE CENTRE.
Adult and Health Services,Head of Adults,Third Party Payments,471101,Purchase of Care,01-Nov-16,3200291-2342066,"2,026.40",ABBEYVALE CARE CENTRE.
Adult and Health Services,Head of Adults,Third Party Payments,471101,Purchase of Care,01-Nov-16,3200291-2342067,"1,013.20",ABBEYVALE CARE CENTRE.
Adult and Health Services,Head of Adults,Third Party Payments,470101,Purchase of Care,01-Nov-16,3200291-2342068,"2,500.00",ABBEYVALE CARE CENTRE.
Adult and Health Services,Head of Adults,Third Party Payments,470101,Purchase of Care,01-Nov-16,3200291-2342069,"1,392.31",ABBEYVALE CARE CENTRE.
Adult and Health Services,Head of Adults,Third Party Payments,470101,Purchase of Care,01-Nov-16,3200291-2342070,"1,949.24",ABBEYVALE CARE CENTRE.
Adult and Health Services,Head of Adults,Third Party Payments,471101,Purchase of Care,01-Nov-16,3200291-2342071,"2,026.40",ABBEYVALE CARE CENTRE.
Adult and Health Services,Head of Adults,Third Party Payments,471101,Purchase of Care,01-Nov-16,3200291-2342072,"2,026.40",ABBEYVALE CARE CENTRE.
Adult and Health Services,Head of Adults,Third Party Payments,471101,Purchase of Care,01-Nov-16,3200291-2342073,"2,539.28",ABBEYVALE CARE CENTRE.
Adult and Health Services,Head of Adults,Third Party Payments,470101,Purchase of Care,01-Nov-16,3200291-2342074,"1,949.24",ABBEYVALE CARE CENTRE.
Adult and Health Services,Head of Adults,Third Party Payments,470101,Purchase of Care,01-Nov-16,3200291-2342075,"1,949.24",ABBEYVALE CARE CENTRE.
Adult and Health Services,Head of Adults,Third Party Payments,470101,Purchase of Care,01-Nov-16,3200291-2342076,"2,500.00",ABBEYVALE CARE CENTRE.
Adult and Health Services,Head of Adults,Third Party Payments,470101,Purchase of Care,01-Nov-16,3200291-2342077,"1,949.24",ABBEYVALE CARE CENTRE.
Adult and Health Services,Head of Adults,Third Party Payments,470101,Purchase of Care,01-Nov-16,3200291-2343614,"1,531.54",ABBEYVALE CARE CENTRE.
Adult and Health Services,Head of Adults,Third Party Payments,470101,Purchase of Care,01-Nov-16,3200292-2342717,"1,948.04",ACOMB COURT.
Adult and Health Services,Head of Adults,Third Party Payments,471101,Purchase of Care,01-Nov-16,3200293-2339907,"2,026.40",ACORN GRANGE NURSING HOME.
Adult and Health Services,Head of Adults,Third Party Payments,471101,Purchase of Care,01-Nov-16,3200293-2339908,"2,026.40",ACORN GRANGE NURSING HOME.
Adult and Health Services,Head of Adults,Third Party Payments,470101,Purchase of Care,01-Nov-16,3200293-2339909,"1,949.24",ACORN GRANGE NURSING HOME.
Adult and Health Services,Head of Adults,Third Party Payments,470101,Purchase of Care,01-Nov-16,3200293-2339910,"1,949.24",ACORN GRANGE NURSING HOME.
Adult and Health Services,Head of Adults,Third Party Payments,471101,Purchase of Care,01-Nov-16,3200293-2339911,"2,026.40",ACORN GRANGE NURSING HOME.
Adult and Health Services,Head of Adults,Third Party Payments,470101,Purchase of Care,01-Nov-16,3200293-2339912,"1,949.24",ACORN GRANGE NURSING HOME.
Adult and Health Services,Head of Adults,Third Party Payments,471101,Purchase of Care,01-Nov-16,3200293-2339915,"1,013.20",ACORN GRANGE NURSING HOME.
Adult and Health Services,Head of Adults,Third Party Payments,471101,Purchase of Care,01-Nov-16,3200293-2339917,"2,026.40",ACORN GRANGE NURSING HOME.
Adult and Health Services,Head of Adults,Third Party Payments,470101,Purchase of Care,01-Nov-16,3200293-2339918,"1,949.24",ACORN GRANGE NURSING HOME.
Adult and Health Services,Head of Adults,Third Party Payments,470101,Purchase of Care,01-Nov-16,3200293-2339921,"1,949.24",ACORN GRANGE NURSING HOME.
Adult and Health Services,Head of Adults,Third Party Payments,471101,Purchase of Care,01-Nov-16,3200293-2339922,"2,026.40",ACORN GRANGE NURSING HOME.
Adult and Health Services,Head of Adults,Third Party Payments,471101,Purchase of Care,01-Nov-16,3200293-2339923,"2,026.40",ACORN GRANGE NURSING HOME.
Adult and Health Services,Head of Adults,Third Party Payments,470101,Purchase of Care,01-Nov-16,3200293-2339924,"1,740.39",ACORN GRANGE NURSING HOME.
Adult and Health Services,Head of Adults,Third Party Payments,471101,Purchase of Care,01-Nov-16,3200293-2339925,"2,026.40",ACORN GRANGE NURSING HOME.
Adult and Health Services,Head of Adults,Third Party Payments,470101,Purchase of Care,01-Nov-16,3200293-2339926,"1,949.24",ACORN GRANGE NURSING HOME.
Adult and Health Services,Head of Adults,Third Party Payments,471101,Purchase of Care,01-Nov-16,3200293-2339927,"1,013.20",ACORN GRANGE NURSING HOME.
Adult and Health Services,Head of Adults,Third Party Payments,471101,Purchase of Care,01-Nov-16,3200293-2339928,"2,026.40",ACORN GRANGE NURSING HOME.
Adult and Health Services,Head of Adults,Third Party Payments,470101,Purchase of Care,01-Nov-16,3200293-2339929,"1,949.24",ACORN GRANGE NURSING HOME.
Adult and Health Services,Head of Adults,Third Party Payments,471101,Purchase of Care,01-Nov-16,3200293-2339930,"2,026.40",ACORN GRANGE NURSING HOME.
Adult and Health Services,Head of Adults,Third Party Payments,471101,Purchase of Care,01-Nov-16,3200293-2339931,"2,026.40",ACORN GRANGE NURSING HOME.
Adult and Health Services,Head of Adults,Third Party Payments,471101,Purchase of Care,01-Nov-16,3200293-2339932,"2,026.40",ACORN GRANGE NURSING HOME.
Adult and Health Services,Head of Adults,Third Party Payments,470101,Purchase of Care,01-Nov-16,3200293-2339933,"1,949.24",ACORN GRANGE NURSING HOME.
Adult and Health Services,Head of Adults,Third Party Payments,471101,Purchase of Care,01-Nov-16,3200293-2339934,"2,026.40",ACORN GRANGE NURSING HOME.
Adult and Health Services,Head of Adults,Third Party Payments,471101,Purchase of Care,01-Nov-16,3200293-2339935,"2,026.40",ACORN GRANGE NURSING HOME.
Adult and Health Services,Head of Adults,Third Party Payments,471101,Purchase of Care,01-Nov-16,3200293-2339936,"2,026.40",ACORN GRANGE NURSING HOME.
Adult and Health Services,Head of Adults,Third Party Payments,470101,Purchase of Care,01-Nov-16,3200293-2339937,"1,949.24",ACORN GRANGE NURSING HOME.
Adult and Health Services,Head of Adults,Third Party Payments,470101,Purchase of Care,01-Nov-16,3200293-2339938,"1,949.24",ACORN GRANGE NURSING HOME.
Adult and Health Services,Head of Adults,Third Party Payments,471101,Purchase of Care,01-Nov-16,3200293-2339939,"2,026.40",ACORN GRANGE NURSING HOME.
Adult and Health Services,Head of Adults,Third Party Payments,471101,Purchase of Care,01-Nov-16,3200293-2339940,"2,026.40",ACORN GRANGE NURSING HOME.
Adult and Health Services,Head of Adults,Third Party Payments,471101,Purchase of Care,01-Nov-16,3200293-2339941,"2,026.40",ACORN GRANGE NURSING HOME.
Adult and Health Services,Head of Adults,Third Party Payments,470101,Purchase of Care,01-Nov-16,3200293-2339942,"1,949.24",ACORN GRANGE NURSING HOME.
Adult and Health Services,Head of Adults,Third Party Payments,470101,Purchase of Care,01-Nov-16,3200293-2343079,974.62,ACORN GRANGE NURSING HOME.
Adult and Health Services,Head of Adults,Third Party Payments,471101,Purchase of Care,01-Nov-16,3200293-2343444,578.96,ACORN GRANGE NURSING HOME.
Adult and Health Services,Head of Adults,Third Party Payments,471101,Purchase of Care,01-Nov-16,3200294-2342830,"1,892.00",AILWYN HALL RESIDENTIAL CARE HOME.
Adult and Health Services,Head of Adults,Third Party Payments,474101,Purchase of Care,01-Nov-16,3200295-2333171,"6,304.00",ALDBOURNE NURSING HOME.
Adult and Health Services,Head of Adults,Third Party Payments,474101,Purchase of Care,01-Nov-16,3200295-2342894,"3,152.00",ALDBOURNE NURSING HOME.
Adult and Health Services,Head of Adults,Third Party Payments,470101,Purchase of Care,01-Nov-16,3200296-2340505,"2,059.56",ALLIANCE CARE.
Adult and Health Services,Head of Adults,Third Party Payments,471101,Purchase of Care,01-Nov-16,3200296-2340506,"1,067.80",ALLIANCE CARE.
Adult and Health Services,Head of Adults,Third Party Payments,470101,Purchase of Care,01-Nov-16,3200296-2340507,"1,536.76",ALLIANCE CARE.
Adult and Health Services,Head of Adults,Third Party Payments,470101,Purchase of Care,01-Nov-16,3200296-2340508,"1,366.32",ALLIANCE CARE.
Adult and Health Services,Head of Adults,Third Party Payments,474101,Purchase of Care,01-Nov-16,3200296-2340511,"1,634.16",ALLIANCE CARE.
Adult and Health Services,Central/Other,Debtors,930024,Debtor-free nursing care,01-Nov-16,3200296-2340512,625,ALLIANCE CARE.
Adult and Health Services,Head of Adults,Debtors,930135,Debtor Residential Care - IC+ Rehabilitation,01-Nov-16,3200296-2340513,"1,196.63",ALLIANCE CARE.
Adult and Health Services,Head of Adults,Debtors,930135,Debtor Residential Care - IC+ Rehabilitation,01-Nov-16,3200296-2340514,985.46,ALLIANCE CARE.
Adult and Health Services,Head of Adults,Third Party Payments,470101,Purchase of Care,01-Nov-16,3200296-2340516,"2,059.56",ALLIANCE CARE.
Adult and Health Services,Head of Adults,Third Party Payments,470101,Purchase of Care,01-Nov-16,3200296-2340517,"2,059.56",ALLIANCE CARE.
Adult and Health Services,Head of Adults,Third Party Payments,474101,Purchase of Care,01-Nov-16,3200296-2340518,"2,156.96",ALLIANCE CARE.
Adult and Health Services,Central/Other,Debtors,930024,Debtor-free nursing care,01-Nov-16,3200296-2340519,625,ALLIANCE CARE.
Adult and Health Services,Head of Adults,Third Party Payments,470101,Purchase of Care,01-Nov-16,3200296-2340520,"2,059.56",ALLIANCE CARE.
Adult and Health Services,Head of Adults,Third Party Payments,470101,Purchase of Care,01-Nov-16,3200296-2340521,734.94,ALLIANCE CARE.
Adult and Health Services,Head of Adults,Third Party Payments,471101,Purchase of Care,01-Nov-16,3200296-2340522,"1,067.80",ALLIANCE CARE.
Adult and Health Services,Head of Adults,Third Party Payments,470101,Purchase of Care,01-Nov-16,3200296-2340523,"2,059.56",ALLIANCE CARE.
Adult and Health Services,Head of Adults,Debtors,930135,Debtor Residential Care - IC+ Rehabilitation,01-Nov-16,3200296-2340525,633.51,ALLIANCE CARE.
Adult and Health Services,Head of Adults,Third Party Payments,471101,Purchase of Care,01-Nov-16,3200296-2340526,"2,135.60",ALLIANCE CARE.
Adult and Health Services,Head of Adults,Third Party Payments,470101,Purchase of Care,01-Nov-16,3200296-2340528,"1,536.76",ALLIANCE CARE.
Adult and Health Services,Head of Adults,Third Party Payments,474101,Purchase of Care,01-Nov-16,3200296-2340529,"1,550.24",ALLIANCE CARE.
Adult and Health Services,Central/Other,Debtors,930024,Debtor-free nursing care,01-Nov-16,3200296-2340530,625,ALLIANCE CARE.
Adult and Health Services,Head of Adults,Third Party Payments,470101,Purchase of Care,01-Nov-16,3200296-2340531,"2,059.56",ALLIANCE CARE.
Adult and Health Services,Head of Adults,Third Party Payments,470101,Purchase of Care,01-Nov-16,3200296-2340533,"2,059.56",ALLIANCE CARE.
Adult and Health Services,Head of Adults,Debtors,930135,Debtor Residential Care - IC+ Rehabilitation,01-Nov-16,3200296-2340535,774.29,ALLIANCE CARE.
Adult and Health Services,Head of Adults,Third Party Payments,470101,Purchase of Care,01-Nov-16,3200296-2340537,"2,059.56",ALLIANCE CARE.
Adult and Health Services,Head of Adults,Third Party Payments,474101,Purchase of Care,01-Nov-16,3200296-2340539,"2,156.96",ALLIANCE CARE.
Adult and Health Services,Central/Other,Debtors,930024,Debtor-free nursing care,01-Nov-16,3200296-2340540,625,ALLIANCE CARE.
Adult and Health Services,Head of Adults,Third Party Payments,470101,Purchase of Care,01-Nov-16,3200296-2340541,"1,080.60",ALLIANCE CARE.
Adult and Health Services,Head of Adults,Third Party Payments,471101,Purchase of Care,01-Nov-16,3200296-2340542,"2,135.60",ALLIANCE CARE.
Adult and Health Services,Head of Adults,Third Party Payments,471101,Purchase of Care,01-Nov-16,3200296-2340543,"2,135.60",ALLIANCE CARE.
Adult and Health Services,Central/Other,Debtors,930024,Debtor-free nursing care,01-Nov-16,3200296-2340544,625,ALLIANCE CARE.
Adult and Health Services,Head of Adults,Third Party Payments,471101,Purchase of Care,01-Nov-16,3200296-2340545,"2,135.60",ALLIANCE CARE.
Adult and Health Services,Head of Adults,Third Party Payments,474101,Purchase of Care,01-Nov-16,3200296-2340546,"1,462.88",ALLIANCE CARE.
Adult and Health Services,Central/Other,Debtors,930024,Debtor-free nursing care,01-Nov-16,3200296-2340547,625,ALLIANCE CARE.
Adult and Health Services,Head of Adults,Third Party Payments,471101,Purchase of Care,01-Nov-16,3200296-2340548,"1,612.80",ALLIANCE CARE.
Adult and Health Services,Head of Adults,Third Party Payments,471101,Purchase of Care,01-Nov-16,3200296-2340549,"1,067.80",ALLIANCE CARE.
Adult and Health Services,Head of Adults,Third Party Payments,470101,Purchase of Care,01-Nov-16,3200296-2340550,"1,215.84",ALLIANCE CARE.
Adult and Health Services,Head of Adults,Third Party Payments,471101,Purchase of Care,01-Nov-16,3200296-2340551,"1,535.92",ALLIANCE CARE.
Adult and Health Services,Head of Adults,Third Party Payments,471101,Purchase of Care,01-Nov-16,3200296-2340552,"2,135.60",ALLIANCE CARE.
Adult and Health Services,Head of Adults,Third Party Payments,474101,Purchase of Care,01-Nov-16,3200296-2340553,"1,634.16",ALLIANCE CARE.
Adult and Health Services,Central/Other,Debtors,930024,Debtor-free nursing care,01-Nov-16,3200296-2340554,625,ALLIANCE CARE.
Adult and Health Services,Head of Adults,Third Party Payments,471101,Purchase of Care,01-Nov-16,3200296-2340555,"2,135.60",ALLIANCE CARE.
Adult and Health Services,Head of Adults,Third Party Payments,470101,Purchase of Care,01-Nov-16,3200296-2340556,"2,059.56",ALLIANCE CARE.
Adult and Health Services,Head of Adults,Third Party Payments,470101,Purchase of Care,01-Nov-16,3200296-2340557,"2,059.56",ALLIANCE CARE.
Adult and Health Services,Head of Adults,Third Party Payments,470101,Purchase of Care,01-Nov-16,3200296-2340560,"2,059.56",ALLIANCE CARE.
Adult and Health Services,Head of Adults,Third Party Payments,470101,Purchase of Care,01-Nov-16,3200296-2340561,"2,059.56",ALLIANCE CARE.
Adult and Health Services,Head of Adults,Third Party Payments,470101,Purchase of Care,01-Nov-16,3200296-2340562,"1,783.72",ALLIANCE CARE.
Adult and Health Services,Head of Adults,Third Party Payments,471101,Purchase of Care,01-Nov-16,3200296-2343028,"1,677.97",ALLIANCE CARE.
Adult and Health Services,Head of Adults,Third Party Payments,471101,Purchase of Care,01-Nov-16,3200296-2343290,"2,135.60",ALLIANCE CARE.
Adult and Health Services,Head of Adults,Third Party Payments,470101,Purchase of Care,01-Nov-16,3200296-2343292,"1,647.64",ALLIANCE CARE.
Adult and Health Services,Head of Adults,Debtors,930135,Debtor Residential Care - IC+ Rehabilitation,01-Nov-16,3200296-2343293,"1,126.24",ALLIANCE CARE.
Adult and Health Services,Head of Adults,Debtors,930135,Debtor Residential Care - IC+ Rehabilitation,01-Nov-16,3200296-2343294,985.46,ALLIANCE CARE.
Adult and Health Services,Head of Adults,Debtors,930135,Debtor Residential Care - IC+ Rehabilitation,01-Nov-16,3200296-2343296,563.12,ALLIANCE CARE.
Adult and Health Services,Head of Adults,Third Party Payments,474101,Purchase of Care,01-Nov-16,3200296-2343297,"1,109.07",ALLIANCE CARE.
Adult and Health Services,Head of Adults,Debtors,930135,Debtor Residential Care - IC+ Rehabilitation,01-Nov-16,3200296-2343299,"1,478.19",ALLIANCE CARE.
Adult and Health Services,Head of Adults,Third Party Payments,470102,Purchase of Care,01-Nov-16,3200296-2343300,774.29,ALLIANCE CARE.
Adult and Health Services,Head of Adults,Third Party Payments,470101,Purchase of Care,01-Nov-16,3200296-2343353,"1,176.89",ALLIANCE CARE.
Adult and Health Services,Head of Adults,Third Party Payments,471101,Purchase of Care,01-Nov-16,3200297-2342774,"2,132.08",AMERIND GROVE NURSING HOME.
Adult and Health Services,Head of Adults,Third Party Payments,470101,Purchase of Care,01-Nov-16,3200298-2341918,"1,860.00",ANCHOR CAREHOMES NE LTD T/A WYNYARD WOODS GRANGE RESIDENTIAL CARE HOME.
Adult and Health Services,Head of Adults,Third Party Payments,470101,Purchase of Care,01-Nov-16,3200298-2341919,"1,860.00",ANCHOR CAREHOMES NE LTD T/A WYNYARD WOODS GRANGE RESIDENTIAL CARE HOME.
Adult and Health Services,Head of Adults,Third Party Payments,470101,Purchase of Care,01-Nov-16,3200299-2340004,"1,972.00",ANCHOR HOUSING ASSOCIATION.
Adult and Health Services,Head of Adults,Third Party Payments,470101,Purchase of Care,01-Nov-16,3200299-2340005,"1,972.00",ANCHOR HOUSING ASSOCIATION.
Adult and Health Services,Head of Adults,Third Party Payments,470101,Purchase of Care,01-Nov-16,3200299-2340006,"1,972.00",ANCHOR HOUSING ASSOCIATION.
Adult and Health Services,Head of Adults,Third Party Payments,474101,Purchase of Care,01-Nov-16,3200300-2340642,"1,620.48",ANN CHARLTON LODGE.
Adult and Health Services,Head of Adults,Third Party Payments,470101,Purchase of Care,01-Nov-16,3200301-2326231,"1,611.00",ARK HOUSE REHAB LTD.
Adult and Health Services,Head of Adults,Third Party Payments,470101,Purchase of Care,01-Nov-16,3200301-2331304,"1,611.00",ARK HOUSE REHAB LTD.
Adult and Health Services,Head of Adults,Third Party Payments,470101,Purchase of Care,01-Nov-16,3200301-2336153,"1,611.00",ARK HOUSE REHAB LTD.
Adult and Health Services,Head of Adults,Third Party Payments,470101,Purchase of Care,01-Nov-16,3200302-2339524,"1,360.04",ASCOT CARE NORTHEAST LTD.
Adult and Health Services,Head of Adults,Third Party Payments,470101,Purchase of Care,01-Nov-16,3200302-2339527,"1,266.04",ASCOT CARE NORTHEAST LTD.
Adult and Health Services,Head of Adults,Third Party Payments,470101,Purchase of Care,01-Nov-16,3200302-2339528,"1,422.44",ASCOT CARE NORTHEAST LTD.
Adult and Health Services,Head of Adults,Third Party Payments,470101,Purchase of Care,01-Nov-16,3200302-2339529,"1,949.24",ASCOT CARE NORTHEAST LTD.
Adult and Health Services,Head of Adults,Third Party Payments,470101,Purchase of Care,01-Nov-16,3200302-2339530,946.76,ASCOT CARE NORTHEAST LTD.
Adult and Health Services,Head of Adults,Third Party Payments,471101,Purchase of Care,01-Nov-16,3200302-2339531,"2,026.40",ASCOT CARE NORTHEAST LTD.
Adult and Health Services,Head of Adults,Third Party Payments,474101,Purchase of Care,01-Nov-16,3200302-2339532,"2,046.60",ASCOT CARE NORTHEAST LTD.
Adult and Health Services,Central/Other,Debtors,930024,Debtor-free nursing care,01-Nov-16,3200302-2339533,625,ASCOT CARE NORTHEAST LTD.
Adult and Health Services,Head of Adults,Third Party Payments,471101,Purchase of Care,01-Nov-16,3200302-2339534,"1,488.97",ASCOT CARE NORTHEAST LTD.
Adult and Health Services,Head of Adults,Third Party Payments,474101,Purchase of Care,01-Nov-16,3200302-2339535,"1,233.48",ASCOT CARE NORTHEAST LTD.
Adult and Health Services,Central/Other,Debtors,930024,Debtor-free nursing care,01-Nov-16,3200302-2339536,625,ASCOT CARE NORTHEAST LTD.
Adult and Health Services,Head of Adults,Third Party Payments,470101,Purchase of Care,01-Nov-16,3200302-2339537,"1,949.24",ASCOT CARE NORTHEAST LTD.
Adult and Health Services,Head of Adults,Third Party Payments,470101,Purchase of Care,01-Nov-16,3200302-2339538,"1,391.76",ASCOT CARE NORTHEAST LTD.
Adult and Health Services,Head of Adults,Third Party Payments,470101,Purchase of Care,01-Nov-16,3200302-2339539,"1,426.44",ASCOT CARE NORTHEAST LTD.
Adult and Health Services,Head of Adults,Third Party Payments,474101,Purchase of Care,01-Nov-16,3200302-2339540,"1,405.08",ASCOT CARE NORTHEAST LTD.
Adult and Health Services,Central/Other,Debtors,930024,Debtor-free nursing care,01-Nov-16,3200302-2339541,625,ASCOT CARE NORTHEAST LTD.
Adult and Health Services,Head of Adults,Third Party Payments,470101,Purchase of Care,01-Nov-16,3200302-2339542,"1,471.08",ASCOT CARE NORTHEAST LTD.
Adult and Health Services,Head of Adults,Third Party Payments,470101,Purchase of Care,01-Nov-16,3200302-2339543,"1,426.44",ASCOT CARE NORTHEAST LTD.
Adult and Health Services,Head of Adults,Third Party Payments,470101,Purchase of Care,01-Nov-16,3200302-2339544,"1,408.92",ASCOT CARE NORTHEAST LTD.
Adult and Health Services,Head of Adults,Third Party Payments,470101,Purchase of Care,01-Nov-16,3200302-2339546,"1,366.36",ASCOT CARE NORTHEAST LTD.
Adult and Health Services,Head of Adults,Third Party Payments,471101,Purchase of Care,01-Nov-16,3200302-2339547,"1,013.04",ASCOT CARE NORTHEAST LTD.
Adult and Health Services,Head of Adults,Third Party Payments,470101,Purchase of Care,01-Nov-16,3200302-2339548,"1,426.44",ASCOT CARE NORTHEAST LTD.
Adult and Health Services,Head of Adults,Third Party Payments,470101,Purchase of Care,01-Nov-16,3200302-2339549,"1,426.44",ASCOT CARE NORTHEAST LTD.
Adult and Health Services,Head of Adults,Third Party Payments,470101,Purchase of Care,01-Nov-16,3200302-2339550,"1,949.24",ASCOT CARE NORTHEAST LTD.
Adult and Health Services,Head of Adults,Third Party Payments,471101,Purchase of Care,01-Nov-16,3200302-2339551,"1,630.84",ASCOT CARE NORTHEAST LTD.
Adult and Health Services,Central/Other,Debtors,930024,Debtor-free nursing care,01-Nov-16,3200302-2339552,625,ASCOT CARE NORTHEAST LTD.
Adult and Health Services,Head of Adults,Third Party Payments,470101,Purchase of Care,01-Nov-16,3200302-2339553,"1,144.12",ASCOT CARE NORTHEAST LTD.
Adult and Health Services,Head of Adults,Third Party Payments,470101,Purchase of Care,01-Nov-16,3200302-2339554,"1,949.24",ASCOT CARE NORTHEAST LTD.
Adult and Health Services,Head of Adults,Third Party Payments,471101,Purchase of Care,01-Nov-16,3200302-2339555,"1,479.52",ASCOT CARE NORTHEAST LTD.
Adult and Health Services,Head of Adults,Third Party Payments,474101,Purchase of Care,01-Nov-16,3200302-2343056,823.85,ASCOT CARE NORTHEAST LTD.
Adult and Health Services,Head of Adults,Third Party Payments,474101,Purchase of Care,01-Nov-16,3200302-2343057,"3,652.88",ASCOT CARE NORTHEAST LTD.
Adult and Health Services,Central/Other,Debtors,930024,Debtor-free nursing care,01-Nov-16,3200302-2343058,625,ASCOT CARE NORTHEAST LTD.
Adult and Health Services,Head of Adults,Third Party Payments,470101,Purchase of Care,01-Nov-16,3200303-2340241,"3,239.71",ASCOT CARE T/A THE GARDENS CARE HOME.
Adult and Health Services,Head of Adults,Third Party Payments,470101,Purchase of Care,01-Nov-16,3200304-2342509,"2,700.00",ASHFIELD NURSING HOME LTD.
Adult and Health Services,Head of Adults,Third Party Payments,470101,Purchase of Care,01-Nov-16,3200305-2340238,969,ASHLEIGH HOUSE CARE HOME.
Adult and Health Services,Head of Adults,Third Party Payments,470101,Purchase of Care,01-Nov-16,3200305-2340239,969,ASHLEIGH HOUSE CARE HOME.
Adult and Health Services,Head of Adults,Third Party Payments,470101,Purchase of Care,01-Nov-16,3200305-2340240,"1,102.00",ASHLEIGH HOUSE CARE HOME.
Adult and Health Services,Head of Adults,Third Party Payments,470101,Purchase of Care,01-Nov-16,3200306-2341602,"3,500.00",ASPIRE CARE GROUP.
Adult and Health Services,Head of Adults,Third Party Payments,470101,Purchase of Care,01-Nov-16,3200306-2341603,"2,228.80",ASPIRE CARE GROUP.
Adult and Health Services,Head of Adults,Third Party Payments,470101,Purchase of Care,01-Nov-16,3200306-2341604,"1,750.00",ASPIRE CARE GROUP.
Adult and Health Services,Head of Adults,Third Party Payments,470101,Purchase of Care,01-Nov-16,3200306-2341605,668.64,ASPIRE CARE GROUP.
Adult and Health Services,Head of Adults,Third Party Payments,470101,Purchase of Care,01-Nov-16,3200306-2341606,"1,907.72",ASPIRE CARE GROUP.
Adult and Health Services,Head of Adults,Third Party Payments,470101,Purchase of Care,01-Nov-16,3200307-2340235,"1,907.72",ASPIRE CARE GROUP.
Adult and Health Services,Head of Adults,Third Party Payments,470101,Purchase of Care,01-Nov-16,3200307-2340236,"1,907.72",ASPIRE CARE GROUP.
Adult and Health Services,Head of Adults,Third Party Payments,470101,Purchase of Care,01-Nov-16,3200307-2340237,"1,907.72",ASPIRE CARE GROUP.
Adult and Health Services,Head of Adults,Third Party Payments,470101,Purchase of Care,01-Nov-16,3200308-2342561,953.88,ASPIRE CARE GROUP.
Adult and Health Services,Head of Adults,Third Party Payments,470101,Purchase of Care,01-Nov-16,3200308-2342562,"1,907.72",ASPIRE CARE GROUP.
Adult and Health Services,Head of Adults,Third Party Payments,470101,Purchase of Care,01-Nov-16,3200308-2342563,"1,907.72",ASPIRE CARE GROUP.
Adult and Health Services,Head of Adults,Third Party Payments,470101,Purchase of Care,01-Nov-16,3200308-2342565,"1,507.12",ASPIRE CARE GROUP.
Adult and Health Services,Head of Adults,Third Party Payments,470101,Purchase of Care,01-Nov-16,3200308-2342567,"1,523.20",ASPIRE CARE GROUP.
Adult and Health Services,Head of Adults,Third Party Payments,470101,Purchase of Care,01-Nov-16,3200308-2342569,"1,384.92",ASPIRE CARE GROUP.
Adult and Health Services,Head of Adults,Third Party Payments,470101,Purchase of Care,01-Nov-16,3200308-2342571,"1,384.12",ASPIRE CARE GROUP.
Adult and Health Services,Head of Adults,Third Party Payments,474101,Purchase of Care,01-Nov-16,3200309-2342753,"1,715.08",ASTONBROOK CARE HOMES LTD T/A MOORLANDS CARE HOME.
Adult and Health Services,Head of Adults,Third Party Payments,470101,Purchase of Care,01-Nov-16,3200310-2341957,"3,900.00",ATLAS HEALTHCARE LTD.
Adult and Health Services,Head of Adults,Third Party Payments,470101,Purchase of Care,01-Nov-16,3200310-2343592,"1,860.00",ATLAS HEALTHCARE LTD.
Adult and Health Services,Head of Adults,Third Party Payments,470101,Purchase of Care,01-Nov-16,3200311-2341912,"4,244.80",AUTISM CARE UK (4) LTD.
Adult and Health Services,Head of Adults,Third Party Payments,470101,Purchase of Care,01-Nov-16,3200311-2341913,"1,742.44",AUTISM CARE UK (4) LTD.
Adult and Health Services,Head of Adults,Third Party Payments,470101,Purchase of Care,01-Nov-16,3200311-2341914,568.96,AUTISM CARE UK (4) LTD.
Adult and Health Services,Head of Adults,Third Party Payments,470101,Purchase of Care,01-Nov-16,3200311-2341915,"3,564.00",AUTISM CARE UK (4) LTD.
Adult and Health Services,Head of Adults,Third Party Payments,470101,Purchase of Care,01-Nov-16,3200312-2341916,"6,478.68",AUTISM NORTH.
Adult and Health Services,Head of Adults,Third Party Payments,470101,Purchase of Care,01-Nov-16,3200313-2342514,"4,560.00",AUTISM NORTH.
Adult and Health Services,Head of Adults,Third Party Payments,470101,Purchase of Care,01-Nov-16,3200313-2342515,"2,610.72",AUTISM NORTH.
Adult and Health Services,Head of Adults,Third Party Payments,470101,Purchase of Care,01-Nov-16,3200313-2342516,"9,318.00",AUTISM NORTH.
Adult and Health Services,Head of Adults,Third Party Payments,470101,Purchase of Care,01-Nov-16,3200313-2343551,"2,064.28",AUTISM NORTH.
Adult and Health Services,Head of Adults,Third Party Payments,470101,Purchase of Care,01-Nov-16,3200314-2342154,"1,949.24",AYCLIFFE CARE HOME.
Adult and Health Services,Head of Adults,Third Party Payments,474101,Purchase of Care,01-Nov-16,3200314-2342155,"1,023.28",AYCLIFFE CARE HOME.
Adult and Health Services,Head of Adults,Third Party Payments,470101,Purchase of Care,01-Nov-16,3200314-2342157,"1,949.24",AYCLIFFE CARE HOME.
Adult and Health Services,Central/Other,Debtors,930024,Debtor-free nursing care,01-Nov-16,3200314-2342158,625,AYCLIFFE CARE HOME.
Adult and Health Services,Head of Adults,Third Party Payments,470101,Purchase of Care,01-Nov-16,3200314-2342159,"1,949.24",AYCLIFFE CARE HOME.
Adult and Health Services,Central/Other,Debtors,930024,Debtor-free nursing care,01-Nov-16,3200314-2342160,625,AYCLIFFE CARE HOME.
Adult and Health Services,Head of Adults,Third Party Payments,470101,Purchase of Care,01-Nov-16,3200314-2342162,"1,949.24",AYCLIFFE CARE HOME.
Adult and Health Services,Head of Adults,Third Party Payments,471101,Purchase of Care,01-Nov-16,3200314-2342163,"3,980.43",AYCLIFFE CARE HOME.
Adult and Health Services,Head of Adults,Third Party Payments,474101,Purchase of Care,01-Nov-16,3200314-2342164,"1,023.32",AYCLIFFE CARE HOME.
Adult and Health Services,Head of Adults,Third Party Payments,470101,Purchase of Care,01-Nov-16,3200314-2342166,"1,949.24",AYCLIFFE CARE HOME.
Adult and Health Services,Head of Adults,Third Party Payments,471101,Purchase of Care,01-Nov-16,3200314-2342167,"2,026.40",AYCLIFFE CARE HOME.
Adult and Health Services,Head of Adults,Third Party Payments,474101,Purchase of Care,01-Nov-16,3200314-2342168,"2,046.60",AYCLIFFE CARE HOME.
Adult and Health Services,Central/Other,Debtors,930024,Debtor-free nursing care,01-Nov-16,3200314-2342169,625,AYCLIFFE CARE HOME.
Adult and Health Services,Head of Adults,Third Party Payments,471101,Purchase of Care,01-Nov-16,3200314-2342170,"2,026.40",AYCLIFFE CARE HOME.
Adult and Health Services,Head of Adults,Third Party Payments,474101,Purchase of Care,01-Nov-16,3200314-2342171,"2,046.60",AYCLIFFE CARE HOME.
Adult and Health Services,Central/Other,Debtors,930024,Debtor-free nursing care,01-Nov-16,3200314-2342172,625,AYCLIFFE CARE HOME.
Adult and Health Services,Head of Adults,Third Party Payments,470101,Purchase of Care,01-Nov-16,3200314-2342173,974.64,AYCLIFFE CARE HOME.
Adult and Health Services,Head of Adults,Third Party Payments,471101,Purchase of Care,01-Nov-16,3200314-2342174,"2,026.40",AYCLIFFE CARE HOME.
Adult and Health Services,Head of Adults,Third Party Payments,471101,Purchase of Care,01-Nov-16,3200314-2342175,"2,026.40",AYCLIFFE CARE HOME.
Adult and Health Services,Head of Adults,Third Party Payments,474101,Purchase of Care,01-Nov-16,3200314-2342176,"2,046.60",AYCLIFFE CARE HOME.
Adult and Health Services,Central/Other,Debtors,930024,Debtor-free nursing care,01-Nov-16,3200314-2342177,625,AYCLIFFE CARE HOME.
Adult and Health Services,Head of Adults,Third Party Payments,471101,Purchase of Care,01-Nov-16,3200314-2342178,"2,026.40",AYCLIFFE CARE HOME.
Adult and Health Services,Head of Adults,Third Party Payments,474101,Purchase of Care,01-Nov-16,3200314-2342179,"2,046.60",AYCLIFFE CARE HOME.
Adult and Health Services,Central/Other,Debtors,930024,Debtor-free nursing care,01-Nov-16,3200314-2342180,625,AYCLIFFE CARE HOME.
Adult and Health Services,Head of Adults,Third Party Payments,470101,Purchase of Care,01-Nov-16,3200314-2342181,"1,949.24",AYCLIFFE CARE HOME.
Adult and Health Services,Head of Adults,Third Party Payments,471101,Purchase of Care,01-Nov-16,3200314-2342182,"2,026.40",AYCLIFFE CARE HOME.
Adult and Health Services,Central/Other,Debtors,930024,Debtor-free nursing care,01-Nov-16,3200314-2342183,625,AYCLIFFE CARE HOME.
Adult and Health Services,Head of Adults,Third Party Payments,474101,Purchase of Care,01-Nov-16,3200314-2342184,"2,046.60",AYCLIFFE CARE HOME.
Adult and Health Services,Central/Other,Debtors,930024,Debtor-free nursing care,01-Nov-16,3200314-2342185,625,AYCLIFFE CARE HOME.
Adult and Health Services,Head of Adults,Third Party Payments,471101,Purchase of Care,01-Nov-16,3200314-2342186,"2,026.40",AYCLIFFE CARE HOME.
Adult and Health Services,Head of Adults,Third Party Payments,471101,Purchase of Care,01-Nov-16,3200314-2342187,"2,026.40",AYCLIFFE CARE HOME.
Adult and Health Services,Head of Adults,Third Party Payments,471101,Purchase of Care,01-Nov-16,3200314-2342188,"2,026.40",AYCLIFFE CARE HOME.
Adult and Health Services,Head of Adults,Third Party Payments,470101,Purchase of Care,01-Nov-16,3200314-2342189,"1,949.24",AYCLIFFE CARE HOME.
Adult and Health Services,Head of Adults,Third Party Payments,474101,Purchase of Care,01-Nov-16,3200314-2342190,"2,046.60",AYCLIFFE CARE HOME.
Adult and Health Services,Central/Other,Debtors,930024,Debtor-free nursing care,01-Nov-16,3200314-2342191,625,AYCLIFFE CARE HOME.
Adult and Health Services,Head of Adults,Third Party Payments,470101,Purchase of Care,01-Nov-16,3200314-2342192,"1,949.24",AYCLIFFE CARE HOME.
Adult and Health Services,Head of Adults,Third Party Payments,471101,Purchase of Care,01-Nov-16,3200314-2342193,"2,026.40",AYCLIFFE CARE HOME.
Adult and Health Services,Head of Adults,Third Party Payments,474101,Purchase of Care,01-Nov-16,3200314-2342194,"1,023.32",AYCLIFFE CARE HOME.
Adult and Health Services,Head of Adults,Third Party Payments,471101,Purchase of Care,01-Nov-16,3200314-2342196,"2,026.40",AYCLIFFE CARE HOME.
Adult and Health Services,Head of Adults,Third Party Payments,470101,Purchase of Care,01-Nov-16,3200314-2342197,"1,949.24",AYCLIFFE CARE HOME.
Adult and Health Services,Head of Adults,Third Party Payments,474101,Purchase of Care,01-Nov-16,3200314-2342198,"2,046.60",AYCLIFFE CARE HOME.
Adult and Health Services,Central/Other,Debtors,930024,Debtor-free nursing care,01-Nov-16,3200314-2342199,625,AYCLIFFE CARE HOME.
Adult and Health Services,Head of Adults,Third Party Payments,470101,Purchase of Care,01-Nov-16,3200314-2342200,"1,949.24",AYCLIFFE CARE HOME.
Adult and Health Services,Head of Adults,Third Party Payments,474101,Purchase of Care,01-Nov-16,3200314-2342201,"1,023.32",AYCLIFFE CARE HOME.
Adult and Health Services,Head of Adults,Third Party Payments,470101,Purchase of Care,01-Nov-16,3200314-2342203,"1,949.24",AYCLIFFE CARE HOME.
Adult and Health Services,Head of Adults,Third Party Payments,471101,Purchase of Care,01-Nov-16,3200314-2342204,"2,026.40",AYCLIFFE CARE HOME.
Adult and Health Services,Head of Adults,Third Party Payments,470101,Purchase of Care,01-Nov-16,3200314-2342205,"1,949.24",AYCLIFFE CARE HOME.
Adult and Health Services,Head of Adults,Third Party Payments,471101,Purchase of Care,01-Nov-16,3200314-2342206,"2,026.40",AYCLIFFE CARE HOME.
Adult and Health Services,Head of Adults,Third Party Payments,471101,Purchase of Care,01-Nov-16,3200314-2342207,"2,026.40",AYCLIFFE CARE HOME.
Adult and Health Services,Head of Adults,Third Party Payments,470101,Purchase of Care,01-Nov-16,3200314-2343423,"1,461.93",AYCLIFFE CARE HOME.
Adult and Health Services,Head of Adults,Third Party Payments,474101,Purchase of Care,01-Nov-16,3200314-2343507,"1,096.39",AYCLIFFE CARE HOME.
Adult and Health Services,Head of Adults,Third Party Payments,471101,Purchase of Care,01-Nov-16,3200314-2343511,"3,039.60",AYCLIFFE CARE HOME.
Adult and Health Services,Head of Adults,Third Party Payments,470101,Purchase of Care,01-Nov-16,3200315-2341088,"1,860.00",AYRESOME COURT NURSING HOME.
Adult and Health Services,Head of Adults,Third Party Payments,471101,Purchase of Care,01-Nov-16,3200316-2340976,"2,016.00",BARCHESTER HEALTHCARE HOMES LTD.
Adult and Health Services,Head of Adults,Third Party Payments,471101,Purchase of Care,01-Nov-16,3200317-2342705,"1,967.56",BARCHESTER HEALTHCARE HOMES LTD.
Adult and Health Services,Head of Adults,Third Party Payments,474101,Purchase of Care,01-Nov-16,3200318-2342768,"2,152.00",BARCHESTER HEALTHCARE HOMES LTD.
Adult and Health Services,Head of Adults,Third Party Payments,471101,Purchase of Care,01-Nov-16,3200319-2342760,"1,199.36",BARCHESTER HEALTHCARE HOMES LTD.
Adult and Health Services,Central/Other,Debtors,930024,Debtor-free nursing care,01-Nov-16,3200320-2340082,625,BARCHESTER HEALTHCARE HOMES LTD.
Adult and Health Services,Central/Other,Debtors,930024,Debtor-free nursing care,01-Nov-16,3200320-2340083,625,BARCHESTER HEALTHCARE HOMES LTD.
Adult and Health Services,Head of Adults,Third Party Payments,474101,Purchase of Care,01-Nov-16,3200320-2340084,"2,046.60",BARCHESTER HEALTHCARE HOMES LTD.
Adult and Health Services,Central/Other,Debtors,930024,Debtor-free nursing care,01-Nov-16,3200320-2340085,625,BARCHESTER HEALTHCARE HOMES LTD.
Adult and Health Services,Head of Adults,Third Party Payments,474101,Purchase of Care,01-Nov-16,3200320-2340086,"2,046.60",BARCHESTER HEALTHCARE HOMES LTD.
Adult and Health Services,Central/Other,Debtors,930024,Debtor-free nursing care,01-Nov-16,3200320-2340087,625,BARCHESTER HEALTHCARE HOMES LTD.
Adult and Health Services,Head of Adults,Third Party Payments,474101,Purchase of Care,01-Nov-16,3200320-2340089,876.82,BARCHESTER HEALTHCARE HOMES LTD.
Adult and Health Services,Central/Other,Debtors,930024,Debtor-free nursing care,01-Nov-16,3200320-2340090,625,BARCHESTER HEALTHCARE HOMES LTD.
Adult and Health Services,Head of Adults,Third Party Payments,474101,Purchase of Care,01-Nov-16,3200320-2340091,"2,046.60",BARCHESTER HEALTHCARE HOMES LTD.
Adult and Health Services,Central/Other,Debtors,930024,Debtor-free nursing care,01-Nov-16,3200320-2340092,625,BARCHESTER HEALTHCARE HOMES LTD.
Adult and Health Services,Head of Adults,Third Party Payments,474101,Purchase of Care,01-Nov-16,3200320-2340094,"2,046.60",BARCHESTER HEALTHCARE HOMES LTD.
Adult and Health Services,Central/Other,Debtors,930024,Debtor-free nursing care,01-Nov-16,3200320-2340095,625,BARCHESTER HEALTHCARE HOMES LTD.
Adult and Health Services,Head of Adults,Third Party Payments,474101,Purchase of Care,01-Nov-16,3200320-2340097,"2,046.60",BARCHESTER HEALTHCARE HOMES LTD.
Adult and Health Services,Central/Other,Debtors,930024,Debtor-free nursing care,01-Nov-16,3200320-2340098,625,BARCHESTER HEALTHCARE HOMES LTD.
Adult and Health Services,Head of Adults,Third Party Payments,474101,Purchase of Care,01-Nov-16,3200320-2340100,"2,046.60",BARCHESTER HEALTHCARE HOMES LTD.
Adult and Health Services,Central/Other,Debtors,930024,Debtor-free nursing care,01-Nov-16,3200320-2340101,625,BARCHESTER HEALTHCARE HOMES LTD.
Adult and Health Services,Head of Adults,Third Party Payments,474101,Purchase of Care,01-Nov-16,3200320-2340103,"2,046.60",BARCHESTER HEALTHCARE HOMES LTD.
Adult and Health Services,Central/Other,Debtors,930024,Debtor-free nursing care,01-Nov-16,3200320-2340104,625,BARCHESTER HEALTHCARE HOMES LTD.
Adult and Health Services,Head of Adults,Third Party Payments,474101,Purchase of Care,01-Nov-16,3200320-2340106,"1,023.28",BARCHESTER HEALTHCARE HOMES LTD.
Adult and Health Services,Head of Adults,Third Party Payments,474101,Purchase of Care,01-Nov-16,3200320-2340107,"1,177.00",BARCHESTER HEALTHCARE HOMES LTD.
Adult and Health Services,Central/Other,Debtors,930024,Debtor-free nursing care,01-Nov-16,3200320-2340109,625,BARCHESTER HEALTHCARE HOMES LTD.
Adult and Health Services,Head of Adults,Third Party Payments,474101,Purchase of Care,01-Nov-16,3200320-2340110,"2,046.60",BARCHESTER HEALTHCARE HOMES LTD.
Adult and Health Services,Central/Other,Debtors,930024,Debtor-free nursing care,01-Nov-16,3200320-2340111,625,BARCHESTER HEALTHCARE HOMES LTD.
Adult and Health Services,Head of Adults,Third Party Payments,474101,Purchase of Care,01-Nov-16,3200320-2340113,"1,023.28",BARCHESTER HEALTHCARE HOMES LTD.
Adult and Health Services,Head of Adults,Third Party Payments,474101,Purchase of Care,01-Nov-16,3200320-2340115,"2,046.60",BARCHESTER HEALTHCARE HOMES LTD.
Adult and Health Services,Central/Other,Debtors,930024,Debtor-free nursing care,01-Nov-16,3200320-2340116,625,BARCHESTER HEALTHCARE HOMES LTD.
Adult and Health Services,Head of Adults,Third Party Payments,474101,Purchase of Care,01-Nov-16,3200320-2340118,"1,023.28",BARCHESTER HEALTHCARE HOMES LTD.
Adult and Health Services,Head of Adults,Third Party Payments,474101,Purchase of Care,01-Nov-16,3200320-2340120,"2,046.60",BARCHESTER HEALTHCARE HOMES LTD.
Adult and Health Services,Central/Other,Debtors,930024,Debtor-free nursing care,01-Nov-16,3200320-2340121,625,BARCHESTER HEALTHCARE HOMES LTD.
Adult and Health Services,Head of Adults,Third Party Payments,474101,Purchase of Care,01-Nov-16,3200320-2340123,"2,232.12",BARCHESTER HEALTHCARE HOMES LTD.
Adult and Health Services,Central/Other,Debtors,930024,Debtor-free nursing care,01-Nov-16,3200320-2340124,625,BARCHESTER HEALTHCARE HOMES LTD.
Adult and Health Services,Head of Adults,Third Party Payments,474101,Purchase of Care,01-Nov-16,3200320-2340126,"2,046.60",BARCHESTER HEALTHCARE HOMES LTD.
Adult and Health Services,Central/Other,Debtors,930024,Debtor-free nursing care,01-Nov-16,3200320-2340127,625,BARCHESTER HEALTHCARE HOMES LTD.
Adult and Health Services,Head of Adults,Third Party Payments,474101,Purchase of Care,01-Nov-16,3200320-2340129,"2,046.60",BARCHESTER HEALTHCARE HOMES LTD.
Adult and Health Services,Central/Other,Debtors,930024,Debtor-free nursing care,01-Nov-16,3200320-2340130,625,BARCHESTER HEALTHCARE HOMES LTD.
Adult and Health Services,Head of Adults,Third Party Payments,474101,Purchase of Care,01-Nov-16,3200320-2340132,"2,046.60",BARCHESTER HEALTHCARE HOMES LTD.
Adult and Health Services,Central/Other,Debtors,930024,Debtor-free nursing care,01-Nov-16,3200320-2340133,625,BARCHESTER HEALTHCARE HOMES LTD.
Adult and Health Services,Head of Adults,Third Party Payments,474101,Purchase of Care,01-Nov-16,3200320-2340135,"2,046.60",BARCHESTER HEALTHCARE HOMES LTD.
Adult and Health Services,Central/Other,Debtors,930024,Debtor-free nursing care,01-Nov-16,3200320-2340136,625,BARCHESTER HEALTHCARE HOMES LTD.
Adult and Health Services,Head of Adults,Third Party Payments,474101,Purchase of Care,01-Nov-16,3200320-2340137,"2,046.60",BARCHESTER HEALTHCARE HOMES LTD.
Adult and Health Services,Central/Other,Debtors,930024,Debtor-free nursing care,01-Nov-16,3200320-2340138,625,BARCHESTER HEALTHCARE HOMES LTD.
Adult and Health Services,Head of Adults,Third Party Payments,474101,Purchase of Care,01-Nov-16,3200320-2340140,"2,046.60",BARCHESTER HEALTHCARE HOMES LTD.
Adult and Health Services,Central/Other,Debtors,930024,Debtor-free nursing care,01-Nov-16,3200320-2340141,625,BARCHESTER HEALTHCARE HOMES LTD.
Adult and Health Services,Central/Other,Debtors,930024,Debtor-free nursing care,01-Nov-16,3200320-2340143,625,BARCHESTER HEALTHCARE HOMES LTD.
Adult and Health Services,Head of Adults,Third Party Payments,474101,Purchase of Care,01-Nov-16,3200320-2340144,"2,046.60",BARCHESTER HEALTHCARE HOMES LTD.
Adult and Health Services,Central/Other,Debtors,930024,Debtor-free nursing care,01-Nov-16,3200320-2340145,625,BARCHESTER HEALTHCARE HOMES LTD.
Adult and Health Services,Head of Adults,Third Party Payments,474101,Purchase of Care,01-Nov-16,3200320-2340147,"2,232.12",BARCHESTER HEALTHCARE HOMES LTD.
Adult and Health Services,Central/Other,Debtors,930024,Debtor-free nursing care,01-Nov-16,3200320-2340148,625,BARCHESTER HEALTHCARE HOMES LTD.
Adult and Health Services,Head of Adults,Third Party Payments,470101,Purchase of Care,01-Nov-16,3200321-2341089,"2,048.00",BARCHESTER HEALTHCARE HOMES LTD.
Adult and Health Services,Head of Adults,Third Party Payments,471101,Purchase of Care,01-Nov-16,3200321-2341090,"2,116.00",BARCHESTER HEALTHCARE HOMES LTD.
Adult and Health Services,Head of Adults,Third Party Payments,470101,Purchase of Care,01-Nov-16,3200321-2341091,"2,048.00",BARCHESTER HEALTHCARE HOMES LTD.
Adult and Health Services,Head of Adults,Third Party Payments,470101,Purchase of Care,01-Nov-16,3200321-2341092,"2,048.00",BARCHESTER HEALTHCARE HOMES LTD.
Adult and Health Services,Head of Adults,Third Party Payments,470101,Purchase of Care,01-Nov-16,3200321-2341093,"2,048.00",BARCHESTER HEALTHCARE HOMES LTD.
Adult and Health Services,Head of Adults,Third Party Payments,471101,Purchase of Care,01-Nov-16,3200321-2341095,"2,116.00",BARCHESTER HEALTHCARE HOMES LTD.
Adult and Health Services,Head of Adults,Third Party Payments,471101,Purchase of Care,01-Nov-16,3200321-2341096,"2,116.00",BARCHESTER HEALTHCARE HOMES LTD.
Adult and Health Services,Head of Adults,Third Party Payments,471101,Purchase of Care,01-Nov-16,3200321-2343547,"1,738.14",BARCHESTER HEALTHCARE HOMES LTD.
Adult and Health Services,Head of Adults,Third Party Payments,474101,Purchase of Care,01-Nov-16,3200322-2340978,"1,820.92",BARNES COURT NURSING HOME.
Adult and Health Services,Head of Adults,Third Party Payments,470101,Purchase of Care,01-Nov-16,3200323-2340287,"1,322.69",BEACONSFIELD COURT.
Adult and Health Services,Head of Adults,Third Party Payments,470101,Purchase of Care,01-Nov-16,3200323-2340288,"1,949.24",BEACONSFIELD COURT.
Adult and Health Services,Head of Adults,Third Party Payments,470101,Purchase of Care,01-Nov-16,3200323-2340289,"1,949.24",BEACONSFIELD COURT.
Adult and Health Services,Head of Adults,Third Party Payments,470101,Purchase of Care,01-Nov-16,3200323-2340290,"1,949.24",BEACONSFIELD COURT.
Adult and Health Services,Head of Adults,Third Party Payments,470101,Purchase of Care,01-Nov-16,3200323-2340291,"1,949.24",BEACONSFIELD COURT.
Adult and Health Services,Head of Adults,Third Party Payments,470101,Purchase of Care,01-Nov-16,3200323-2340292,"1,949.24",BEACONSFIELD COURT.
Adult and Health Services,Head of Adults,Third Party Payments,470101,Purchase of Care,01-Nov-16,3200323-2340293,"1,949.24",BEACONSFIELD COURT.
Adult and Health Services,Head of Adults,Third Party Payments,470101,Purchase of Care,01-Nov-16,3200323-2340294,"1,949.24",BEACONSFIELD COURT.
Adult and Health Services,Head of Adults,Third Party Payments,470101,Purchase of Care,01-Nov-16,3200323-2340295,"1,949.24",BEACONSFIELD COURT.
Adult and Health Services,Head of Adults,Third Party Payments,470101,Purchase of Care,01-Nov-16,3200323-2340296,"1,949.24",BEACONSFIELD COURT.
Adult and Health Services,Head of Adults,Third Party Payments,470101,Purchase of Care,01-Nov-16,3200323-2340297,"1,949.24",BEACONSFIELD COURT.
Adult and Health Services,Head of Adults,Third Party Payments,470101,Purchase of Care,01-Nov-16,3200323-2340298,"1,949.24",BEACONSFIELD COURT.
Adult and Health Services,Head of Adults,Third Party Payments,470101,Purchase of Care,01-Nov-16,3200323-2340299,"1,949.24",BEACONSFIELD COURT.
Adult and Health Services,Head of Adults,Third Party Payments,470101,Purchase of Care,01-Nov-16,3200323-2340300,"1,949.24",BEACONSFIELD COURT.
Adult and Health Services,Head of Adults,Third Party Payments,470101,Purchase of Care,01-Nov-16,3200323-2340301,"1,949.24",BEACONSFIELD COURT.
Adult and Health Services,Head of Adults,Third Party Payments,470101,Purchase of Care,01-Nov-16,3200323-2340302,"1,949.24",BEACONSFIELD COURT.
Adult and Health Services,Head of Adults,Third Party Payments,471101,Purchase of Care,01-Nov-16,3200324-2341995,"2,026.40",BEAMISH RESIDENTIAL HOME.
Adult and Health Services,Head of Adults,Third Party Payments,471101,Purchase of Care,01-Nov-16,3200324-2341997,"1,301.04",BEAMISH RESIDENTIAL HOME.
Adult and Health Services,Head of Adults,Third Party Payments,470101,Purchase of Care,01-Nov-16,3200324-2341998,"1,949.24",BEAMISH RESIDENTIAL HOME.
Adult and Health Services,Head of Adults,Third Party Payments,470101,Purchase of Care,01-Nov-16,3200324-2341999,"1,949.24",BEAMISH RESIDENTIAL HOME.
Adult and Health Services,Head of Adults,Third Party Payments,471101,Purchase of Care,01-Nov-16,3200324-2342000,"1,503.60",BEAMISH RESIDENTIAL HOME.
Adult and Health Services,Head of Adults,Third Party Payments,470101,Purchase of Care,01-Nov-16,3200324-2342001,"1,949.24",BEAMISH RESIDENTIAL HOME.
Adult and Health Services,Head of Adults,Third Party Payments,470101,Purchase of Care,01-Nov-16,3200324-2342002,"1,407.36",BEAMISH RESIDENTIAL HOME.
Adult and Health Services,Head of Adults,Third Party Payments,470101,Purchase of Care,01-Nov-16,3200324-2342003,974.64,BEAMISH RESIDENTIAL HOME.
Adult and Health Services,Head of Adults,Third Party Payments,470101,Purchase of Care,01-Nov-16,3200324-2342004,"1,949.24",BEAMISH RESIDENTIAL HOME.
Adult and Health Services,Head of Adults,Third Party Payments,470101,Purchase of Care,01-Nov-16,3200324-2342005,"1,949.24",BEAMISH RESIDENTIAL HOME.
Adult and Health Services,Head of Adults,Third Party Payments,470101,Purchase of Care,01-Nov-16,3200324-2342006,"1,176.80",BEAMISH RESIDENTIAL HOME.
Adult and Health Services,Head of Adults,Third Party Payments,470101,Purchase of Care,01-Nov-16,3200324-2342007,974.64,BEAMISH RESIDENTIAL HOME.
Adult and Health Services,Head of Adults,Third Party Payments,470101,Purchase of Care,01-Nov-16,3200324-2342008,"1,949.24",BEAMISH RESIDENTIAL HOME.
Adult and Health Services,Head of Adults,Third Party Payments,470101,Purchase of Care,01-Nov-16,3200324-2342009,931.4,BEAMISH RESIDENTIAL HOME.
Adult and Health Services,Head of Adults,Third Party Payments,470101,Purchase of Care,01-Nov-16,3200324-2342010,"1,387.96",BEAMISH RESIDENTIAL HOME.
Adult and Health Services,Head of Adults,Third Party Payments,470101,Purchase of Care,01-Nov-16,3200324-2342011,"1,428.12",BEAMISH RESIDENTIAL HOME.
Adult and Health Services,Head of Adults,Third Party Payments,470101,Purchase of Care,01-Nov-16,3200324-2342012,"1,949.24",BEAMISH RESIDENTIAL HOME.
Adult and Health Services,Head of Adults,Third Party Payments,470101,Purchase of Care,01-Nov-16,3200324-2343081,"1,879.62",BEAMISH RESIDENTIAL HOME.
Adult and Health Services,Head of Adults,Third Party Payments,470101,Purchase of Care,01-Nov-16,3200325-2339284,813.6,BEAULEY LODGE CARE HOME.
Adult and Health Services,Head of Adults,Third Party Payments,471101,Purchase of Care,01-Nov-16,3200325-2339285,"1,197.93",BEAULEY LODGE CARE HOME.
Adult and Health Services,Head of Adults,Third Party Payments,471101,Purchase of Care,01-Nov-16,3200325-2339286,"1,811.24",BEAULEY LODGE CARE HOME.
Adult and Health Services,Head of Adults,Third Party Payments,470101,Purchase of Care,01-Nov-16,3200325-2339287,"1,137.96",BEAULEY LODGE CARE HOME.
Adult and Health Services,Head of Adults,Third Party Payments,470101,Purchase of Care,01-Nov-16,3200325-2343075,681.32,BEAULEY LODGE CARE HOME.
Adult and Health Services,Head of Adults,Third Party Payments,470101,Purchase of Care,01-Nov-16,3200326-2340174,"2,059.56",BEDDELL HOUSE.
Adult and Health Services,Head of Adults,Third Party Payments,470101,Purchase of Care,01-Nov-16,3200326-2340175,"2,059.56",BEDDELL HOUSE.
Adult and Health Services,Head of Adults,Third Party Payments,470101,Purchase of Care,01-Nov-16,3200326-2340176,514.89,BEDDELL HOUSE.
Adult and Health Services,Head of Adults,Third Party Payments,470101,Purchase of Care,01-Nov-16,3200326-2340177,514.89,BEDDELL HOUSE.
Adult and Health Services,Head of Adults,Third Party Payments,470101,Purchase of Care,01-Nov-16,3200326-2340178,514.89,BEDDELL HOUSE.
Adult and Health Services,Head of Adults,Third Party Payments,470101,Purchase of Care,01-Nov-16,3200326-2340179,"2,059.56",BEDDELL HOUSE.
Adult and Health Services,Head of Adults,Third Party Payments,470101,Purchase of Care,01-Nov-16,3200326-2340180,"2,059.56",BEDDELL HOUSE.
Adult and Health Services,Head of Adults,Third Party Payments,470101,Purchase of Care,01-Nov-16,3200326-2340181,"2,059.56",BEDDELL HOUSE.
Adult and Health Services,Head of Adults,Third Party Payments,470101,Purchase of Care,01-Nov-16,3200326-2340182,"2,059.56",BEDDELL HOUSE.
Adult and Health Services,Head of Adults,Third Party Payments,470101,Purchase of Care,01-Nov-16,3200326-2340183,"2,059.56",BEDDELL HOUSE.
Adult and Health Services,Head of Adults,Third Party Payments,470101,Purchase of Care,01-Nov-16,3200326-2340184,"2,059.56",BEDDELL HOUSE.
Adult and Health Services,Head of Adults,Third Party Payments,470101,Purchase of Care,01-Nov-16,3200326-2340185,"2,059.56",BEDDELL HOUSE.
Adult and Health Services,Head of Adults,Third Party Payments,470101,Purchase of Care,01-Nov-16,3200326-2340186,"2,059.56",BEDDELL HOUSE.
Adult and Health Services,Head of Adults,Third Party Payments,470101,Purchase of Care,01-Nov-16,3200326-2340187,"2,059.56",BEDDELL HOUSE.
Adult and Health Services,Head of Adults,Third Party Payments,470101,Purchase of Care,01-Nov-16,3200326-2340189,"2,059.56",BEDDELL HOUSE.
Adult and Health Services,Head of Adults,Third Party Payments,470101,Purchase of Care,01-Nov-16,3200326-2340190,"2,059.56",BEDDELL HOUSE.
Adult and Health Services,Head of Adults,Third Party Payments,470101,Purchase of Care,01-Nov-16,3200326-2340191,"2,059.56",BEDDELL HOUSE.
Adult and Health Services,Head of Adults,Third Party Payments,470101,Purchase of Care,01-Nov-16,3200326-2340192,"2,059.56",BEDDELL HOUSE.
Adult and Health Services,Head of Adults,Third Party Payments,470101,Purchase of Care,01-Nov-16,3200326-2340193,"2,059.56",BEDDELL HOUSE.
Adult and Health Services,Head of Adults,Third Party Payments,470101,Purchase of Care,01-Nov-16,3200326-2343469,514.89,BEDDELL HOUSE.
Adult and Health Services,Head of Adults,Third Party Payments,470101,Purchase of Care,01-Nov-16,3200326-2343471,882.66,BEDDELL HOUSE.
Adult and Health Services,Head of Adults,Third Party Payments,470101,Purchase of Care,01-Nov-16,3200326-2343472,"1,986.00",BEDDELL HOUSE.
Adult and Health Services,Head of Adults,Third Party Payments,470101,Purchase of Care,01-Nov-16,3200327-2341100,"1,900.00",BELLE VUE HEALTHCARE LTD.
Adult and Health Services,Head of Adults,Third Party Payments,470101,Purchase of Care,01-Nov-16,3200328-2340995,"1,907.72",BENAMY HOUSE.
Adult and Health Services,Head of Adults,Third Party Payments,470101,Purchase of Care,01-Nov-16,3200328-2340996,"1,907.72",BENAMY HOUSE.
Adult and Health Services,Head of Adults,Third Party Payments,470101,Purchase of Care,01-Nov-16,3200328-2340997,"1,907.72",BENAMY HOUSE.
Adult and Health Services,Head of Adults,Third Party Payments,470101,Purchase of Care,01-Nov-16,3200328-2340998,"1,907.72",BENAMY HOUSE.
Adult and Health Services,Head of Adults,Third Party Payments,470101,Purchase of Care,01-Nov-16,3200328-2340999,"1,907.72",BENAMY HOUSE.
Adult and Health Services,Head of Adults,Third Party Payments,470101,Purchase of Care,01-Nov-16,3200329-2339867,922.2,BENFIELD HALL RESIDENTIAL CARE.
Adult and Health Services,Head of Adults,Third Party Payments,474101,Purchase of Care,01-Nov-16,3200329-2339868,"1,536.56",BENFIELD HALL RESIDENTIAL CARE.
Adult and Health Services,Head of Adults,Third Party Payments,474101,Purchase of Care,01-Nov-16,3200329-2339869,"1,937.16",BENFIELD HALL RESIDENTIAL CARE.
Adult and Health Services,Central/Other,Debtors,930024,Debtor-free nursing care,01-Nov-16,3200329-2339870,625,BENFIELD HALL RESIDENTIAL CARE.
Adult and Health Services,Head of Adults,Third Party Payments,470101,Purchase of Care,01-Nov-16,3200329-2339871,"1,844.36",BENFIELD HALL RESIDENTIAL CARE.
Adult and Health Services,Head of Adults,Third Party Payments,474101,Purchase of Care,01-Nov-16,3200329-2339872,968.6,BENFIELD HALL RESIDENTIAL CARE.
Adult and Health Services,Head of Adults,Third Party Payments,474101,Purchase of Care,01-Nov-16,3200329-2339874,"1,414.36",BENFIELD HALL RESIDENTIAL CARE.
Adult and Health Services,Central/Other,Debtors,930024,Debtor-free nursing care,01-Nov-16,3200329-2339875,625,BENFIELD HALL RESIDENTIAL CARE.
Adult and Health Services,Head of Adults,Third Party Payments,474101,Purchase of Care,01-Nov-16,3200329-2339876,968.6,BENFIELD HALL RESIDENTIAL CARE.
Adult and Health Services,Head of Adults,Third Party Payments,474101,Purchase of Care,01-Nov-16,3200329-2339878,"1,937.16",BENFIELD HALL RESIDENTIAL CARE.
Adult and Health Services,Central/Other,Debtors,930024,Debtor-free nursing care,01-Nov-16,3200329-2339879,625,BENFIELD HALL RESIDENTIAL CARE.
Adult and Health Services,Head of Adults,Third Party Payments,474101,Purchase of Care,01-Nov-16,3200329-2339880,968.6,BENFIELD HALL RESIDENTIAL CARE.
Adult and Health Services,Head of Adults,Third Party Payments,474101,Purchase of Care,01-Nov-16,3200329-2339882,968.6,BENFIELD HALL RESIDENTIAL CARE.
Adult and Health Services,Head of Adults,Third Party Payments,474101,Purchase of Care,01-Nov-16,3200329-2339884,968.6,BENFIELD HALL RESIDENTIAL CARE.
Adult and Health Services,Head of Adults,Third Party Payments,470101,Purchase of Care,01-Nov-16,3200330-2339843,"3,059.04",BENTON CARE SERVICES LTD.
Adult and Health Services,Head of Adults,Third Party Payments,470101,Purchase of Care,01-Nov-16,3200330-2339844,"3,059.04",BENTON CARE SERVICES LTD.
Adult and Health Services,Head of Adults,Third Party Payments,470101,Purchase of Care,01-Nov-16,3200330-2339845,"3,059.04",BENTON CARE SERVICES LTD.
Adult and Health Services,Head of Adults,Third Party Payments,470101,Purchase of Care,01-Nov-16,3200330-2339846,"3,059.04",BENTON CARE SERVICES LTD.
Adult and Health Services,Head of Adults,Third Party Payments,470101,Purchase of Care,01-Nov-16,3200330-2339847,"3,059.04",BENTON CARE SERVICES LTD.
Adult and Health Services,Head of Adults,Third Party Payments,470101,Purchase of Care,01-Nov-16,3200330-2339848,"3,059.04",BENTON CARE SERVICES LTD.
Adult and Health Services,Head of Adults,Third Party Payments,470101,Purchase of Care,01-Nov-16,3200330-2342711,953.84,BENTON CARE SERVICES LTD.
Adult and Health Services,Head of Adults,Third Party Payments,470101,Purchase of Care,01-Nov-16,3200330-2342712,"1,907.72",BENTON CARE SERVICES LTD.
Adult and Health Services,Head of Adults,Third Party Payments,478101,Purchase of Care,01-Nov-16,3200331-2341291,"1,396.24",REDACTED - PAYMENT TO INDIVIDUAL
Adult and Health Services,Head of Adults,Third Party Payments,478101,Purchase of Care,01-Nov-16,3200331-2341292,"1,396.24",REDACTED - PAYMENT TO INDIVIDUAL
Adult and Health Services,Head of Adults,Third Party Payments,470101,Purchase of Care,01-Nov-16,3200332-2338835,"1,949.24",BISHOPSGATE LODGE.
Adult and Health Services,Head of Adults,Third Party Payments,470101,Purchase of Care,01-Nov-16,3200332-2338836,"1,949.24",BISHOPSGATE LODGE.
Adult and Health Services,Head of Adults,Third Party Payments,471101,Purchase of Care,01-Nov-16,3200332-2338837,"2,026.40",BISHOPSGATE LODGE.
Adult and Health Services,Head of Adults,Third Party Payments,470101,Purchase of Care,01-Nov-16,3200332-2338838,"1,949.24",BISHOPSGATE LODGE.
Adult and Health Services,Head of Adults,Third Party Payments,470101,Purchase of Care,01-Nov-16,3200332-2338839,"1,949.24",BISHOPSGATE LODGE.
Adult and Health Services,Head of Adults,Third Party Payments,474101,Purchase of Care,01-Nov-16,3200332-2338842,"2,046.60",BISHOPSGATE LODGE.
Adult and Health Services,Central/Other,Debtors,930024,Debtor-free nursing care,01-Nov-16,3200332-2338843,625,BISHOPSGATE LODGE.
Adult and Health Services,Central/Other,Debtors,930024,Debtor-free nursing care,01-Nov-16,3200332-2338844,625,BISHOPSGATE LODGE.
Adult and Health Services,Head of Adults,Third Party Payments,470101,Purchase of Care,01-Nov-16,3200332-2338845,"1,949.24",BISHOPSGATE LODGE.
Adult and Health Services,Head of Adults,Third Party Payments,470101,Purchase of Care,01-Nov-16,3200332-2338846,"1,949.24",BISHOPSGATE LODGE.
Adult and Health Services,Head of Adults,Third Party Payments,471101,Purchase of Care,01-Nov-16,3200332-2338847,"2,026.40",BISHOPSGATE LODGE.
Adult and Health Services,Head of Adults,Third Party Payments,471101,Purchase of Care,01-Nov-16,3200332-2338848,"2,026.40",BISHOPSGATE LODGE.
Adult and Health Services,Head of Adults,Third Party Payments,474101,Purchase of Care,01-Nov-16,3200332-2338849,"2,046.60",BISHOPSGATE LODGE.
Adult and Health Services,Central/Other,Debtors,930024,Debtor-free nursing care,01-Nov-16,3200332-2338850,625,BISHOPSGATE LODGE.
Adult and Health Services,Head of Adults,Third Party Payments,471101,Purchase of Care,01-Nov-16,3200332-2338851,"1,013.20",BISHOPSGATE LODGE.
Adult and Health Services,Head of Adults,Third Party Payments,474101,Purchase of Care,01-Nov-16,3200332-2338852,"2,046.60",BISHOPSGATE LODGE.
Adult and Health Services,Central/Other,Debtors,930024,Debtor-free nursing care,01-Nov-16,3200332-2338853,625,BISHOPSGATE LODGE.
Adult and Health Services,Head of Adults,Third Party Payments,470101,Purchase of Care,01-Nov-16,3200332-2338854,"1,949.24",BISHOPSGATE LODGE.
Adult and Health Services,Head of Adults,Third Party Payments,471101,Purchase of Care,01-Nov-16,3200332-2338855,"2,026.40",BISHOPSGATE LODGE.
Adult and Health Services,Head of Adults,Third Party Payments,470101,Purchase of Care,01-Nov-16,3200332-2338856,"1,949.24",BISHOPSGATE LODGE.
Adult and Health Services,Head of Adults,Third Party Payments,474101,Purchase of Care,01-Nov-16,3200332-2338857,"2,046.60",BISHOPSGATE LODGE.
Adult and Health Services,Central/Other,Debtors,930024,Debtor-free nursing care,01-Nov-16,3200332-2338858,625,BISHOPSGATE LODGE.
Adult and Health Services,Head of Adults,Third Party Payments,474101,Purchase of Care,01-Nov-16,3200332-2338859,"2,046.60",BISHOPSGATE LODGE.
Adult and Health Services,Head of Adults,Third Party Payments,470101,Purchase of Care,01-Nov-16,3200332-2338861,"1,949.24",BISHOPSGATE LODGE.
Adult and Health Services,Head of Adults,Third Party Payments,470101,Purchase of Care,01-Nov-16,3200332-2338862,"1,949.24",BISHOPSGATE LODGE.
Adult and Health Services,Head of Adults,Third Party Payments,471101,Purchase of Care,01-Nov-16,3200332-2338863,"2,026.40",BISHOPSGATE LODGE.
Adult and Health Services,Head of Adults,Third Party Payments,474101,Purchase of Care,01-Nov-16,3200332-2338864,"2,046.60",BISHOPSGATE LODGE.
Adult and Health Services,Central/Other,Debtors,930024,Debtor-free nursing care,01-Nov-16,3200332-2338865,625,BISHOPSGATE LODGE.
Adult and Health Services,Head of Adults,Third Party Payments,471101,Purchase of Care,01-Nov-16,3200332-2338866,"2,026.40",BISHOPSGATE LODGE.
Adult and Health Services,Head of Adults,Third Party Payments,470101,Purchase of Care,01-Nov-16,3200332-2338867,"1,949.24",BISHOPSGATE LODGE.
Adult and Health Services,Head of Adults,Third Party Payments,470101,Purchase of Care,01-Nov-16,3200332-2338868,"1,949.24",BISHOPSGATE LODGE.
Adult and Health Services,Head of Adults,Third Party Payments,471101,Purchase of Care,01-Nov-16,3200332-2338869,"2,026.40",BISHOPSGATE LODGE.
Adult and Health Services,Head of Adults,Third Party Payments,471101,Purchase of Care,01-Nov-16,3200332-2338870,"2,026.40",BISHOPSGATE LODGE.
Adult and Health Services,Head of Adults,Third Party Payments,470101,Purchase of Care,01-Nov-16,3200332-2338871,"1,949.24",BISHOPSGATE LODGE.
Adult and Health Services,Head of Adults,Third Party Payments,470101,Purchase of Care,01-Nov-16,3200332-2338872,"1,949.24",BISHOPSGATE LODGE.
Adult and Health Services,Head of Adults,Third Party Payments,474101,Purchase of Care,01-Nov-16,3200332-2338873,"2,046.60",BISHOPSGATE LODGE.
Adult and Health Services,Central/Other,Debtors,930024,Debtor-free nursing care,01-Nov-16,3200332-2338874,625,BISHOPSGATE LODGE.
Adult and Health Services,Head of Adults,Third Party Payments,470101,Purchase of Care,01-Nov-16,3200332-2338875,"1,949.24",BISHOPSGATE LODGE.
Adult and Health Services,Head of Adults,Third Party Payments,470101,Purchase of Care,01-Nov-16,3200332-2338876,"1,949.24",BISHOPSGATE LODGE.
Adult and Health Services,Head of Adults,Third Party Payments,474101,Purchase of Care,01-Nov-16,3200332-2338877,"2,046.60",BISHOPSGATE LODGE.
Adult and Health Services,Central/Other,Debtors,930024,Debtor-free nursing care,01-Nov-16,3200332-2338878,625,BISHOPSGATE LODGE.
Adult and Health Services,Head of Adults,Third Party Payments,470101,Purchase of Care,01-Nov-16,3200332-2338879,"1,949.24",BISHOPSGATE LODGE.
Adult and Health Services,Head of Adults,Third Party Payments,470102,Purchase of Care,01-Nov-16,3200332-2343379,915.07,BISHOPSGATE LODGE.
Adult and Health Services,Head of Adults,Third Party Payments,470101,Purchase of Care,01-Nov-16,3200333-2333033,"2,600.00",BONHOMIE HOUSE.
Adult and Health Services,Head of Adults,Third Party Payments,470101,Purchase of Care,01-Nov-16,3200333-2342873,"2,600.00",BONHOMIE HOUSE.
Adult and Health Services,Head of Adults,Third Party Payments,474101,Purchase of Care,01-Nov-16,3200334-2341723,"2,500.00",BOWES COURT CARE HOME.
Adult and Health Services,Head of Adults,Third Party Payments,470101,Purchase of Care,01-Nov-16,3200334-2341726,"2,222.00",BOWES COURT CARE HOME.
Adult and Health Services,Head of Adults,Third Party Payments,470101,Purchase of Care,01-Nov-16,3200334-2341727,"1,008.00",BOWES COURT CARE HOME.
Adult and Health Services,Head of Adults,Third Party Payments,470101,Purchase of Care,01-Nov-16,3200334-2341728,"2,300.00",BOWES COURT CARE HOME.
Adult and Health Services,Head of Adults,Third Party Payments,470101,Purchase of Care,01-Nov-16,3200334-2341729,"5,082.00",BOWES COURT CARE HOME.
Adult and Health Services,Central/Other,Debtors,930024,Debtor-free nursing care,01-Nov-16,3200334-2341730,625,BOWES COURT CARE HOME.
Adult and Health Services,Central/Other,Debtors,930024,Debtor-free nursing care,01-Nov-16,3200334-2341731,625,BOWES COURT CARE HOME.
Adult and Health Services,Head of Adults,Third Party Payments,474101,Purchase of Care,01-Nov-16,3200334-2341732,"3,600.00",BOWES COURT CARE HOME.
Adult and Health Services,Head of Adults,Third Party Payments,474101,Purchase of Care,01-Nov-16,3200334-2341733,"4,800.00",BOWES COURT CARE HOME.
Adult and Health Services,Central/Other,Debtors,930024,Debtor-free nursing care,01-Nov-16,3200334-2341734,625,BOWES COURT CARE HOME.
Adult and Health Services,Head of Adults,Third Party Payments,470101,Purchase of Care,01-Nov-16,3200334-2341735,"3,672.00",BOWES COURT CARE HOME.
Adult and Health Services,Head of Adults,Third Party Payments,474101,Purchase of Care,01-Nov-16,3200334-2343263,705.71,BOWES COURT CARE HOME.
Adult and Health Services,Head of Adults,Third Party Payments,474101,Purchase of Care,01-Nov-16,3200334-2343264,529.28,BOWES COURT CARE HOME.
Adult and Health Services,Head of Adults,Third Party Payments,474101,Purchase of Care,01-Nov-16,3200334-2343265,529.28,BOWES COURT CARE HOME.
Adult and Health Services,Head of Adults,Third Party Payments,474101,Purchase of Care,01-Nov-16,3200334-2343268,"4,410.71",BOWES COURT CARE HOME.
Adult and Health Services,Head of Adults,Third Party Payments,474101,Purchase of Care,01-Nov-16,3200334-2343269,705.71,BOWES COURT CARE HOME.
Adult and Health Services,Head of Adults,Third Party Payments,474101,Purchase of Care,01-Nov-16,3200334-2343273,705.71,BOWES COURT CARE HOME.
Adult and Health Services,Head of Adults,Third Party Payments,473101,Purchase of Care,01-Nov-16,3200334-2343278,982.39,BOWES COURT CARE HOME.
Adult and Health Services,Head of Adults,Third Party Payments,470101,Purchase of Care,01-Nov-16,3200335-2338643,"1,484.76",BRANCEPETH COURT.
Adult and Health Services,Head of Adults,Third Party Payments,474101,Purchase of Care,01-Nov-16,3200335-2338644,"2,156.96",BRANCEPETH COURT.
Adult and Health Services,Central/Other,Debtors,930024,Debtor-free nursing care,01-Nov-16,3200335-2338645,625,BRANCEPETH COURT.
Adult and Health Services,Head of Adults,Third Party Payments,470101,Purchase of Care,01-Nov-16,3200335-2338646,"2,059.56",BRANCEPETH COURT.
Adult and Health Services,Head of Adults,Third Party Payments,470101,Purchase of Care,01-Nov-16,3200335-2338647,"2,059.56",BRANCEPETH COURT.
Adult and Health Services,Head of Adults,Third Party Payments,470101,Purchase of Care,01-Nov-16,3200335-2338648,"2,124.52",BRANCEPETH COURT.
Adult and Health Services,Head of Adults,Third Party Payments,474101,Purchase of Care,01-Nov-16,3200335-2338650,"2,156.96",BRANCEPETH COURT.
Adult and Health Services,Central/Other,Debtors,930024,Debtor-free nursing care,01-Nov-16,3200335-2338651,625,BRANCEPETH COURT.
Adult and Health Services,Head of Adults,Third Party Payments,474101,Purchase of Care,01-Nov-16,3200335-2338652,693.3,BRANCEPETH COURT.
Adult and Health Services,Head of Adults,Third Party Payments,474101,Purchase of Care,01-Nov-16,3200335-2338654,"2,156.96",BRANCEPETH COURT.
Adult and Health Services,Central/Other,Debtors,930024,Debtor-free nursing care,01-Nov-16,3200335-2338655,625,BRANCEPETH COURT.
Adult and Health Services,Head of Adults,Third Party Payments,474101,Purchase of Care,01-Nov-16,3200335-2338656,539.24,BRANCEPETH COURT.
Adult and Health Services,Head of Adults,Third Party Payments,470101,Purchase of Care,01-Nov-16,3200335-2338658,"2,059.56",BRANCEPETH COURT.
Adult and Health Services,Head of Adults,Third Party Payments,470101,Purchase of Care,01-Nov-16,3200335-2338659,"2,059.56",BRANCEPETH COURT.
Adult and Health Services,Head of Adults,Third Party Payments,474101,Purchase of Care,01-Nov-16,3200335-2338660,"2,156.96",BRANCEPETH COURT.
Adult and Health Services,Central/Other,Debtors,930024,Debtor-free nursing care,01-Nov-16,3200335-2338661,625,BRANCEPETH COURT.
Adult and Health Services,Head of Adults,Third Party Payments,474101,Purchase of Care,01-Nov-16,3200335-2338662,"2,156.96",BRANCEPETH COURT.
Adult and Health Services,Central/Other,Debtors,930024,Debtor-free nursing care,01-Nov-16,3200335-2338663,625,BRANCEPETH COURT.
Adult and Health Services,Head of Adults,Third Party Payments,470101,Purchase of Care,01-Nov-16,3200335-2338664,"2,280.23",BRANCEPETH COURT.
Adult and Health Services,Head of Adults,Third Party Payments,474101,Purchase of Care,01-Nov-16,3200335-2338666,"2,166.20",BRANCEPETH COURT.
Adult and Health Services,Central/Other,Debtors,930024,Debtor-free nursing care,01-Nov-16,3200335-2338667,625,BRANCEPETH COURT.
Adult and Health Services,Head of Adults,Third Party Payments,470101,Purchase of Care,01-Nov-16,3200335-2338668,"2,059.56",BRANCEPETH COURT.
Adult and Health Services,Head of Adults,Third Party Payments,474101,Purchase of Care,01-Nov-16,3200335-2338669,"2,342.44",BRANCEPETH COURT.
Adult and Health Services,Central/Other,Debtors,930024,Debtor-free nursing care,01-Nov-16,3200335-2338670,625,BRANCEPETH COURT.
Adult and Health Services,Central/Other,Debtors,930024,Debtor-free nursing care,01-Nov-16,3200335-2338671,625,BRANCEPETH COURT.
Adult and Health Services,Head of Adults,Third Party Payments,470101,Purchase of Care,01-Nov-16,3200335-2338672,"2,059.56",BRANCEPETH COURT.
Adult and Health Services,Head of Adults,Third Party Payments,470101,Purchase of Care,01-Nov-16,3200335-2338673,"2,059.56",BRANCEPETH COURT.
Adult and Health Services,Head of Adults,Third Party Payments,470101,Purchase of Care,01-Nov-16,3200335-2338674,"2,124.52",BRANCEPETH COURT.
Adult and Health Services,Head of Adults,Third Party Payments,474101,Purchase of Care,01-Nov-16,3200335-2338675,"2,156.96",BRANCEPETH COURT.
Adult and Health Services,Central/Other,Debtors,930024,Debtor-free nursing care,01-Nov-16,3200335-2338676,625,BRANCEPETH COURT.
Adult and Health Services,Head of Adults,Third Party Payments,470101,Purchase of Care,01-Nov-16,3200335-2338677,"2,059.56",BRANCEPETH COURT.
Adult and Health Services,Head of Adults,Third Party Payments,474101,Purchase of Care,01-Nov-16,3200335-2338678,"2,156.96",BRANCEPETH COURT.
Adult and Health Services,Central/Other,Debtors,930024,Debtor-free nursing care,01-Nov-16,3200335-2338679,625,BRANCEPETH COURT.
Adult and Health Services,Head of Adults,Third Party Payments,470101,Purchase of Care,01-Nov-16,3200335-2338680,"2,059.56",BRANCEPETH COURT.
Adult and Health Services,Head of Adults,Third Party Payments,470101,Purchase of Care,01-Nov-16,3200335-2338681,"2,124.52",BRANCEPETH COURT.
Adult and Health Services,Head of Adults,Third Party Payments,474101,Purchase of Care,01-Nov-16,3200335-2338682,"2,156.96",BRANCEPETH COURT.
Adult and Health Services,Central/Other,Debtors,930024,Debtor-free nursing care,01-Nov-16,3200335-2338683,625,BRANCEPETH COURT.
Adult and Health Services,Head of Adults,Third Party Payments,470101,Purchase of Care,01-Nov-16,3200335-2338684,"2,124.52",BRANCEPETH COURT.
Adult and Health Services,Head of Adults,Third Party Payments,470101,Purchase of Care,01-Nov-16,3200335-2338685,"2,124.52",BRANCEPETH COURT.
Adult and Health Services,Head of Adults,Third Party Payments,470101,Purchase of Care,01-Nov-16,3200335-2338686,"2,124.52",BRANCEPETH COURT.
Adult and Health Services,Head of Adults,Third Party Payments,470101,Purchase of Care,01-Nov-16,3200335-2338687,"2,124.52",BRANCEPETH COURT.
Adult and Health Services,Head of Adults,Third Party Payments,470101,Purchase of Care,01-Nov-16,3200335-2338688,"2,124.52",BRANCEPETH COURT.
Adult and Health Services,Head of Adults,Third Party Payments,470101,Purchase of Care,01-Nov-16,3200335-2343084,"1,986.00",BRANCEPETH COURT.
Adult and Health Services,Head of Adults,Third Party Payments,474101,Purchase of Care,01-Nov-16,3200335-2343191,"1,232.54",BRANCEPETH COURT.
Adult and Health Services,Head of Adults,Third Party Payments,470101,Purchase of Care,01-Nov-16,3200335-2343193,882.66,BRANCEPETH COURT.
Adult and Health Services,Head of Adults,Third Party Payments,470101,Purchase of Care,01-Nov-16,3200335-2343194,809.11,BRANCEPETH COURT.
Adult and Health Services,Head of Adults,Third Party Payments,470101,Purchase of Care,01-Nov-16,3200335-2343196,"1,029.78",BRANCEPETH COURT.
Adult and Health Services,Head of Adults,Third Party Payments,470101,Purchase of Care,01-Nov-16,3200336-2339313,"3,898.45",BROOMHOUSE CARE LTD.
Adult and Health Services,Head of Adults,Third Party Payments,471101,Purchase of Care,01-Nov-16,3200336-2339314,"2,135.60",BROOMHOUSE CARE LTD.
Adult and Health Services,Head of Adults,Third Party Payments,471101,Purchase of Care,01-Nov-16,3200336-2339315,"1,356.88",BROOMHOUSE CARE LTD.
Adult and Health Services,Head of Adults,Third Party Payments,471101,Purchase of Care,01-Nov-16,3200336-2339316,"2,135.60",BROOMHOUSE CARE LTD.
Adult and Health Services,Head of Adults,Third Party Payments,470101,Purchase of Care,01-Nov-16,3200336-2339317,"2,059.56",BROOMHOUSE CARE LTD.
Adult and Health Services,Head of Adults,Third Party Payments,471101,Purchase of Care,01-Nov-16,3200336-2339318,"1,347.80",BROOMHOUSE CARE LTD.
Adult and Health Services,Head of Adults,Third Party Payments,470101,Purchase of Care,01-Nov-16,3200336-2339320,"1,611.40",BROOMHOUSE CARE LTD.
Adult and Health Services,Head of Adults,Third Party Payments,471101,Purchase of Care,01-Nov-16,3200336-2339321,"2,135.60",BROOMHOUSE CARE LTD.
Adult and Health Services,Head of Adults,Third Party Payments,471101,Purchase of Care,01-Nov-16,3200336-2339322,"2,135.60",BROOMHOUSE CARE LTD.
Adult and Health Services,Head of Adults,Third Party Payments,470101,Purchase of Care,01-Nov-16,3200336-2339323,"1,453.96",BROOMHOUSE CARE LTD.
Adult and Health Services,Head of Adults,Third Party Payments,471101,Purchase of Care,01-Nov-16,3200336-2339324,"1,312.40",BROOMHOUSE CARE LTD.
Adult and Health Services,Head of Adults,Third Party Payments,470101,Purchase of Care,01-Nov-16,3200336-2339325,"1,301.36",BROOMHOUSE CARE LTD.
Adult and Health Services,Head of Adults,Third Party Payments,471101,Purchase of Care,01-Nov-16,3200336-2339326,"1,417.72",BROOMHOUSE CARE LTD.
Adult and Health Services,Head of Adults,Third Party Payments,470101,Purchase of Care,01-Nov-16,3200336-2339327,"2,059.56",BROOMHOUSE CARE LTD.
Adult and Health Services,Head of Adults,Third Party Payments,471101,Purchase of Care,01-Nov-16,3200336-2339328,"1,672.80",BROOMHOUSE CARE LTD.
Adult and Health Services,Head of Adults,Third Party Payments,470101,Purchase of Care,01-Nov-16,3200336-2339329,"1,536.76",BROOMHOUSE CARE LTD.
Adult and Health Services,Head of Adults,Third Party Payments,471101,Purchase of Care,01-Nov-16,3200336-2339330,"1,187.16",BROOMHOUSE CARE LTD.
Adult and Health Services,Head of Adults,Third Party Payments,471101,Purchase of Care,01-Nov-16,3200336-2343708,"2,135.60",BROOMHOUSE CARE LTD.
Adult and Health Services,Head of Adults,Third Party Payments,474101,Purchase of Care,01-Nov-16,3200337-2340637,"1,961.12",BURLINGTON CARE LTD T/A MAPLE LODGE CARE HOME.
Adult and Health Services,Head of Adults,Third Party Payments,478101,Purchase of Care,01-Nov-16,3200338-2342517,"1,396.24",REDACTED - PAYMENT TO INDIVIDUAL
Adult and Health Services,Head of Adults,Third Party Payments,470101,Purchase of Care,01-Nov-16,3200339-2338637,"1,972.00",CARE UK..
Adult and Health Services,Head of Adults,Third Party Payments,474101,Purchase of Care,01-Nov-16,3200339-2338638,"1,972.00",CARE UK..
Adult and Health Services,Head of Adults,Third Party Payments,470101,Purchase of Care,01-Nov-16,3200339-2338639,"1,972.00",CARE UK..
Adult and Health Services,Head of Adults,Third Party Payments,470101,Purchase of Care,01-Nov-16,3200339-2338640,"1,972.00",CARE UK..
Adult and Health Services,Head of Adults,Third Party Payments,470101,Purchase of Care,01-Nov-16,3200340-2342317,"1,655.20",CARE UK..
Adult and Health Services,Head of Adults,Third Party Payments,471101,Purchase of Care,01-Nov-16,3200340-2342318,"1,818.96",CARE UK..
Adult and Health Services,Head of Adults,Third Party Payments,471101,Purchase of Care,01-Nov-16,3200340-2342319,"1,818.96",CARE UK..
Adult and Health Services,Head of Adults,Third Party Payments,470101,Purchase of Care,01-Nov-16,3200341-2340220,"1,623.85",CARE UK..
Adult and Health Services,Head of Adults,Third Party Payments,474101,Purchase of Care,01-Nov-16,3200342-2342756,"6,954.40",CARELINE LIFESTYLES (UK) LTD.
Adult and Health Services,Head of Adults,Third Party Payments,474101,Purchase of Care,01-Nov-16,3200342-2342757,"3,908.00",CARELINE LIFESTYLES (UK) LTD.
Adult and Health Services,Head of Adults,Third Party Payments,474101,Purchase of Care,01-Nov-16,3200342-2342758,"5,400.00",CARELINE LIFESTYLES (UK) LTD.
Adult and Health Services,Head of Adults,Third Party Payments,474101,Purchase of Care,01-Nov-16,3200342-2342759,"2,300.00",CARELINE LIFESTYLES (UK) LTD.
Adult and Health Services,Head of Adults,Third Party Payments,474101,Purchase of Care,01-Nov-16,3200343-2341704,"2,694.00",CARELINE LIFESTYLES (UK) LTD.
Adult and Health Services,Central/Other,Debtors,930024,Debtor-free nursing care,01-Nov-16,3200343-2341705,625,CARELINE LIFESTYLES (UK) LTD.
Adult and Health Services,Head of Adults,Third Party Payments,470101,Purchase of Care,01-Nov-16,3200343-2341706,"2,500.00",CARELINE LIFESTYLES (UK) LTD.
Adult and Health Services,Head of Adults,Third Party Payments,470101,Purchase of Care,01-Nov-16,3200343-2341707,"2,016.00",CARELINE LIFESTYLES (UK) LTD.
Adult and Health Services,Head of Adults,Third Party Payments,470101,Purchase of Care,01-Nov-16,3200344-2341365,"2,461.68",CARELINE LIFESTYLES (UK) LTD.
Adult and Health Services,Head of Adults,Third Party Payments,474101,Purchase of Care,01-Nov-16,3200345-2342510,"4,800.00",CARELINE LIFESTYLES (UK) LTD.
Adult and Health Services,Head of Adults,Third Party Payments,474101,Purchase of Care,01-Nov-16,3200345-2342511,"2,808.00",CARELINE LIFESTYLES (UK) LTD.
Adult and Health Services,Head of Adults,Third Party Payments,474101,Purchase of Care,01-Nov-16,3200346-2336715,"1,860.00",CEDAR LODGE CARE HOME.
Adult and Health Services,Head of Adults,Third Party Payments,471101,Purchase of Care,01-Nov-16,3200347-2342892,"1,909.84",CHHG LTD T/A GILDAWOOD COURT CARE HOME.
Adult and Health Services,Head of Adults,Third Party Payments,470101,Purchase of Care,01-Nov-16,3200348-2341609,"1,527.67",CHILTON CARE CENTRE.
Adult and Health Services,Head of Adults,Third Party Payments,471101,Purchase of Care,01-Nov-16,3200348-2341610,"1,612.80",CHILTON CARE CENTRE.
Adult and Health Services,Head of Adults,Third Party Payments,470101,Purchase of Care,01-Nov-16,3200348-2341611,"2,059.56",CHILTON CARE CENTRE.
Adult and Health Services,Head of Adults,Third Party Payments,471101,Purchase of Care,01-Nov-16,3200348-2341612,"1,547.00",CHILTON CARE CENTRE.
Adult and Health Services,Head of Adults,Third Party Payments,470101,Purchase of Care,01-Nov-16,3200348-2341613,"1,281.96",CHILTON CARE CENTRE.
Adult and Health Services,Head of Adults,Third Party Payments,471101,Purchase of Care,01-Nov-16,3200348-2341614,"2,135.60",CHILTON CARE CENTRE.
Adult and Health Services,Head of Adults,Third Party Payments,471101,Purchase of Care,01-Nov-16,3200348-2341616,"1,635.80",CHILTON CARE CENTRE.
Adult and Health Services,Head of Adults,Third Party Payments,471101,Purchase of Care,01-Nov-16,3200348-2341617,765.49,CHILTON CARE CENTRE.
Adult and Health Services,Head of Adults,Third Party Payments,470101,Purchase of Care,01-Nov-16,3200348-2341618,"2,059.56",CHILTON CARE CENTRE.
Adult and Health Services,Head of Adults,Third Party Payments,471101,Purchase of Care,01-Nov-16,3200348-2341619,"2,135.60",CHILTON CARE CENTRE.
Adult and Health Services,Head of Adults,Third Party Payments,470101,Purchase of Care,01-Nov-16,3200348-2341621,"1,584.96",CHILTON CARE CENTRE.
Adult and Health Services,Head of Adults,Third Party Payments,471101,Purchase of Care,01-Nov-16,3200348-2341622,"1,367.84",CHILTON CARE CENTRE.
Adult and Health Services,Head of Adults,Third Party Payments,470101,Purchase of Care,01-Nov-16,3200348-2341623,"1,103.33",CHILTON CARE CENTRE.
Adult and Health Services,Head of Adults,Third Party Payments,470101,Purchase of Care,01-Nov-16,3200348-2341625,"2,059.56",CHILTON CARE CENTRE.
Adult and Health Services,Head of Adults,Third Party Payments,470101,Purchase of Care,01-Nov-16,3200348-2341626,"2,059.56",CHILTON CARE CENTRE.
Adult and Health Services,Head of Adults,Third Party Payments,471101,Purchase of Care,01-Nov-16,3200348-2341627,"1,249.76",CHILTON CARE CENTRE.
Adult and Health Services,Head of Adults,Third Party Payments,470101,Purchase of Care,01-Nov-16,3200348-2341628,"1,536.76",CHILTON CARE CENTRE.
Adult and Health Services,Head of Adults,Third Party Payments,471101,Purchase of Care,01-Nov-16,3200348-2341629,"1,595.12",CHILTON CARE CENTRE.
Adult and Health Services,Head of Adults,Third Party Payments,470101,Purchase of Care,01-Nov-16,3200348-2341630,"1,492.16",CHILTON CARE CENTRE.
Adult and Health Services,Head of Adults,Third Party Payments,471101,Purchase of Care,01-Nov-16,3200348-2341631,"1,445.20",CHILTON CARE CENTRE.
Adult and Health Services,Head of Adults,Third Party Payments,471101,Purchase of Care,01-Nov-16,3200348-2341632,"2,135.60",CHILTON CARE CENTRE.
Adult and Health Services,Head of Adults,Third Party Payments,471101,Purchase of Care,01-Nov-16,3200348-2341633,"2,135.60",CHILTON CARE CENTRE.
Adult and Health Services,Head of Adults,Third Party Payments,471101,Purchase of Care,01-Nov-16,3200348-2341634,"1,298.40",CHILTON CARE CENTRE.
Adult and Health Services,Head of Adults,Third Party Payments,470101,Purchase of Care,01-Nov-16,3200348-2341635,"1,467.96",CHILTON CARE CENTRE.
Adult and Health Services,Head of Adults,Third Party Payments,470101,Purchase of Care,01-Nov-16,3200348-2341636,"1,505.28",CHILTON CARE CENTRE.
Adult and Health Services,Head of Adults,Third Party Payments,470101,Purchase of Care,01-Nov-16,3200348-2341637,"1,289.72",CHILTON CARE CENTRE.
Adult and Health Services,Head of Adults,Third Party Payments,470101,Purchase of Care,01-Nov-16,3200348-2341638,"2,059.56",CHILTON CARE CENTRE.
Adult and Health Services,Head of Adults,Third Party Payments,471101,Purchase of Care,01-Nov-16,3200348-2341639,"1,612.80",CHILTON CARE CENTRE.
Adult and Health Services,Head of Adults,Third Party Payments,471101,Purchase of Care,01-Nov-16,3200348-2341640,"1,305.24",CHILTON CARE CENTRE.
Adult and Health Services,Head of Adults,Third Party Payments,471101,Purchase of Care,01-Nov-16,3200348-2341641,"2,135.60",CHILTON CARE CENTRE.
Adult and Health Services,Head of Adults,Third Party Payments,471101,Purchase of Care,01-Nov-16,3200348-2341642,"2,135.60",CHILTON CARE CENTRE.
Adult and Health Services,Head of Adults,Third Party Payments,471101,Purchase of Care,01-Nov-16,3200348-2341643,"1,612.80",CHILTON CARE CENTRE.
Adult and Health Services,Head of Adults,Third Party Payments,471101,Purchase of Care,01-Nov-16,3200348-2341644,"1,612.80",CHILTON CARE CENTRE.
Adult and Health Services,Head of Adults,Third Party Payments,470101,Purchase of Care,01-Nov-16,3200348-2341645,"1,408.56",CHILTON CARE CENTRE.
Adult and Health Services,Head of Adults,Third Party Payments,471101,Purchase of Care,01-Nov-16,3200348-2343318,915.25,CHILTON CARE CENTRE.
Adult and Health Services,Head of Adults,Third Party Payments,470101,Purchase of Care,01-Nov-16,3200348-2343320,956.22,CHILTON CARE CENTRE.
Adult and Health Services,Head of Adults,Third Party Payments,471101,Purchase of Care,01-Nov-16,3200349-2342882,"2,252.00",CHRISTIAN HEAD CARE HOME.
Adult and Health Services,Head of Adults,Third Party Payments,470101,Purchase of Care,01-Nov-16,3200350-2341340,"2,059.56",CHURCH VIEW CARE HOME.
Adult and Health Services,Head of Adults,Third Party Payments,471101,Purchase of Care,01-Nov-16,3200350-2341341,"2,135.60",CHURCH VIEW CARE HOME.
Adult and Health Services,Head of Adults,Third Party Payments,471101,Purchase of Care,01-Nov-16,3200350-2341342,"2,135.60",CHURCH VIEW CARE HOME.
Adult and Health Services,Head of Adults,Third Party Payments,471101,Purchase of Care,01-Nov-16,3200350-2341343,"2,135.60",CHURCH VIEW CARE HOME.
Adult and Health Services,Head of Adults,Third Party Payments,470101,Purchase of Care,01-Nov-16,3200350-2341344,"2,059.56",CHURCH VIEW CARE HOME.
Adult and Health Services,Head of Adults,Third Party Payments,471101,Purchase of Care,01-Nov-16,3200350-2341346,"2,135.60",CHURCH VIEW CARE HOME.
Adult and Health Services,Head of Adults,Third Party Payments,470101,Purchase of Care,01-Nov-16,3200350-2341347,"2,059.56",CHURCH VIEW CARE HOME.
Adult and Health Services,Head of Adults,Third Party Payments,471101,Purchase of Care,01-Nov-16,3200350-2341348,"2,135.60",CHURCH VIEW CARE HOME.
Adult and Health Services,Head of Adults,Third Party Payments,471101,Purchase of Care,01-Nov-16,3200350-2341349,"2,135.60",CHURCH VIEW CARE HOME.
Adult and Health Services,Head of Adults,Third Party Payments,471101,Purchase of Care,01-Nov-16,3200350-2341350,"2,135.60",CHURCH VIEW CARE HOME.
Adult and Health Services,Head of Adults,Third Party Payments,470101,Purchase of Care,01-Nov-16,3200350-2341351,"2,059.56",CHURCH VIEW CARE HOME.
Adult and Health Services,Head of Adults,Third Party Payments,470101,Purchase of Care,01-Nov-16,3200350-2341352,"2,059.56",CHURCH VIEW CARE HOME.
Adult and Health Services,Head of Adults,Third Party Payments,471101,Purchase of Care,01-Nov-16,3200350-2341353,"2,135.60",CHURCH VIEW CARE HOME.
Adult and Health Services,Head of Adults,Third Party Payments,471101,Purchase of Care,01-Nov-16,3200350-2341354,"2,135.60",CHURCH VIEW CARE HOME.
Adult and Health Services,Head of Adults,Third Party Payments,470101,Purchase of Care,01-Nov-16,3200350-2341355,"2,059.56",CHURCH VIEW CARE HOME.
Adult and Health Services,Head of Adults,Third Party Payments,470101,Purchase of Care,01-Nov-16,3200350-2341356,"2,059.56",CHURCH VIEW CARE HOME.
Adult and Health Services,Head of Adults,Third Party Payments,471101,Purchase of Care,01-Nov-16,3200350-2341357,"2,135.60",CHURCH VIEW CARE HOME.
Adult and Health Services,Head of Adults,Third Party Payments,470101,Purchase of Care,01-Nov-16,3200350-2341358,"2,059.56",CHURCH VIEW CARE HOME.
Adult and Health Services,Head of Adults,Third Party Payments,470101,Purchase of Care,01-Nov-16,3200350-2341359,"2,059.56",CHURCH VIEW CARE HOME.
Adult and Health Services,Head of Adults,Third Party Payments,471101,Purchase of Care,01-Nov-16,3200350-2341360,"2,135.60",CHURCH VIEW CARE HOME.
Adult and Health Services,Head of Adults,Third Party Payments,470101,Purchase of Care,01-Nov-16,3200350-2341361,"2,059.56",CHURCH VIEW CARE HOME.
Adult and Health Services,Head of Adults,Third Party Payments,471101,Purchase of Care,01-Nov-16,3200350-2341362,"2,135.60",CHURCH VIEW CARE HOME.
Adult and Health Services,Head of Adults,Third Party Payments,470101,Purchase of Care,01-Nov-16,3200350-2341363,"2,059.56",CHURCH VIEW CARE HOME.
Adult and Health Services,Head of Adults,Third Party Payments,470101,Purchase of Care,01-Nov-16,3200350-2341364,"2,059.56",CHURCH VIEW CARE HOME.
Adult and Health Services,Head of Adults,Third Party Payments,470101,Purchase of Care,01-Nov-16,3200350-2343136,514.89,CHURCH VIEW CARE HOME.
Adult and Health Services,Head of Adults,Third Party Payments,471101,Purchase of Care,01-Nov-16,3200351-2342275,"1,013.20",CHURCH VIEW RESIDENTIAL CARE HOME.
Adult and Health Services,Head of Adults,Third Party Payments,471101,Purchase of Care,01-Nov-16,3200351-2342276,"2,026.40",CHURCH VIEW RESIDENTIAL CARE HOME.
Adult and Health Services,Head of Adults,Third Party Payments,471101,Purchase of Care,01-Nov-16,3200351-2342277,"2,026.40",CHURCH VIEW RESIDENTIAL CARE HOME.
Adult and Health Services,Head of Adults,Third Party Payments,471101,Purchase of Care,01-Nov-16,3200351-2342278,"2,026.40",CHURCH VIEW RESIDENTIAL CARE HOME.
Adult and Health Services,Head of Adults,Third Party Payments,470101,Purchase of Care,01-Nov-16,3200351-2342279,"1,949.24",CHURCH VIEW RESIDENTIAL CARE HOME.
Adult and Health Services,Head of Adults,Third Party Payments,471101,Purchase of Care,01-Nov-16,3200351-2342280,"10,493.86",CHURCH VIEW RESIDENTIAL CARE HOME.
Adult and Health Services,Head of Adults,Third Party Payments,470101,Purchase of Care,01-Nov-16,3200351-2342281,"1,949.24",CHURCH VIEW RESIDENTIAL CARE HOME.
Adult and Health Services,Head of Adults,Third Party Payments,471101,Purchase of Care,01-Nov-16,3200351-2342283,"2,026.40",CHURCH VIEW RESIDENTIAL CARE HOME.
Adult and Health Services,Head of Adults,Third Party Payments,471101,Purchase of Care,01-Nov-16,3200351-2342284,"2,026.40",CHURCH VIEW RESIDENTIAL CARE HOME.
Adult and Health Services,Head of Adults,Third Party Payments,471101,Purchase of Care,01-Nov-16,3200351-2342285,506.6,CHURCH VIEW RESIDENTIAL CARE HOME.
Adult and Health Services,Head of Adults,Third Party Payments,471101,Purchase of Care,01-Nov-16,3200351-2342286,"2,026.40",CHURCH VIEW RESIDENTIAL CARE HOME.
Adult and Health Services,Head of Adults,Third Party Payments,470101,Purchase of Care,01-Nov-16,3200351-2342287,974.64,CHURCH VIEW RESIDENTIAL CARE HOME.
Adult and Health Services,Head of Adults,Third Party Payments,471101,Purchase of Care,01-Nov-16,3200351-2342288,"2,026.40",CHURCH VIEW RESIDENTIAL CARE HOME.
Adult and Health Services,Head of Adults,Third Party Payments,471101,Purchase of Care,01-Nov-16,3200351-2342289,"1,013.20",CHURCH VIEW RESIDENTIAL CARE HOME.
Adult and Health Services,Head of Adults,Third Party Payments,471101,Purchase of Care,01-Nov-16,3200351-2342290,"2,026.40",CHURCH VIEW RESIDENTIAL CARE HOME.
Adult and Health Services,Head of Adults,Third Party Payments,470101,Purchase of Care,01-Nov-16,3200351-2342291,"1,949.24",CHURCH VIEW RESIDENTIAL CARE HOME.
Adult and Health Services,Head of Adults,Third Party Payments,471101,Purchase of Care,01-Nov-16,3200351-2342292,"2,026.40",CHURCH VIEW RESIDENTIAL CARE HOME.
Adult and Health Services,Head of Adults,Third Party Payments,471101,Purchase of Care,01-Nov-16,3200351-2342293,"2,026.40",CHURCH VIEW RESIDENTIAL CARE HOME.
Adult and Health Services,Head of Adults,Third Party Payments,470101,Purchase of Care,01-Nov-16,3200351-2342294,"1,949.24",CHURCH VIEW RESIDENTIAL CARE HOME.
Adult and Health Services,Head of Adults,Third Party Payments,471101,Purchase of Care,01-Nov-16,3200351-2342295,"2,026.40",CHURCH VIEW RESIDENTIAL CARE HOME.
Adult and Health Services,Head of Adults,Third Party Payments,470101,Purchase of Care,01-Nov-16,3200351-2342296,"1,949.24",CHURCH VIEW RESIDENTIAL CARE HOME.
Adult and Health Services,Head of Adults,Third Party Payments,470101,Purchase of Care,01-Nov-16,3200351-2342297,"1,949.24",CHURCH VIEW RESIDENTIAL CARE HOME.
Adult and Health Services,Head of Adults,Third Party Payments,471101,Purchase of Care,01-Nov-16,3200351-2342298,"2,026.40",CHURCH VIEW RESIDENTIAL CARE HOME.
Adult and Health Services,Head of Adults,Third Party Payments,471101,Purchase of Care,01-Nov-16,3200351-2342299,"2,026.40",CHURCH VIEW RESIDENTIAL CARE HOME.
Adult and Health Services,Head of Adults,Third Party Payments,470101,Purchase of Care,01-Nov-16,3200351-2342300,"1,949.24",CHURCH VIEW RESIDENTIAL CARE HOME.
Adult and Health Services,Head of Adults,Third Party Payments,470101,Purchase of Care,01-Nov-16,3200351-2342301,"1,949.24",CHURCH VIEW RESIDENTIAL CARE HOME.
Adult and Health Services,Head of Adults,Third Party Payments,470101,Purchase of Care,01-Nov-16,3200351-2342302,"1,949.24",CHURCH VIEW RESIDENTIAL CARE HOME.
Adult and Health Services,Head of Adults,Third Party Payments,471101,Purchase of Care,01-Nov-16,3200351-2342303,"2,026.40",CHURCH VIEW RESIDENTIAL CARE HOME.
Adult and Health Services,Head of Adults,Third Party Payments,470101,Purchase of Care,01-Nov-16,3200351-2342304,"1,949.24",CHURCH VIEW RESIDENTIAL CARE HOME.
Adult and Health Services,Head of Adults,Third Party Payments,471101,Purchase of Care,01-Nov-16,3200351-2342305,"2,026.40",CHURCH VIEW RESIDENTIAL CARE HOME.
Adult and Health Services,Head of Adults,Third Party Payments,471101,Purchase of Care,01-Nov-16,3200351-2342306,"2,026.40",CHURCH VIEW RESIDENTIAL CARE HOME.
Adult and Health Services,Head of Adults,Third Party Payments,471101,Purchase of Care,01-Nov-16,3200351-2342307,"2,026.40",CHURCH VIEW RESIDENTIAL CARE HOME.
Adult and Health Services,Head of Adults,Third Party Payments,470101,Purchase of Care,01-Nov-16,3200351-2342308,"1,949.24",CHURCH VIEW RESIDENTIAL CARE HOME.
Adult and Health Services,Head of Adults,Third Party Payments,471101,Purchase of Care,01-Nov-16,3200351-2342309,"2,026.40",CHURCH VIEW RESIDENTIAL CARE HOME.
Adult and Health Services,Head of Adults,Third Party Payments,470101,Purchase of Care,01-Nov-16,3200351-2342310,"1,949.24",CHURCH VIEW RESIDENTIAL CARE HOME.
Adult and Health Services,Head of Adults,Third Party Payments,470101,Purchase of Care,01-Nov-16,3200351-2342311,"1,949.24",CHURCH VIEW RESIDENTIAL CARE HOME.
Adult and Health Services,Head of Adults,Third Party Payments,471101,Purchase of Care,01-Nov-16,3200351-2342312,"2,026.40",CHURCH VIEW RESIDENTIAL CARE HOME.
Adult and Health Services,Head of Adults,Third Party Payments,470101,Purchase of Care,01-Nov-16,3200351-2342313,"1,949.24",CHURCH VIEW RESIDENTIAL CARE HOME.
Adult and Health Services,Head of Adults,Third Party Payments,470101,Purchase of Care,01-Nov-16,3200351-2342315,"1,949.24",CHURCH VIEW RESIDENTIAL CARE HOME.
Adult and Health Services,Head of Adults,Third Party Payments,471101,Purchase of Care,01-Nov-16,3200351-2342316,"2,026.40",CHURCH VIEW RESIDENTIAL CARE HOME.
Adult and Health Services,Head of Adults,Third Party Payments,471101,Purchase of Care,01-Nov-16,3200351-2343516,"1,881.65",CHURCH VIEW RESIDENTIAL CARE HOME.
Adult and Health Services,Head of Adults,Third Party Payments,474101,Purchase of Care,01-Nov-16,3200354-2342906,"1,950.76",COUNTRYWIDE CARE HOMES T/A HOWGATE HOUSE CARE HOME.
Adult and Health Services,Head of Adults,Third Party Payments,471101,Purchase of Care,01-Nov-16,3200355-2342688,"1,058.00",COVENT HOUSE.
Adult and Health Services,Head of Adults,Third Party Payments,474101,Purchase of Care,01-Nov-16,3200355-2342689,"2,116.00",COVENT HOUSE.
Adult and Health Services,Head of Adults,Third Party Payments,471101,Purchase of Care,01-Nov-16,3200355-2342690,"1,058.00",COVENT HOUSE.
Adult and Health Services,Head of Adults,Third Party Payments,470101,Purchase of Care,01-Nov-16,3200355-2342691,"2,048.00",COVENT HOUSE.
Adult and Health Services,Head of Adults,Third Party Payments,474101,Purchase of Care,01-Nov-16,3200355-2342692,"2,116.00",COVENT HOUSE.
Adult and Health Services,Head of Adults,Third Party Payments,474101,Purchase of Care,01-Nov-16,3200355-2342693,"2,048.00",COVENT HOUSE.
Adult and Health Services,Head of Adults,Third Party Payments,470101,Purchase of Care,01-Nov-16,3200355-2342694,"2,048.00",COVENT HOUSE.
Adult and Health Services,Head of Adults,Third Party Payments,474101,Purchase of Care,01-Nov-16,3200355-2342695,"2,048.00",COVENT HOUSE.
Adult and Health Services,Head of Adults,Third Party Payments,474101,Purchase of Care,01-Nov-16,3200355-2342696,"2,048.00",COVENT HOUSE.
Adult and Health Services,Head of Adults,Third Party Payments,471101,Purchase of Care,01-Nov-16,3200355-2342697,"1,058.00",COVENT HOUSE.
Adult and Health Services,Head of Adults,Third Party Payments,474101,Purchase of Care,01-Nov-16,3200355-2342698,"2,116.00",COVENT HOUSE.
Adult and Health Services,Head of Adults,Third Party Payments,474101,Purchase of Care,01-Nov-16,3200355-2343492,"6,582.86",COVENT HOUSE.
Adult and Health Services,Head of Adults,Third Party Payments,471101,Purchase of Care,01-Nov-16,3200356-2341917,"1,896.00",COVERAGE CARE SERVICES LTD/COTON HILL HOUSE.
Adult and Health Services,Head of Adults,Third Party Payments,474101,Purchase of Care,01-Nov-16,3200357-2340436,"1,078.48",CRAIGARRAN CARE HOME WITH NURSING.
Adult and Health Services,Head of Adults,Third Party Payments,474101,Purchase of Care,01-Nov-16,3200357-2340438,"2,156.96",CRAIGARRAN CARE HOME WITH NURSING.
Adult and Health Services,Central/Other,Debtors,930024,Debtor-free nursing care,01-Nov-16,3200357-2340439,625,CRAIGARRAN CARE HOME WITH NURSING.
Adult and Health Services,Head of Adults,Third Party Payments,474101,Purchase of Care,01-Nov-16,3200357-2340442,"2,156.96",CRAIGARRAN CARE HOME WITH NURSING.
Adult and Health Services,Central/Other,Debtors,930024,Debtor-free nursing care,01-Nov-16,3200357-2340443,625,CRAIGARRAN CARE HOME WITH NURSING.
Adult and Health Services,Head of Adults,Third Party Payments,471101,Purchase of Care,01-Nov-16,3200357-2340444,"1,067.80",CRAIGARRAN CARE HOME WITH NURSING.
Adult and Health Services,Head of Adults,Third Party Payments,474101,Purchase of Care,01-Nov-16,3200357-2340445,"1,078.48",CRAIGARRAN CARE HOME WITH NURSING.
Adult and Health Services,Head of Adults,Third Party Payments,474101,Purchase of Care,01-Nov-16,3200357-2340447,"2,156.96",CRAIGARRAN CARE HOME WITH NURSING.
Adult and Health Services,Central/Other,Debtors,930024,Debtor-free nursing care,01-Nov-16,3200357-2340448,625,CRAIGARRAN CARE HOME WITH NURSING.
Adult and Health Services,Head of Adults,Third Party Payments,474101,Purchase of Care,01-Nov-16,3200357-2340449,"1,078.48",CRAIGARRAN CARE HOME WITH NURSING.
Adult and Health Services,Head of Adults,Third Party Payments,474101,Purchase of Care,01-Nov-16,3200357-2340450,"4,773.60",CRAIGARRAN CARE HOME WITH NURSING.
Adult and Health Services,Head of Adults,Third Party Payments,474101,Purchase of Care,01-Nov-16,3200357-2340452,"2,156.96",CRAIGARRAN CARE HOME WITH NURSING.
Adult and Health Services,Central/Other,Debtors,930024,Debtor-free nursing care,01-Nov-16,3200357-2340453,625,CRAIGARRAN CARE HOME WITH NURSING.
Adult and Health Services,Head of Adults,Third Party Payments,474101,Purchase of Care,01-Nov-16,3200357-2340454,"2,156.96",CRAIGARRAN CARE HOME WITH NURSING.
Adult and Health Services,Central/Other,Debtors,930024,Debtor-free nursing care,01-Nov-16,3200357-2340455,625,CRAIGARRAN CARE HOME WITH NURSING.
Adult and Health Services,Head of Adults,Third Party Payments,474101,Purchase of Care,01-Nov-16,3200357-2340456,"2,156.96",CRAIGARRAN CARE HOME WITH NURSING.
Adult and Health Services,Central/Other,Debtors,930024,Debtor-free nursing care,01-Nov-16,3200357-2340457,625,CRAIGARRAN CARE HOME WITH NURSING.
Adult and Health Services,Head of Adults,Third Party Payments,471101,Purchase of Care,01-Nov-16,3200357-2340458,"2,135.60",CRAIGARRAN CARE HOME WITH NURSING.
Adult and Health Services,Central/Other,Debtors,930024,Debtor-free nursing care,01-Nov-16,3200357-2340459,625,CRAIGARRAN CARE HOME WITH NURSING.
Adult and Health Services,Head of Adults,Third Party Payments,474101,Purchase of Care,01-Nov-16,3200357-2340460,"2,156.96",CRAIGARRAN CARE HOME WITH NURSING.
Adult and Health Services,Central/Other,Debtors,930024,Debtor-free nursing care,01-Nov-16,3200357-2340461,625,CRAIGARRAN CARE HOME WITH NURSING.
Adult and Health Services,Head of Adults,Third Party Payments,470101,Purchase of Care,01-Nov-16,3200357-2340462,"2,059.56",CRAIGARRAN CARE HOME WITH NURSING.
Adult and Health Services,Head of Adults,Third Party Payments,470101,Purchase of Care,01-Nov-16,3200357-2340463,"2,059.56",CRAIGARRAN CARE HOME WITH NURSING.
Adult and Health Services,Central/Other,Debtors,930024,Debtor-free nursing care,01-Nov-16,3200357-2340464,625,CRAIGARRAN CARE HOME WITH NURSING.
Adult and Health Services,Head of Adults,Third Party Payments,474101,Purchase of Care,01-Nov-16,3200357-2340465,"2,156.96",CRAIGARRAN CARE HOME WITH NURSING.
Adult and Health Services,Central/Other,Debtors,930024,Debtor-free nursing care,01-Nov-16,3200357-2340466,625,CRAIGARRAN CARE HOME WITH NURSING.
Adult and Health Services,Head of Adults,Third Party Payments,470101,Purchase of Care,01-Nov-16,3200357-2340467,"2,059.56",CRAIGARRAN CARE HOME WITH NURSING.
Adult and Health Services,Head of Adults,Third Party Payments,474101,Purchase of Care,01-Nov-16,3200357-2340468,"2,156.96",CRAIGARRAN CARE HOME WITH NURSING.
Adult and Health Services,Central/Other,Debtors,930024,Debtor-free nursing care,01-Nov-16,3200357-2340469,625,CRAIGARRAN CARE HOME WITH NURSING.
Adult and Health Services,Head of Adults,Third Party Payments,474101,Purchase of Care,01-Nov-16,3200357-2340470,"2,156.96",CRAIGARRAN CARE HOME WITH NURSING.
Adult and Health Services,Central/Other,Debtors,930024,Debtor-free nursing care,01-Nov-16,3200357-2340471,625,CRAIGARRAN CARE HOME WITH NURSING.
Adult and Health Services,Head of Adults,Third Party Payments,470101,Purchase of Care,01-Nov-16,3200357-2340472,"2,059.56",CRAIGARRAN CARE HOME WITH NURSING.
Adult and Health Services,Head of Adults,Third Party Payments,471101,Purchase of Care,01-Nov-16,3200357-2340473,"2,135.60",CRAIGARRAN CARE HOME WITH NURSING.
Adult and Health Services,Head of Adults,Third Party Payments,474101,Purchase of Care,01-Nov-16,3200357-2340474,"2,156.96",CRAIGARRAN CARE HOME WITH NURSING.
Adult and Health Services,Central/Other,Debtors,930024,Debtor-free nursing care,01-Nov-16,3200357-2340475,625,CRAIGARRAN CARE HOME WITH NURSING.
Adult and Health Services,Head of Adults,Third Party Payments,470101,Purchase of Care,01-Nov-16,3200357-2340476,"2,059.56",CRAIGARRAN CARE HOME WITH NURSING.
Adult and Health Services,Head of Adults,Third Party Payments,474101,Purchase of Care,01-Nov-16,3200357-2343321,"2,156.96",CRAIGARRAN CARE HOME WITH NURSING.
Adult and Health Services,Head of Adults,Third Party Payments,474101,Purchase of Care,01-Nov-16,3200357-2343322,"1,804.46",CRAIGARRAN CARE HOME WITH NURSING.
Adult and Health Services,Head of Adults,Third Party Payments,474101,Purchase of Care,01-Nov-16,3200357-2343323,773.87,CRAIGARRAN CARE HOME WITH NURSING.
Adult and Health Services,Central/Other,Debtors,930024,Debtor-free nursing care,01-Nov-16,3200357-2343324,625,CRAIGARRAN CARE HOME WITH NURSING.
Adult and Health Services,Head of Adults,Third Party Payments,470101,Purchase of Care,01-Nov-16,3200358-2342013,"1,986.00",CROFT HOUSE RESIDENTIAL HOME.
Adult and Health Services,Head of Adults,Third Party Payments,474101,Purchase of Care,01-Nov-16,3200358-2342014,616.27,CROFT HOUSE RESIDENTIAL HOME.
Adult and Health Services,Head of Adults,Third Party Payments,471101,Purchase of Care,01-Nov-16,3200358-2342016,"1,067.79",CROFT HOUSE RESIDENTIAL HOME.
Adult and Health Services,Head of Adults,Third Party Payments,470101,Purchase of Care,01-Nov-16,3200358-2342017,956.22,CROFT HOUSE RESIDENTIAL HOME.
Adult and Health Services,Head of Adults,Third Party Payments,471101,Purchase of Care,01-Nov-16,3200358-2342018,"2,135.60",CROFT HOUSE RESIDENTIAL HOME.
Adult and Health Services,Head of Adults,Third Party Payments,470101,Purchase of Care,01-Nov-16,3200358-2342019,"2,059.56",CROFT HOUSE RESIDENTIAL HOME.
Adult and Health Services,Head of Adults,Third Party Payments,471101,Purchase of Care,01-Nov-16,3200358-2342020,"1,601.70",CROFT HOUSE RESIDENTIAL HOME.
Adult and Health Services,Head of Adults,Third Party Payments,470101,Purchase of Care,01-Nov-16,3200358-2342021,"2,059.56",CROFT HOUSE RESIDENTIAL HOME.
Adult and Health Services,Head of Adults,Third Party Payments,474101,Purchase of Care,01-Nov-16,3200358-2342022,"1,597.52",CROFT HOUSE RESIDENTIAL HOME.
Adult and Health Services,Central/Other,Debtors,930024,Debtor-free nursing care,01-Nov-16,3200358-2342023,625,CROFT HOUSE RESIDENTIAL HOME.
Adult and Health Services,Head of Adults,Third Party Payments,470101,Purchase of Care,01-Nov-16,3200358-2342024,"2,059.56",CROFT HOUSE RESIDENTIAL HOME.
Adult and Health Services,Head of Adults,Third Party Payments,474101,Purchase of Care,01-Nov-16,3200358-2342025,"2,156.96",CROFT HOUSE RESIDENTIAL HOME.
Adult and Health Services,Central/Other,Debtors,930024,Debtor-free nursing care,01-Nov-16,3200358-2342026,625,CROFT HOUSE RESIDENTIAL HOME.
Adult and Health Services,Head of Adults,Third Party Payments,474101,Purchase of Care,01-Nov-16,3200358-2342027,"2,156.96",CROFT HOUSE RESIDENTIAL HOME.
Adult and Health Services,Central/Other,Debtors,930024,Debtor-free nursing care,01-Nov-16,3200358-2342028,625,CROFT HOUSE RESIDENTIAL HOME.
Adult and Health Services,Head of Adults,Third Party Payments,474101,Purchase of Care,01-Nov-16,3200358-2342029,"2,156.96",CROFT HOUSE RESIDENTIAL HOME.
Adult and Health Services,Central/Other,Debtors,930024,Debtor-free nursing care,01-Nov-16,3200358-2342030,625,CROFT HOUSE RESIDENTIAL HOME.
Adult and Health Services,Head of Adults,Third Party Payments,471101,Purchase of Care,01-Nov-16,3200358-2342031,"2,135.60",CROFT HOUSE RESIDENTIAL HOME.
Adult and Health Services,Head of Adults,Third Party Payments,471101,Purchase of Care,01-Nov-16,3200358-2342032,"1,042.24",CROFT HOUSE RESIDENTIAL HOME.
Adult and Health Services,Head of Adults,Third Party Payments,470101,Purchase of Care,01-Nov-16,3200358-2342033,"2,059.56",CROFT HOUSE RESIDENTIAL HOME.
Adult and Health Services,Head of Adults,Third Party Payments,474101,Purchase of Care,01-Nov-16,3200358-2342034,"1,052.68",CROFT HOUSE RESIDENTIAL HOME.
Adult and Health Services,Head of Adults,Third Party Payments,474101,Purchase of Care,01-Nov-16,3200358-2342036,"2,342.44",CROFT HOUSE RESIDENTIAL HOME.
Adult and Health Services,Central/Other,Debtors,930024,Debtor-free nursing care,01-Nov-16,3200358-2342037,625,CROFT HOUSE RESIDENTIAL HOME.
Adult and Health Services,Head of Adults,Third Party Payments,474101,Purchase of Care,01-Nov-16,3200358-2342038,"1,052.68",CROFT HOUSE RESIDENTIAL HOME.
Adult and Health Services,Head of Adults,Third Party Payments,470101,Purchase of Care,01-Nov-16,3200358-2342040,"1,536.76",CROFT HOUSE RESIDENTIAL HOME.
Adult and Health Services,Head of Adults,Third Party Payments,470101,Purchase of Care,01-Nov-16,3200358-2342041,"1,184.60",CROFT HOUSE RESIDENTIAL HOME.
Adult and Health Services,Head of Adults,Third Party Payments,471101,Purchase of Care,01-Nov-16,3200358-2342042,"1,319.48",CROFT HOUSE RESIDENTIAL HOME.
Adult and Health Services,Head of Adults,Third Party Payments,470101,Purchase of Care,01-Nov-16,3200358-2342043,"2,309.64",CROFT HOUSE RESIDENTIAL HOME.
Adult and Health Services,Head of Adults,Third Party Payments,474101,Purchase of Care,01-Nov-16,3200358-2342044,"2,156.96",CROFT HOUSE RESIDENTIAL HOME.
Adult and Health Services,Central/Other,Debtors,930024,Debtor-free nursing care,01-Nov-16,3200358-2342045,625,CROFT HOUSE RESIDENTIAL HOME.
Adult and Health Services,Head of Adults,Third Party Payments,470101,Purchase of Care,01-Nov-16,3200359-2339887,"1,379.92",CROFT UNIT.
Adult and Health Services,Head of Adults,Third Party Payments,470101,Purchase of Care,01-Nov-16,3200359-2339888,"2,398.37",CROFT UNIT.
Adult and Health Services,Head of Adults,Third Party Payments,470101,Purchase of Care,01-Nov-16,3200359-2339889,"1,594.50",CROFT UNIT.
Adult and Health Services,Head of Adults,Third Party Payments,470101,Purchase of Care,01-Nov-16,3200359-2339891,"1,492.32",CROFT UNIT.
Adult and Health Services,Head of Adults,Third Party Payments,470101,Purchase of Care,01-Nov-16,3200359-2339892,"1,492.32",CROFT UNIT.
Adult and Health Services,Head of Adults,Third Party Payments,470101,Purchase of Care,01-Nov-16,3200359-2339893,"1,214.00",CROFT UNIT.
Adult and Health Services,Head of Adults,Third Party Payments,470101,Purchase of Care,01-Nov-16,3200359-2339894,"2,211.32",CROFT UNIT.
Adult and Health Services,Head of Adults,Third Party Payments,470101,Purchase of Care,01-Nov-16,3200359-2339895,"2,100.00",CROFT UNIT.
Adult and Health Services,Head of Adults,Third Party Payments,470101,Purchase of Care,01-Nov-16,3200359-2339897,"2,428.00",CROFT UNIT.
Adult and Health Services,Head of Adults,Third Party Payments,470101,Purchase of Care,01-Nov-16,3200359-2339898,"1,214.00",CROFT UNIT.
Adult and Health Services,Head of Adults,Third Party Payments,470101,Purchase of Care,01-Nov-16,3200359-2339900,"2,428.00",CROFT UNIT.
Adult and Health Services,Head of Adults,Third Party Payments,470101,Purchase of Care,01-Nov-16,3200359-2339901,"2,755.88",CROFT UNIT.
Adult and Health Services,Head of Adults,Third Party Payments,470101,Purchase of Care,01-Nov-16,3200359-2339902,"1,826.12",CROFT UNIT.
Adult and Health Services,Head of Adults,Third Party Payments,470101,Purchase of Care,01-Nov-16,3200359-2339903,"1,125.88",CROFT UNIT.
Adult and Health Services,Head of Adults,Third Party Payments,470101,Purchase of Care,01-Nov-16,3200359-2339904,"1,844.36",CROFT UNIT.
Adult and Health Services,Head of Adults,Third Party Payments,470101,Purchase of Care,01-Nov-16,3200359-2339906,"1,321.56",CROFT UNIT.
Adult and Health Services,Head of Adults,Third Party Payments,470101,Purchase of Care,01-Nov-16,3200359-2343593,"3,582.00",CROFT UNIT.
Adult and Health Services,Head of Adults,Third Party Payments,470101,Purchase of Care,01-Nov-16,3200359-2343599,"2,428.00",CROFT UNIT.
Adult and Health Services,Head of Adults,Third Party Payments,470101,Purchase of Care,01-Nov-16,3200360-2330795,986,DARLINGTON MANOR CARE HOME.
Adult and Health Services,Head of Adults,Third Party Payments,470101,Purchase of Care,01-Nov-16,3200360-2340634,986,DARLINGTON MANOR CARE HOME.
Adult and Health Services,Head of Adults,Third Party Payments,470101,Purchase of Care,01-Nov-16,3200361-2342829,"6,027.08",DARWIN PLACE CARE HOME.
Adult and Health Services,Head of Adults,Third Party Payments,470101,Purchase of Care,01-Nov-16,3200362-2340924,"2,309.64",DEFOE COURT.
Adult and Health Services,Central/Other,Debtors,930024,Debtor-free nursing care,01-Nov-16,3200362-2340925,625,DEFOE COURT.
Adult and Health Services,Head of Adults,Third Party Payments,474101,Purchase of Care,01-Nov-16,3200362-2340926,"5,777.57",DEFOE COURT.
Adult and Health Services,Central/Other,Debtors,930024,Debtor-free nursing care,01-Nov-16,3200362-2340927,"1,674.11",DEFOE COURT.
Adult and Health Services,Head of Adults,Third Party Payments,470101,Purchase of Care,01-Nov-16,3200362-2340928,"2,059.56",DEFOE COURT.
Adult and Health Services,Head of Adults,Third Party Payments,474101,Purchase of Care,01-Nov-16,3200362-2340929,"2,156.96",DEFOE COURT.
Adult and Health Services,Central/Other,Debtors,930024,Debtor-free nursing care,01-Nov-16,3200362-2340930,625,DEFOE COURT.
Adult and Health Services,Head of Adults,Third Party Payments,471101,Purchase of Care,01-Nov-16,3200362-2340931,"2,135.60",DEFOE COURT.
Adult and Health Services,Head of Adults,Third Party Payments,474101,Purchase of Care,01-Nov-16,3200362-2340932,"2,156.96",DEFOE COURT.
Adult and Health Services,Central/Other,Debtors,930024,Debtor-free nursing care,01-Nov-16,3200362-2340933,625,DEFOE COURT.
Adult and Health Services,Central/Other,Debtors,930024,Debtor-free nursing care,01-Nov-16,3200362-2340934,625,DEFOE COURT.
Adult and Health Services,Head of Adults,Third Party Payments,470101,Purchase of Care,01-Nov-16,3200362-2340935,"2,059.56",DEFOE COURT.
Adult and Health Services,Head of Adults,Third Party Payments,474101,Purchase of Care,01-Nov-16,3200362-2340936,"2,156.96",DEFOE COURT.
Adult and Health Services,Central/Other,Debtors,930024,Debtor-free nursing care,01-Nov-16,3200362-2340937,625,DEFOE COURT.
Adult and Health Services,Head of Adults,Third Party Payments,470101,Purchase of Care,01-Nov-16,3200362-2340938,"2,059.56",DEFOE COURT.
Adult and Health Services,Head of Adults,Third Party Payments,474101,Purchase of Care,01-Nov-16,3200362-2340939,"2,156.96",DEFOE COURT.
Adult and Health Services,Central/Other,Debtors,930024,Debtor-free nursing care,01-Nov-16,3200362-2340940,625,DEFOE COURT.
Adult and Health Services,Head of Adults,Third Party Payments,470101,Purchase of Care,01-Nov-16,3200362-2340941,"2,059.56",DEFOE COURT.
Adult and Health Services,Head of Adults,Third Party Payments,474101,Purchase of Care,01-Nov-16,3200362-2340942,"2,156.96",DEFOE COURT.
Adult and Health Services,Central/Other,Debtors,930024,Debtor-free nursing care,01-Nov-16,3200362-2340943,625,DEFOE COURT.
Adult and Health Services,Head of Adults,Third Party Payments,471101,Purchase of Care,01-Nov-16,3200362-2340944,"1,067.80",DEFOE COURT.
Adult and Health Services,Head of Adults,Third Party Payments,474101,Purchase of Care,01-Nov-16,3200362-2340945,"2,156.96",DEFOE COURT.
Adult and Health Services,Central/Other,Debtors,930024,Debtor-free nursing care,01-Nov-16,3200362-2340946,625,DEFOE COURT.
Adult and Health Services,Head of Adults,Third Party Payments,474101,Purchase of Care,01-Nov-16,3200362-2340947,"2,156.96",DEFOE COURT.
Adult and Health Services,Central/Other,Debtors,930024,Debtor-free nursing care,01-Nov-16,3200362-2340948,625,DEFOE COURT.
Adult and Health Services,Head of Adults,Third Party Payments,474101,Purchase of Care,01-Nov-16,3200362-2340949,"2,156.96",DEFOE COURT.
Adult and Health Services,Central/Other,Debtors,930024,Debtor-free nursing care,01-Nov-16,3200362-2340950,625,DEFOE COURT.
Adult and Health Services,Head of Adults,Third Party Payments,470101,Purchase of Care,01-Nov-16,3200362-2340951,"2,059.56",DEFOE COURT.
Adult and Health Services,Head of Adults,Third Party Payments,470101,Purchase of Care,01-Nov-16,3200362-2340952,"2,059.56",DEFOE COURT.
Adult and Health Services,Head of Adults,Third Party Payments,474101,Purchase of Care,01-Nov-16,3200362-2340953,"2,156.96",DEFOE COURT.
Adult and Health Services,Central/Other,Debtors,930024,Debtor-free nursing care,01-Nov-16,3200362-2340954,625,DEFOE COURT.
Adult and Health Services,Head of Adults,Third Party Payments,470101,Purchase of Care,01-Nov-16,3200362-2340955,"2,059.56",DEFOE COURT.
Adult and Health Services,Central/Other,Debtors,930024,Debtor-free nursing care,01-Nov-16,3200362-2340956,625,DEFOE COURT.
Adult and Health Services,Head of Adults,Third Party Payments,470101,Purchase of Care,01-Nov-16,3200362-2340957,"1,029.80",DEFOE COURT.
Adult and Health Services,Head of Adults,Third Party Payments,474101,Purchase of Care,01-Nov-16,3200362-2340958,"2,156.96",DEFOE COURT.
Adult and Health Services,Central/Other,Debtors,930024,Debtor-free nursing care,01-Nov-16,3200362-2340959,625,DEFOE COURT.
Adult and Health Services,Head of Adults,Third Party Payments,470101,Purchase of Care,01-Nov-16,3200362-2340960,"2,059.56",DEFOE COURT.
Adult and Health Services,Head of Adults,Third Party Payments,470101,Purchase of Care,01-Nov-16,3200362-2340961,"2,059.56",DEFOE COURT.
Adult and Health Services,Head of Adults,Third Party Payments,474101,Purchase of Care,01-Nov-16,3200362-2343611,770.34,DEFOE COURT.
Adult and Health Services,Head of Adults,Third Party Payments,470101,Purchase of Care,01-Nov-16,3200363-2341709,"2,059.56",DERWENT CARE HOME.
Adult and Health Services,Head of Adults,Third Party Payments,470101,Purchase of Care,01-Nov-16,3200363-2341710,"2,059.56",DERWENT CARE HOME.
Adult and Health Services,Head of Adults,Third Party Payments,471101,Purchase of Care,01-Nov-16,3200363-2341711,"2,135.60",DERWENT CARE HOME.
Adult and Health Services,Head of Adults,Third Party Payments,470101,Purchase of Care,01-Nov-16,3200363-2341712,"2,059.56",DERWENT CARE HOME.
Adult and Health Services,Head of Adults,Third Party Payments,470101,Purchase of Care,01-Nov-16,3200363-2341713,"2,059.56",DERWENT CARE HOME.
Adult and Health Services,Head of Adults,Third Party Payments,471101,Purchase of Care,01-Nov-16,3200363-2341714,"2,135.60",DERWENT CARE HOME.
Adult and Health Services,Head of Adults,Third Party Payments,471101,Purchase of Care,01-Nov-16,3200363-2341715,"1,042.24",DERWENT CARE HOME.
Adult and Health Services,Head of Adults,Third Party Payments,471101,Purchase of Care,01-Nov-16,3200363-2341716,"2,135.60",DERWENT CARE HOME.
Adult and Health Services,Head of Adults,Third Party Payments,471101,Purchase of Care,01-Nov-16,3200363-2341717,"2,135.60",DERWENT CARE HOME.
Adult and Health Services,Head of Adults,Third Party Payments,470101,Purchase of Care,01-Nov-16,3200363-2341718,"2,059.56",DERWENT CARE HOME.
Adult and Health Services,Head of Adults,Third Party Payments,474101,Purchase of Care,01-Nov-16,3200364-2338748,"2,156.96",DEVONSHIRE HOUSE.
Adult and Health Services,Central/Other,Debtors,930024,Debtor-free nursing care,01-Nov-16,3200364-2338749,625,DEVONSHIRE HOUSE.
Adult and Health Services,Head of Adults,Third Party Payments,474101,Purchase of Care,01-Nov-16,3200364-2338750,"2,156.96",DEVONSHIRE HOUSE.
Adult and Health Services,Central/Other,Debtors,930024,Debtor-free nursing care,01-Nov-16,3200364-2338751,625,DEVONSHIRE HOUSE.
Adult and Health Services,Head of Adults,Third Party Payments,470101,Purchase of Care,01-Nov-16,3200364-2338752,"2,059.56",DEVONSHIRE HOUSE.
Adult and Health Services,Head of Adults,Third Party Payments,470101,Purchase of Care,01-Nov-16,3200364-2338753,"2,124.52",DEVONSHIRE HOUSE.
Adult and Health Services,Head of Adults,Third Party Payments,471101,Purchase of Care,01-Nov-16,3200364-2338754,"2,135.60",DEVONSHIRE HOUSE.
Adult and Health Services,Head of Adults,Third Party Payments,474101,Purchase of Care,01-Nov-16,3200364-2338755,"1,391.16",DEVONSHIRE HOUSE.
Adult and Health Services,Central/Other,Debtors,930024,Debtor-free nursing care,01-Nov-16,3200364-2338756,625,DEVONSHIRE HOUSE.
Adult and Health Services,Head of Adults,Third Party Payments,470101,Purchase of Care,01-Nov-16,3200364-2338757,"1,505.92",DEVONSHIRE HOUSE.
Adult and Health Services,Head of Adults,Third Party Payments,474101,Purchase of Care,01-Nov-16,3200364-2338758,"1,662.76",DEVONSHIRE HOUSE.
Adult and Health Services,Central/Other,Debtors,930024,Debtor-free nursing care,01-Nov-16,3200364-2338759,625,DEVONSHIRE HOUSE.
Adult and Health Services,Head of Adults,Third Party Payments,470101,Purchase of Care,01-Nov-16,3200364-2338760,"1,536.76",DEVONSHIRE HOUSE.
Adult and Health Services,Head of Adults,Third Party Payments,474101,Purchase of Care,01-Nov-16,3200364-2338761,"2,156.96",DEVONSHIRE HOUSE.
Adult and Health Services,Central/Other,Debtors,930024,Debtor-free nursing care,01-Nov-16,3200364-2338762,625,DEVONSHIRE HOUSE.
Adult and Health Services,Head of Adults,Third Party Payments,470101,Purchase of Care,01-Nov-16,3200364-2338763,"1,601.72",DEVONSHIRE HOUSE.
Adult and Health Services,Central/Other,Debtors,930024,Debtor-free nursing care,01-Nov-16,3200364-2338764,625,DEVONSHIRE HOUSE.
Adult and Health Services,Central/Other,Debtors,930024,Debtor-free nursing care,01-Nov-16,3200364-2338765,625,DEVONSHIRE HOUSE.
Adult and Health Services,Head of Adults,Third Party Payments,470101,Purchase of Care,01-Nov-16,3200364-2338766,"1,536.76",DEVONSHIRE HOUSE.
Adult and Health Services,Head of Adults,Third Party Payments,470101,Purchase of Care,01-Nov-16,3200364-2338767,"1,532.28",DEVONSHIRE HOUSE.
Adult and Health Services,Head of Adults,Third Party Payments,470101,Purchase of Care,01-Nov-16,3200364-2338768,"1,541.00",DEVONSHIRE HOUSE.
Adult and Health Services,Head of Adults,Third Party Payments,470101,Purchase of Care,01-Nov-16,3200364-2338769,"1,535.92",DEVONSHIRE HOUSE.
Adult and Health Services,Head of Adults,Third Party Payments,470101,Purchase of Care,01-Nov-16,3200364-2338770,"2,059.56",DEVONSHIRE HOUSE.
Adult and Health Services,Head of Adults,Third Party Payments,474101,Purchase of Care,01-Nov-16,3200364-2338771,"2,166.20",DEVONSHIRE HOUSE.
Adult and Health Services,Central/Other,Debtors,930024,Debtor-free nursing care,01-Nov-16,3200364-2338772,625,DEVONSHIRE HOUSE.
Adult and Health Services,Head of Adults,Third Party Payments,470101,Purchase of Care,01-Nov-16,3200364-2343331,"1,138.13",DEVONSHIRE HOUSE.
Adult and Health Services,Head of Adults,Third Party Payments,471101,Purchase of Care,01-Nov-16,3200365-2342776,"2,135.60",DIPTON CARE HOME LTD.
Adult and Health Services,Head of Adults,Third Party Payments,474101,Purchase of Care,01-Nov-16,3200365-2342777,"2,156.96",DIPTON CARE HOME LTD.
Adult and Health Services,Central/Other,Debtors,930024,Debtor-free nursing care,01-Nov-16,3200365-2342778,625,DIPTON CARE HOME LTD.
Adult and Health Services,Head of Adults,Third Party Payments,471101,Purchase of Care,01-Nov-16,3200365-2342779,"2,135.60",DIPTON CARE HOME LTD.
Adult and Health Services,Head of Adults,Third Party Payments,474101,Purchase of Care,01-Nov-16,3200365-2342780,"2,156.96",DIPTON CARE HOME LTD.
Adult and Health Services,Central/Other,Debtors,930024,Debtor-free nursing care,01-Nov-16,3200365-2342781,625,DIPTON CARE HOME LTD.
Adult and Health Services,Head of Adults,Third Party Payments,470101,Purchase of Care,01-Nov-16,3200365-2342782,"2,059.56",DIPTON CARE HOME LTD.
Adult and Health Services,Head of Adults,Third Party Payments,474101,Purchase of Care,01-Nov-16,3200365-2342783,"2,156.96",DIPTON CARE HOME LTD.
Adult and Health Services,Central/Other,Debtors,930024,Debtor-free nursing care,01-Nov-16,3200365-2342784,625,DIPTON CARE HOME LTD.
Adult and Health Services,Head of Adults,Third Party Payments,470101,Purchase of Care,01-Nov-16,3200365-2342785,"2,059.56",DIPTON CARE HOME LTD.
Adult and Health Services,Head of Adults,Third Party Payments,471101,Purchase of Care,01-Nov-16,3200365-2342789,"2,135.60",DIPTON CARE HOME LTD.
Adult and Health Services,Head of Adults,Third Party Payments,474101,Purchase of Care,01-Nov-16,3200365-2342790,"2,156.96",DIPTON CARE HOME LTD.
Adult and Health Services,Central/Other,Debtors,930024,Debtor-free nursing care,01-Nov-16,3200365-2342791,625,DIPTON CARE HOME LTD.
Adult and Health Services,Head of Adults,Third Party Payments,470101,Purchase of Care,01-Nov-16,3200365-2342792,"2,059.56",DIPTON CARE HOME LTD.
Adult and Health Services,Central/Other,Debtors,930024,Debtor-free nursing care,01-Nov-16,3200365-2342793,625,DIPTON CARE HOME LTD.
Adult and Health Services,Head of Adults,Third Party Payments,471101,Purchase of Care,01-Nov-16,3200365-2342794,"3,508.49",DIPTON CARE HOME LTD.
Adult and Health Services,Head of Adults,Third Party Payments,474101,Purchase of Care,01-Nov-16,3200365-2342795,"2,156.96",DIPTON CARE HOME LTD.
Adult and Health Services,Central/Other,Debtors,930024,Debtor-free nursing care,01-Nov-16,3200365-2342796,625,DIPTON CARE HOME LTD.
Adult and Health Services,Central/Other,Debtors,930024,Debtor-free nursing care,01-Nov-16,3200365-2342797,625,DIPTON CARE HOME LTD.
Adult and Health Services,Head of Adults,Third Party Payments,470101,Purchase of Care,01-Nov-16,3200365-2342798,"2,059.56",DIPTON CARE HOME LTD.
Adult and Health Services,Head of Adults,Third Party Payments,471101,Purchase of Care,01-Nov-16,3200365-2342799,"2,135.60",DIPTON CARE HOME LTD.
Adult and Health Services,Head of Adults,Third Party Payments,471101,Purchase of Care,01-Nov-16,3200365-2342800,"2,135.60",DIPTON CARE HOME LTD.
Adult and Health Services,Head of Adults,Third Party Payments,470101,Purchase of Care,01-Nov-16,3200365-2342801,"2,059.56",DIPTON CARE HOME LTD.
Adult and Health Services,Head of Adults,Third Party Payments,470101,Purchase of Care,01-Nov-16,3200365-2342802,"2,059.56",DIPTON CARE HOME LTD.
Adult and Health Services,Head of Adults,Third Party Payments,470101,Purchase of Care,01-Nov-16,3200365-2342803,"2,059.56",DIPTON CARE HOME LTD.
Adult and Health Services,Head of Adults,Third Party Payments,471101,Purchase of Care,01-Nov-16,3200365-2342804,"2,135.60",DIPTON CARE HOME LTD.
Adult and Health Services,Head of Adults,Third Party Payments,471101,Purchase of Care,01-Nov-16,3200365-2342805,"2,135.60",DIPTON CARE HOME LTD.
Adult and Health Services,Head of Adults,Third Party Payments,470101,Purchase of Care,01-Nov-16,3200365-2342806,"2,059.56",DIPTON CARE HOME LTD.
Adult and Health Services,Head of Adults,Third Party Payments,470101,Purchase of Care,01-Nov-16,3200365-2342807,"2,059.56",DIPTON CARE HOME LTD.
Adult and Health Services,Head of Adults,Third Party Payments,474101,Purchase of Care,01-Nov-16,3200365-2342808,"1,078.48",DIPTON CARE HOME LTD.
Adult and Health Services,Head of Adults,Third Party Payments,471101,Purchase of Care,01-Nov-16,3200365-2342810,"2,135.60",DIPTON CARE HOME LTD.
Adult and Health Services,Head of Adults,Third Party Payments,470101,Purchase of Care,01-Nov-16,3200365-2342811,"2,059.56",DIPTON CARE HOME LTD.
Adult and Health Services,Head of Adults,Third Party Payments,470101,Purchase of Care,01-Nov-16,3200365-2342812,"2,059.56",DIPTON CARE HOME LTD.
Adult and Health Services,Central/Other,Debtors,930024,Debtor-free nursing care,01-Nov-16,3200365-2342813,625,DIPTON CARE HOME LTD.
Adult and Health Services,Head of Adults,Third Party Payments,470101,Purchase of Care,01-Nov-16,3200365-2342814,"2,059.56",DIPTON CARE HOME LTD.
Adult and Health Services,Head of Adults,Third Party Payments,470101,Purchase of Care,01-Nov-16,3200365-2342815,"1,029.76",DIPTON CARE HOME LTD.
Adult and Health Services,Head of Adults,Third Party Payments,471101,Purchase of Care,01-Nov-16,3200365-2342816,"2,135.60",DIPTON CARE HOME LTD.
Adult and Health Services,Head of Adults,Third Party Payments,471101,Purchase of Care,01-Nov-16,3200365-2342817,"2,135.60",DIPTON CARE HOME LTD.
Adult and Health Services,Head of Adults,Third Party Payments,470101,Purchase of Care,01-Nov-16,3200365-2342818,"2,059.56",DIPTON CARE HOME LTD.
Adult and Health Services,Head of Adults,Third Party Payments,470101,Purchase of Care,01-Nov-16,3200365-2342819,"2,059.56",DIPTON CARE HOME LTD.
Adult and Health Services,Head of Adults,Third Party Payments,471101,Purchase of Care,01-Nov-16,3200365-2342820,"2,135.60",DIPTON CARE HOME LTD.
Adult and Health Services,Head of Adults,Third Party Payments,470101,Purchase of Care,01-Nov-16,3200365-2342821,"2,059.56",DIPTON CARE HOME LTD.
Adult and Health Services,Head of Adults,Third Party Payments,470101,Purchase of Care,01-Nov-16,3200365-2342822,"2,059.56",DIPTON CARE HOME LTD.
Adult and Health Services,Central/Other,Debtors,930024,Debtor-free nursing care,01-Nov-16,3200365-2343448,915.18,DIPTON CARE HOME LTD.
Adult and Health Services,Head of Adults,Third Party Payments,471101,Purchase of Care,01-Nov-16,3200365-2343681,796.5,DIPTON CARE HOME LTD.
Adult and Health Services,Head of Adults,Third Party Payments,470101,Purchase of Care,01-Nov-16,3200366-2340991,"2,116.16",DONWELL DAY CARE CENTRE.
Adult and Health Services,Head of Adults,Third Party Payments,470101,Purchase of Care,01-Nov-16,3200366-2340992,"2,116.16",DONWELL DAY CARE CENTRE.
Adult and Health Services,Head of Adults,Third Party Payments,470101,Purchase of Care,01-Nov-16,3200366-2340993,"2,116.16",DONWELL DAY CARE CENTRE.
Adult and Health Services,Head of Adults,Third Party Payments,474101,Purchase of Care,01-Nov-16,3200366-2340994,"2,116.16",DONWELL DAY CARE CENTRE.
Adult and Health Services,Head of Adults,Third Party Payments,470101,Purchase of Care,01-Nov-16,3200366-2343217,"1,662.69",DONWELL DAY CARE CENTRE.
Adult and Health Services,Head of Adults,Third Party Payments,470101,Purchase of Care,01-Nov-16,3200366-2343220,831.35,DONWELL DAY CARE CENTRE.
Adult and Health Services,Head of Adults,Third Party Payments,478101,Purchase of Care,01-Nov-16,3200367-2341105,"1,396.24",REDACTED - PAYMENT TO INDIVIDUAL
Adult and Health Services,Head of Adults,Third Party Payments,470101,Purchase of Care,01-Nov-16,3200368-2338710,"1,949.24",DR ANDREW ASHDOWN (DENEHURST NURSING HOME).
Adult and Health Services,Head of Adults,Third Party Payments,474101,Purchase of Care,01-Nov-16,3200368-2338711,"2,046.60",DR ANDREW ASHDOWN (DENEHURST NURSING HOME).
Adult and Health Services,Central/Other,Debtors,930024,Debtor-free nursing care,01-Nov-16,3200368-2338712,625,DR ANDREW ASHDOWN (DENEHURST NURSING HOME).
Adult and Health Services,Head of Adults,Third Party Payments,470101,Purchase of Care,01-Nov-16,3200368-2338714,"5,290.79",DR ANDREW ASHDOWN (DENEHURST NURSING HOME).
Adult and Health Services,Head of Adults,Third Party Payments,470101,Purchase of Care,01-Nov-16,3200368-2338715,"3,532.82",DR ANDREW ASHDOWN (DENEHURST NURSING HOME).
Adult and Health Services,Head of Adults,Third Party Payments,474101,Purchase of Care,01-Nov-16,3200368-2338716,"2,046.60",DR ANDREW ASHDOWN (DENEHURST NURSING HOME).
Adult and Health Services,Central/Other,Debtors,930024,Debtor-free nursing care,01-Nov-16,3200368-2338717,625,DR ANDREW ASHDOWN (DENEHURST NURSING HOME).
Adult and Health Services,Head of Adults,Third Party Payments,470101,Purchase of Care,01-Nov-16,3200368-2338718,"1,949.24",DR ANDREW ASHDOWN (DENEHURST NURSING HOME).
Adult and Health Services,Head of Adults,Third Party Payments,470101,Purchase of Care,01-Nov-16,3200368-2338719,"1,173.72",DR ANDREW ASHDOWN (DENEHURST NURSING HOME).
Adult and Health Services,Head of Adults,Third Party Payments,470101,Purchase of Care,01-Nov-16,3200368-2338725,"1,949.24",DR ANDREW ASHDOWN (DENEHURST NURSING HOME).
Adult and Health Services,Head of Adults,Third Party Payments,471101,Purchase of Care,01-Nov-16,3200368-2338726,"1,282.88",DR ANDREW ASHDOWN (DENEHURST NURSING HOME).
Adult and Health Services,Head of Adults,Third Party Payments,474101,Purchase of Care,01-Nov-16,3200368-2338727,842.56,DR ANDREW ASHDOWN (DENEHURST NURSING HOME).
Adult and Health Services,Central/Other,Debtors,930024,Debtor-free nursing care,01-Nov-16,3200368-2338728,625,DR ANDREW ASHDOWN (DENEHURST NURSING HOME).
Adult and Health Services,Head of Adults,Third Party Payments,474101,Purchase of Care,01-Nov-16,3200368-2338729,"2,046.60",DR ANDREW ASHDOWN (DENEHURST NURSING HOME).
Adult and Health Services,Central/Other,Debtors,930024,Debtor-free nursing care,01-Nov-16,3200368-2338730,625,DR ANDREW ASHDOWN (DENEHURST NURSING HOME).
Adult and Health Services,Head of Adults,Third Party Payments,474101,Purchase of Care,01-Nov-16,3200368-2338731,"1,023.28",DR ANDREW ASHDOWN (DENEHURST NURSING HOME).
Adult and Health Services,Head of Adults,Third Party Payments,471101,Purchase of Care,01-Nov-16,3200368-2338733,"1,314.64",DR ANDREW ASHDOWN (DENEHURST NURSING HOME).
Adult and Health Services,Head of Adults,Third Party Payments,474101,Purchase of Care,01-Nov-16,3200368-2338734,"2,046.60",DR ANDREW ASHDOWN (DENEHURST NURSING HOME).
Adult and Health Services,Central/Other,Debtors,930024,Debtor-free nursing care,01-Nov-16,3200368-2338735,625,DR ANDREW ASHDOWN (DENEHURST NURSING HOME).
Adult and Health Services,Head of Adults,Third Party Payments,470101,Purchase of Care,01-Nov-16,3200368-2338736,"1,426.44",DR ANDREW ASHDOWN (DENEHURST NURSING HOME).
Adult and Health Services,Head of Adults,Third Party Payments,474101,Purchase of Care,01-Nov-16,3200368-2338737,"1,023.28",DR ANDREW ASHDOWN (DENEHURST NURSING HOME).
Adult and Health Services,Head of Adults,Third Party Payments,470101,Purchase of Care,01-Nov-16,3200368-2338739,"1,253.92",DR ANDREW ASHDOWN (DENEHURST NURSING HOME).
Adult and Health Services,Head of Adults,Third Party Payments,474101,Purchase of Care,01-Nov-16,3200368-2338741,"1,219.88",DR ANDREW ASHDOWN (DENEHURST NURSING HOME).
Adult and Health Services,Central/Other,Debtors,930024,Debtor-free nursing care,01-Nov-16,3200368-2338742,625,DR ANDREW ASHDOWN (DENEHURST NURSING HOME).
Adult and Health Services,Head of Adults,Third Party Payments,474101,Purchase of Care,01-Nov-16,3200368-2338743,"1,215.80",DR ANDREW ASHDOWN (DENEHURST NURSING HOME).
Adult and Health Services,Central/Other,Debtors,930024,Debtor-free nursing care,01-Nov-16,3200368-2338744,625,DR ANDREW ASHDOWN (DENEHURST NURSING HOME).
Adult and Health Services,Head of Adults,Third Party Payments,474101,Purchase of Care,01-Nov-16,3200368-2338745,"1,709.32",DR ANDREW ASHDOWN (DENEHURST NURSING HOME).
Adult and Health Services,Central/Other,Debtors,930024,Debtor-free nursing care,01-Nov-16,3200368-2338746,625,DR ANDREW ASHDOWN (DENEHURST NURSING HOME).
Adult and Health Services,Head of Adults,Third Party Payments,474101,Purchase of Care,01-Nov-16,3200368-2343356,"1,520.83",DR ANDREW ASHDOWN (DENEHURST NURSING HOME).
Adult and Health Services,Central/Other,Debtors,930024,Debtor-free nursing care,01-Nov-16,3200368-2343357,758.93,DR ANDREW ASHDOWN (DENEHURST NURSING HOME).
Adult and Health Services,Head of Adults,Third Party Payments,474101,Purchase of Care,01-Nov-16,3200368-2343728,"1,023.32",DR ANDREW ASHDOWN (DENEHURST NURSING HOME).
Adult and Health Services,Head of Adults,Third Party Payments,474101,Purchase of Care,01-Nov-16,3200368-2343729,"1,040.00",DR ANDREW ASHDOWN (DENEHURST NURSING HOME).
Adult and Health Services,Head of Adults,Third Party Payments,470101,Purchase of Care,01-Nov-16,3200369-2339749,"2,059.56",DR ANDREW ASHDOWN (STOCKTON LODGE CARE HOME).
Adult and Health Services,Head of Adults,Third Party Payments,470101,Purchase of Care,01-Nov-16,3200369-2339750,"2,059.56",DR ANDREW ASHDOWN (STOCKTON LODGE CARE HOME).
Adult and Health Services,Head of Adults,Third Party Payments,470101,Purchase of Care,01-Nov-16,3200369-2339752,"1,491.56",DR ANDREW ASHDOWN (STOCKTON LODGE CARE HOME).
Adult and Health Services,Head of Adults,Third Party Payments,471101,Purchase of Care,01-Nov-16,3200369-2339753,"2,135.60",DR ANDREW ASHDOWN (STOCKTON LODGE CARE HOME).
Adult and Health Services,Head of Adults,Third Party Payments,470101,Purchase of Care,01-Nov-16,3200369-2339754,"2,059.56",DR ANDREW ASHDOWN (STOCKTON LODGE CARE HOME).
Adult and Health Services,Head of Adults,Third Party Payments,470101,Purchase of Care,01-Nov-16,3200369-2339755,"1,471.96",DR ANDREW ASHDOWN (STOCKTON LODGE CARE HOME).
Adult and Health Services,Head of Adults,Third Party Payments,470101,Purchase of Care,01-Nov-16,3200369-2339756,"1,510.36",DR ANDREW ASHDOWN (STOCKTON LODGE CARE HOME).
Adult and Health Services,Head of Adults,Third Party Payments,471101,Purchase of Care,01-Nov-16,3200369-2339757,"2,135.60",DR ANDREW ASHDOWN (STOCKTON LODGE CARE HOME).
Adult and Health Services,Head of Adults,Third Party Payments,470101,Purchase of Care,01-Nov-16,3200369-2339758,"1,536.76",DR ANDREW ASHDOWN (STOCKTON LODGE CARE HOME).
Adult and Health Services,Head of Adults,Third Party Payments,471101,Purchase of Care,01-Nov-16,3200369-2339759,"1,564.72",DR ANDREW ASHDOWN (STOCKTON LODGE CARE HOME).
Adult and Health Services,Head of Adults,Third Party Payments,470101,Purchase of Care,01-Nov-16,3200369-2339760,"2,059.56",DR ANDREW ASHDOWN (STOCKTON LODGE CARE HOME).
Adult and Health Services,Head of Adults,Third Party Payments,471101,Purchase of Care,01-Nov-16,3200369-2339761,"2,135.60",DR ANDREW ASHDOWN (STOCKTON LODGE CARE HOME).
Adult and Health Services,Head of Adults,Third Party Payments,470101,Purchase of Care,01-Nov-16,3200369-2339762,"2,059.56",DR ANDREW ASHDOWN (STOCKTON LODGE CARE HOME).
Adult and Health Services,Head of Adults,Third Party Payments,470101,Purchase of Care,01-Nov-16,3200369-2339763,"2,059.56",DR ANDREW ASHDOWN (STOCKTON LODGE CARE HOME).
Adult and Health Services,Head of Adults,Third Party Payments,471101,Purchase of Care,01-Nov-16,3200369-2339764,"1,541.56",DR ANDREW ASHDOWN (STOCKTON LODGE CARE HOME).
Adult and Health Services,Head of Adults,Third Party Payments,474101,Purchase of Care,01-Nov-16,3200370-2342863,"4,744.68",DUCKS HALT CARE HOME
Adult and Health Services,Head of Adults,Third Party Payments,474101,Purchase of Care,01-Nov-16,3200371-2342881,"8,400.00",DUNLUCE HOUSE T/A BOHILL BUNGALOWS.
Adult and Health Services,Head of Adults,Third Party Payments,470101,Purchase of Care,01-Nov-16,3200372-2342580,"2,200.00",DURHAM CARELINE LTD.
Adult and Health Services,Head of Adults,Third Party Payments,470101,Purchase of Care,01-Nov-16,3200373-2340002,"1,972.00",EDEN COTTAGE RESIDENTIAL HOME.
Adult and Health Services,Head of Adults,Third Party Payments,470101,Purchase of Care,01-Nov-16,3200373-2340003,915.57,EDEN COTTAGE RESIDENTIAL HOME.
Adult and Health Services,Head of Adults,Third Party Payments,470101,Purchase of Care,01-Nov-16,3200374-2342832,"1,471.11",ELBA CARE LTD T/A DIVINE CARE CENTRE.
Adult and Health Services,Head of Adults,Third Party Payments,470101,Purchase of Care,01-Nov-16,3200374-2342833,"2,059.56",ELBA CARE LTD T/A DIVINE CARE CENTRE.
Adult and Health Services,Head of Adults,Third Party Payments,474101,Purchase of Care,01-Nov-16,3200374-2342836,"2,156.96",ELBA CARE LTD T/A DIVINE CARE CENTRE.
Adult and Health Services,Central/Other,Debtors,930024,Debtor-free nursing care,01-Nov-16,3200374-2342837,625,ELBA CARE LTD T/A DIVINE CARE CENTRE.
Adult and Health Services,Head of Adults,Third Party Payments,470102,Purchase of Care,01-Nov-16,3200374-2342838,563.12,ELBA CARE LTD T/A DIVINE CARE CENTRE.
Adult and Health Services,Central/Other,Debtors,930024,Debtor-free nursing care,01-Nov-16,3200374-2342839,625,ELBA CARE LTD T/A DIVINE CARE CENTRE.
Adult and Health Services,Central/Other,Debtors,930024,Debtor-free nursing care,01-Nov-16,3200374-2342840,625,ELBA CARE LTD T/A DIVINE CARE CENTRE.
Adult and Health Services,Head of Adults,Third Party Payments,471101,Purchase of Care,01-Nov-16,3200374-2342843,"2,135.60",ELBA CARE LTD T/A DIVINE CARE CENTRE.
Adult and Health Services,Head of Adults,Third Party Payments,470101,Purchase of Care,01-Nov-16,3200374-2342844,"2,059.56",ELBA CARE LTD T/A DIVINE CARE CENTRE.
Adult and Health Services,Head of Adults,Third Party Payments,474101,Purchase of Care,01-Nov-16,3200374-2342845,"2,156.96",ELBA CARE LTD T/A DIVINE CARE CENTRE.
Adult and Health Services,Central/Other,Debtors,930024,Debtor-free nursing care,01-Nov-16,3200374-2342846,625,ELBA CARE LTD T/A DIVINE CARE CENTRE.
Adult and Health Services,Head of Adults,Third Party Payments,474101,Purchase of Care,01-Nov-16,3200374-2342847,"2,156.96",ELBA CARE LTD T/A DIVINE CARE CENTRE.
Adult and Health Services,Central/Other,Debtors,930024,Debtor-free nursing care,01-Nov-16,3200374-2342848,625,ELBA CARE LTD T/A DIVINE CARE CENTRE.
Adult and Health Services,Head of Adults,Third Party Payments,470101,Purchase of Care,01-Nov-16,3200374-2342849,"2,059.56",ELBA CARE LTD T/A DIVINE CARE CENTRE.
Adult and Health Services,Head of Adults,Third Party Payments,471101,Purchase of Care,01-Nov-16,3200374-2342850,"2,135.60",ELBA CARE LTD T/A DIVINE CARE CENTRE.
Adult and Health Services,Head of Adults,Third Party Payments,471101,Purchase of Care,01-Nov-16,3200374-2342852,"1,449.15",ELBA CARE LTD T/A DIVINE CARE CENTRE.
Adult and Health Services,Head of Adults,Third Party Payments,471101,Purchase of Care,01-Nov-16,3200374-2342853,"1,372.88",ELBA CARE LTD T/A DIVINE CARE CENTRE.
Adult and Health Services,Head of Adults,Third Party Payments,470101,Purchase of Care,01-Nov-16,3200374-2342854,"2,059.56",ELBA CARE LTD T/A DIVINE CARE CENTRE.
Adult and Health Services,Head of Adults,Third Party Payments,470101,Purchase of Care,01-Nov-16,3200374-2342855,"2,059.56",ELBA CARE LTD T/A DIVINE CARE CENTRE.
Adult and Health Services,Head of Adults,Third Party Payments,470101,Purchase of Care,01-Nov-16,3200374-2342856,"2,059.56",ELBA CARE LTD T/A DIVINE CARE CENTRE.
Adult and Health Services,Head of Adults,Third Party Payments,470101,Purchase of Care,01-Nov-16,3200374-2342857,"2,059.56",ELBA CARE LTD T/A DIVINE CARE CENTRE.
Adult and Health Services,Head of Adults,Third Party Payments,470101,Purchase of Care,01-Nov-16,3200374-2342858,"2,059.56",ELBA CARE LTD T/A DIVINE CARE CENTRE.
Adult and Health Services,Head of Adults,Third Party Payments,470101,Purchase of Care,01-Nov-16,3200374-2342859,"2,059.56",ELBA CARE LTD T/A DIVINE CARE CENTRE.
Adult and Health Services,Head of Adults,Third Party Payments,470101,Purchase of Care,01-Nov-16,3200374-2342860,"2,059.56",ELBA CARE LTD T/A DIVINE CARE CENTRE.
Adult and Health Services,Head of Adults,Third Party Payments,471101,Purchase of Care,01-Nov-16,3200374-2342861,"2,135.60",ELBA CARE LTD T/A DIVINE CARE CENTRE.
Adult and Health Services,Head of Adults,Third Party Payments,470101,Purchase of Care,01-Nov-16,3200374-2342862,"2,059.56",ELBA CARE LTD T/A DIVINE CARE CENTRE.
Adult and Health Services,Head of Adults,Third Party Payments,470102,Purchase of Care,01-Nov-16,3200374-2343205,"1,267.02",ELBA CARE LTD T/A DIVINE CARE CENTRE.
Adult and Health Services,Head of Adults,Third Party Payments,470102,Purchase of Care,01-Nov-16,3200374-2343209,774.29,ELBA CARE LTD T/A DIVINE CARE CENTRE.
Adult and Health Services,Head of Adults,Third Party Payments,471101,Purchase of Care,01-Nov-16,3200374-2343210,"1,296.61",ELBA CARE LTD T/A DIVINE CARE CENTRE.
Adult and Health Services,Head of Adults,Debtors,930135,Debtor Residential Care - IC+ Rehabilitation,01-Nov-16,3200374-2343212,844.68,ELBA CARE LTD T/A DIVINE CARE CENTRE.
Adult and Health Services,Head of Adults,Debtors,930135,Debtor Residential Care - IC+ Rehabilitation,01-Nov-16,3200374-2343215,774.29,ELBA CARE LTD T/A DIVINE CARE CENTRE.
Adult and Health Services,Head of Adults,Third Party Payments,478101,Purchase of Care,01-Nov-16,3200375-2341010,"1,396.24",REDACTED - PAYMENT TO INDIVIDUAL
Adult and Health Services,Head of Adults,Third Party Payments,474101,Purchase of Care,01-Nov-16,3200376-2340228,"1,047.28",ELIZABETH FLEMMING CARE HOME.
Adult and Health Services,Central/Other,Debtors,930024,Debtor-free nursing care,01-Nov-16,3200376-2340229,625,ELIZABETH FLEMMING CARE HOME.
Adult and Health Services,Head of Adults,Third Party Payments,474101,Purchase of Care,01-Nov-16,3200376-2340230,"2,094.56",ELIZABETH FLEMMING CARE HOME.
Adult and Health Services,Head of Adults,Third Party Payments,474101,Purchase of Care,01-Nov-16,3200376-2340231,"2,094.56",ELIZABETH FLEMMING CARE HOME.
Adult and Health Services,Central/Other,Debtors,930024,Debtor-free nursing care,01-Nov-16,3200376-2340232,625,ELIZABETH FLEMMING CARE HOME.
Adult and Health Services,Head of Adults,Third Party Payments,471101,Purchase of Care,01-Nov-16,3200376-2340233,"1,151.36",ELIZABETH FLEMMING CARE HOME.
Adult and Health Services,Head of Adults,Third Party Payments,474101,Purchase of Care,01-Nov-16,3200376-2340234,"2,094.56",ELIZABETH FLEMMING CARE HOME.
Adult and Health Services,Head of Adults,Third Party Payments,470101,Purchase of Care,01-Nov-16,3200377-2341257,"11,023.16",ELLERSHAW HOUSE.
Adult and Health Services,Head of Adults,Third Party Payments,470101,Purchase of Care,01-Nov-16,3200378-2340654,"2,574.60",ELPHA LODGE LTD.
Adult and Health Services,Head of Adults,Third Party Payments,474101,Purchase of Care,01-Nov-16,3200379-2342866,"2,074.44",ELSWICK HALL CARE HOME.
Adult and Health Services,Head of Adults,Third Party Payments,470101,Purchase of Care,01-Nov-16,3200379-2343682,"2,038.96",ELSWICK HALL CARE HOME.
Adult and Health Services,Head of Adults,Third Party Payments,471101,Purchase of Care,01-Nov-16,3200380-2341366,"2,100.00",ELWICK GRANGE.
Adult and Health Services,Head of Adults,Third Party Payments,474101,Purchase of Care,01-Nov-16,3200381-2340979,"2,211.56",EMBRACE ALL LTD.
Adult and Health Services,Head of Adults,Third Party Payments,470101,Purchase of Care,01-Nov-16,3200381-2340980,"1,289.80",EMBRACE ALL LTD.
Adult and Health Services,Head of Adults,Third Party Payments,474101,Purchase of Care,01-Nov-16,3200381-2340981,"2,211.56",EMBRACE ALL LTD.
Adult and Health Services,Head of Adults,Third Party Payments,470101,Purchase of Care,01-Nov-16,3200381-2340982,"1,593.36",EMBRACE ALL LTD.
Adult and Health Services,Head of Adults,Debtors,930135,Debtor Residential Care - IC+ Rehabilitation,01-Nov-16,3200382-2342370,"1,196.63",EMBRACE ALL LTD.
Adult and Health Services,Head of Adults,Debtors,930135,Debtor Residential Care - IC+ Rehabilitation,01-Nov-16,3200382-2342371,"2,182.09",EMBRACE ALL LTD.
Adult and Health Services,Head of Adults,Third Party Payments,471101,Purchase of Care,01-Nov-16,3200382-2342372,"2,135.60",EMBRACE ALL LTD.
Adult and Health Services,Head of Adults,Third Party Payments,470101,Purchase of Care,01-Nov-16,3200382-2342373,"2,059.56",EMBRACE ALL LTD.
Adult and Health Services,Head of Adults,Debtors,930135,Debtor Residential Care - IC+ Rehabilitation,01-Nov-16,3200382-2342374,"2,182.09",EMBRACE ALL LTD.
Adult and Health Services,Head of Adults,Debtors,930136,Debtor Nursing Care - IC+ Nursing,01-Nov-16,3200382-2342375,"1,126.24",EMBRACE ALL LTD.
Adult and Health Services,Head of Adults,Third Party Payments,474101,Purchase of Care,01-Nov-16,3200382-2342377,"2,156.96",EMBRACE ALL LTD.
Adult and Health Services,Central/Other,Debtors,930024,Debtor-free nursing care,01-Nov-16,3200382-2342378,625,EMBRACE ALL LTD.
Adult and Health Services,Head of Adults,Third Party Payments,474101,Purchase of Care,01-Nov-16,3200382-2342379,"2,156.96",EMBRACE ALL LTD.
Adult and Health Services,Central/Other,Debtors,930024,Debtor-free nursing care,01-Nov-16,3200382-2342380,625,EMBRACE ALL LTD.
Adult and Health Services,Head of Adults,Third Party Payments,470101,Purchase of Care,01-Nov-16,3200382-2342381,"2,059.56",EMBRACE ALL LTD.
Adult and Health Services,Head of Adults,Third Party Payments,470101,Purchase of Care,01-Nov-16,3200382-2342382,"2,059.56",EMBRACE ALL LTD.
Adult and Health Services,Head of Adults,Third Party Payments,474101,Purchase of Care,01-Nov-16,3200382-2342383,"2,156.96",EMBRACE ALL LTD.
Adult and Health Services,Central/Other,Debtors,930024,Debtor-free nursing care,01-Nov-16,3200382-2342384,625,EMBRACE ALL LTD.
Adult and Health Services,Head of Adults,Third Party Payments,474101,Purchase of Care,01-Nov-16,3200382-2342385,"2,156.96",EMBRACE ALL LTD.
Adult and Health Services,Central/Other,Debtors,930024,Debtor-free nursing care,01-Nov-16,3200382-2342386,625,EMBRACE ALL LTD.
Adult and Health Services,Head of Adults,Third Party Payments,470101,Purchase of Care,01-Nov-16,3200382-2342387,"2,059.56",EMBRACE ALL LTD.
Adult and Health Services,Head of Adults,Third Party Payments,470101,Purchase of Care,01-Nov-16,3200382-2342388,"1,986.00",EMBRACE ALL LTD.
Adult and Health Services,Head of Adults,Debtors,930135,Debtor Residential Care - IC+ Rehabilitation,01-Nov-16,3200382-2342389,563.12,EMBRACE ALL LTD.
Adult and Health Services,Head of Adults,Third Party Payments,474101,Purchase of Care,01-Nov-16,3200382-2342390,539.24,EMBRACE ALL LTD.
Adult and Health Services,Head of Adults,Third Party Payments,470101,Purchase of Care,01-Nov-16,3200382-2342392,"2,059.56",EMBRACE ALL LTD.
Adult and Health Services,Head of Adults,Third Party Payments,470101,Purchase of Care,01-Nov-16,3200382-2342393,"2,059.56",EMBRACE ALL LTD.
Adult and Health Services,Head of Adults,Third Party Payments,470101,Purchase of Care,01-Nov-16,3200382-2342394,"1,397.55",EMBRACE ALL LTD.
Adult and Health Services,Head of Adults,Third Party Payments,474101,Purchase of Care,01-Nov-16,3200382-2342396,"1,078.48",EMBRACE ALL LTD.
Adult and Health Services,Head of Adults,Third Party Payments,474101,Purchase of Care,01-Nov-16,3200382-2342398,"1,078.48",EMBRACE ALL LTD.
Adult and Health Services,Central/Other,Debtors,930024,Debtor-free nursing care,01-Nov-16,3200382-2342399,625,EMBRACE ALL LTD.
Adult and Health Services,Head of Adults,Third Party Payments,470101,Purchase of Care,01-Nov-16,3200382-2342400,"2,059.56",EMBRACE ALL LTD.
Adult and Health Services,Head of Adults,Third Party Payments,470101,Purchase of Care,01-Nov-16,3200382-2342401,"2,059.56",EMBRACE ALL LTD.
Adult and Health Services,Head of Adults,Debtors,930135,Debtor Residential Care - IC+ Rehabilitation,01-Nov-16,3200382-2342402,"2,252.48",EMBRACE ALL LTD.
Adult and Health Services,Head of Adults,Third Party Payments,474101,Purchase of Care,01-Nov-16,3200382-2342403,"2,156.96",EMBRACE ALL LTD.
Adult and Health Services,Central/Other,Debtors,930024,Debtor-free nursing care,01-Nov-16,3200382-2342404,625,EMBRACE ALL LTD.
Adult and Health Services,Head of Adults,Third Party Payments,474101,Purchase of Care,01-Nov-16,3200382-2342405,"2,156.96",EMBRACE ALL LTD.
Adult and Health Services,Central/Other,Debtors,930024,Debtor-free nursing care,01-Nov-16,3200382-2342406,625,EMBRACE ALL LTD.
Adult and Health Services,Head of Adults,Third Party Payments,474101,Purchase of Care,01-Nov-16,3200382-2342408,"2,156.96",EMBRACE ALL LTD.
Adult and Health Services,Central/Other,Debtors,930024,Debtor-free nursing care,01-Nov-16,3200382-2342409,625,EMBRACE ALL LTD.
Adult and Health Services,Head of Adults,Debtors,930135,Debtor Residential Care - IC+ Rehabilitation,01-Nov-16,3200382-2342410,"1,689.36",EMBRACE ALL LTD.
Adult and Health Services,Head of Adults,Third Party Payments,474101,Purchase of Care,01-Nov-16,3200382-2342412,"3,466.54",EMBRACE ALL LTD.
Adult and Health Services,Central/Other,Debtors,930024,Debtor-free nursing care,01-Nov-16,3200382-2342413,"1,004.46",EMBRACE ALL LTD.
Adult and Health Services,Head of Adults,Third Party Payments,474101,Purchase of Care,01-Nov-16,3200382-2342414,"2,156.96",EMBRACE ALL LTD.
Adult and Health Services,Central/Other,Debtors,930024,Debtor-free nursing care,01-Nov-16,3200382-2342415,625,EMBRACE ALL LTD.
Adult and Health Services,Head of Adults,Third Party Payments,470101,Purchase of Care,01-Nov-16,3200382-2342416,"2,059.56",EMBRACE ALL LTD.
Adult and Health Services,Head of Adults,Third Party Payments,471101,Purchase of Care,01-Nov-16,3200382-2342417,"2,135.60",EMBRACE ALL LTD.
Adult and Health Services,Head of Adults,Third Party Payments,470101,Purchase of Care,01-Nov-16,3200382-2342418,"2,059.56",EMBRACE ALL LTD.
Adult and Health Services,Head of Adults,Third Party Payments,470101,Purchase of Care,01-Nov-16,3200382-2342419,"2,059.56",EMBRACE ALL LTD.
Adult and Health Services,Head of Adults,Third Party Payments,470101,Purchase of Care,01-Nov-16,3200382-2342420,"2,059.56",EMBRACE ALL LTD.
Adult and Health Services,Head of Adults,Third Party Payments,471101,Purchase of Care,01-Nov-16,3200382-2342421,"2,135.60",EMBRACE ALL LTD.
Adult and Health Services,Head of Adults,Third Party Payments,474101,Purchase of Care,01-Nov-16,3200382-2342422,"2,156.96",EMBRACE ALL LTD.
Adult and Health Services,Central/Other,Debtors,930024,Debtor-free nursing care,01-Nov-16,3200382-2342423,625,EMBRACE ALL LTD.
Adult and Health Services,Head of Adults,Third Party Payments,470101,Purchase of Care,01-Nov-16,3200382-2342424,"2,124.52",EMBRACE ALL LTD.
Adult and Health Services,Head of Adults,Third Party Payments,470101,Purchase of Care,01-Nov-16,3200382-2342425,"2,059.56",EMBRACE ALL LTD.
Adult and Health Services,Head of Adults,Third Party Payments,470101,Purchase of Care,01-Nov-16,3200382-2342426,"2,059.56",EMBRACE ALL LTD.
Adult and Health Services,Head of Adults,Third Party Payments,471101,Purchase of Care,01-Nov-16,3200382-2342427,"2,135.60",EMBRACE ALL LTD.
Adult and Health Services,Head of Adults,Third Party Payments,471101,Purchase of Care,01-Nov-16,3200382-2342428,"2,135.60",EMBRACE ALL LTD.
Adult and Health Services,Head of Adults,Third Party Payments,474101,Purchase of Care,01-Nov-16,3200382-2342429,"2,156.96",EMBRACE ALL LTD.
Adult and Health Services,Central/Other,Debtors,930024,Debtor-free nursing care,01-Nov-16,3200382-2342430,625,EMBRACE ALL LTD.
Adult and Health Services,Head of Adults,Third Party Payments,470101,Purchase of Care,01-Nov-16,3200382-2342431,"2,059.56",EMBRACE ALL LTD.
Adult and Health Services,Central/Other,Debtors,930024,Debtor-free nursing care,01-Nov-16,3200382-2342432,625,EMBRACE ALL LTD.
Adult and Health Services,Head of Adults,Third Party Payments,471101,Purchase of Care,01-Nov-16,3200382-2342433,"2,135.60",EMBRACE ALL LTD.
Adult and Health Services,Head of Adults,Third Party Payments,470101,Purchase of Care,01-Nov-16,3200382-2342434,"2,059.56",EMBRACE ALL LTD.
Adult and Health Services,Head of Adults,Third Party Payments,474101,Purchase of Care,01-Nov-16,3200382-2342435,"2,156.96",EMBRACE ALL LTD.
Adult and Health Services,Central/Other,Debtors,930024,Debtor-free nursing care,01-Nov-16,3200382-2342436,625,EMBRACE ALL LTD.
Adult and Health Services,Head of Adults,Third Party Payments,474101,Purchase of Care,01-Nov-16,3200382-2342437,"2,156.96",EMBRACE ALL LTD.
Adult and Health Services,Central/Other,Debtors,930024,Debtor-free nursing care,01-Nov-16,3200382-2342438,625,EMBRACE ALL LTD.
Adult and Health Services,Head of Adults,Third Party Payments,470101,Purchase of Care,01-Nov-16,3200382-2342439,"2,059.56",EMBRACE ALL LTD.
Adult and Health Services,Head of Adults,Third Party Payments,470101,Purchase of Care,01-Nov-16,3200382-2342440,"2,309.64",EMBRACE ALL LTD.
Adult and Health Services,Head of Adults,Third Party Payments,471101,Purchase of Care,01-Nov-16,3200382-2342441,"2,135.60",EMBRACE ALL LTD.
Adult and Health Services,Head of Adults,Third Party Payments,471101,Purchase of Care,01-Nov-16,3200382-2342442,"2,135.60",EMBRACE ALL LTD.
Adult and Health Services,Head of Adults,Third Party Payments,471101,Purchase of Care,01-Nov-16,3200382-2342443,"2,135.60",EMBRACE ALL LTD.
Adult and Health Services,Head of Adults,Third Party Payments,471101,Purchase of Care,01-Nov-16,3200382-2342444,"2,135.60",EMBRACE ALL LTD.
Adult and Health Services,Head of Adults,Third Party Payments,474101,Purchase of Care,01-Nov-16,3200382-2342987,"2,696.20",EMBRACE ALL LTD.
Adult and Health Services,Head of Adults,Third Party Payments,471101,Purchase of Care,01-Nov-16,3200382-2343617,"2,211.87",EMBRACE ALL LTD.
Adult and Health Services,Head of Adults,Third Party Payments,470101,Purchase of Care,01-Nov-16,3200383-2341161,"2,500.89",EMBRACE ALL LTD.
Adult and Health Services,Head of Adults,Third Party Payments,470101,Purchase of Care,01-Nov-16,3200383-2341163,"2,059.56",EMBRACE ALL LTD.
Adult and Health Services,Head of Adults,Third Party Payments,471101,Purchase of Care,01-Nov-16,3200383-2341164,"2,135.60",EMBRACE ALL LTD.
Adult and Health Services,Head of Adults,Third Party Payments,470101,Purchase of Care,01-Nov-16,3200383-2341165,"2,059.56",EMBRACE ALL LTD.
Adult and Health Services,Head of Adults,Third Party Payments,470101,Purchase of Care,01-Nov-16,3200383-2341166,"2,059.56",EMBRACE ALL LTD.
Adult and Health Services,Head of Adults,Third Party Payments,470101,Purchase of Care,01-Nov-16,3200383-2341167,"2,059.56",EMBRACE ALL LTD.
Adult and Health Services,Head of Adults,Third Party Payments,470101,Purchase of Care,01-Nov-16,3200383-2341169,"2,059.56",EMBRACE ALL LTD.
Adult and Health Services,Head of Adults,Third Party Payments,470101,Purchase of Care,01-Nov-16,3200383-2341170,"2,059.56",EMBRACE ALL LTD.
Adult and Health Services,Head of Adults,Third Party Payments,471101,Purchase of Care,01-Nov-16,3200383-2341171,"2,135.60",EMBRACE ALL LTD.
Adult and Health Services,Head of Adults,Third Party Payments,471101,Purchase of Care,01-Nov-16,3200383-2341172,"2,135.60",EMBRACE ALL LTD.
Adult and Health Services,Head of Adults,Third Party Payments,470101,Purchase of Care,01-Nov-16,3200383-2341173,"2,059.56",EMBRACE ALL LTD.
Adult and Health Services,Head of Adults,Third Party Payments,470101,Purchase of Care,01-Nov-16,3200383-2341174,"2,059.56",EMBRACE ALL LTD.
Adult and Health Services,Head of Adults,Third Party Payments,471101,Purchase of Care,01-Nov-16,3200383-2341175,"2,135.60",EMBRACE ALL LTD.
Adult and Health Services,Head of Adults,Third Party Payments,470101,Purchase of Care,01-Nov-16,3200383-2341176,"2,059.56",EMBRACE ALL LTD.
Adult and Health Services,Head of Adults,Third Party Payments,470101,Purchase of Care,01-Nov-16,3200383-2341177,"2,059.56",EMBRACE ALL LTD.
Adult and Health Services,Head of Adults,Third Party Payments,470101,Purchase of Care,01-Nov-16,3200383-2341178,"2,059.56",EMBRACE ALL LTD.
Adult and Health Services,Head of Adults,Third Party Payments,471101,Purchase of Care,01-Nov-16,3200383-2341179,"2,135.60",EMBRACE ALL LTD.
Adult and Health Services,Head of Adults,Third Party Payments,470101,Purchase of Care,01-Nov-16,3200383-2341180,"2,059.56",EMBRACE ALL LTD.
Adult and Health Services,Head of Adults,Third Party Payments,470101,Purchase of Care,01-Nov-16,3200383-2341181,"2,059.56",EMBRACE ALL LTD.
Adult and Health Services,Head of Adults,Third Party Payments,470101,Purchase of Care,01-Nov-16,3200383-2341182,"2,059.56",EMBRACE ALL LTD.
Adult and Health Services,Head of Adults,Third Party Payments,470101,Purchase of Care,01-Nov-16,3200383-2341183,"2,059.56",EMBRACE ALL LTD.
Adult and Health Services,Head of Adults,Third Party Payments,470101,Purchase of Care,01-Nov-16,3200383-2341184,"2,059.56",EMBRACE ALL LTD.
Adult and Health Services,Head of Adults,Third Party Payments,470101,Purchase of Care,01-Nov-16,3200383-2341185,"2,059.56",EMBRACE ALL LTD.
Adult and Health Services,Head of Adults,Third Party Payments,470101,Purchase of Care,01-Nov-16,3200383-2341186,"2,059.56",EMBRACE ALL LTD.
Adult and Health Services,Head of Adults,Third Party Payments,470101,Purchase of Care,01-Nov-16,3200383-2341187,"2,059.56",EMBRACE ALL LTD.
Adult and Health Services,Head of Adults,Third Party Payments,470101,Purchase of Care,01-Nov-16,3200383-2341188,"2,059.56",EMBRACE ALL LTD.
Adult and Health Services,Head of Adults,Third Party Payments,470101,Purchase of Care,01-Nov-16,3200383-2341189,"2,059.56",EMBRACE ALL LTD.
Adult and Health Services,Head of Adults,Third Party Payments,470101,Purchase of Care,01-Nov-16,3200383-2341190,"2,059.56",EMBRACE ALL LTD.
Adult and Health Services,Head of Adults,Third Party Payments,470101,Purchase of Care,01-Nov-16,3200383-2341191,"2,059.56",EMBRACE ALL LTD.
Adult and Health Services,Head of Adults,Third Party Payments,470101,Purchase of Care,01-Nov-16,3200383-2341192,"2,059.56",EMBRACE ALL LTD.
Adult and Health Services,Head of Adults,Third Party Payments,471101,Purchase of Care,01-Nov-16,3200383-2342923,"2,059.32",EMBRACE ALL LTD.
Adult and Health Services,Head of Adults,Third Party Payments,471101,Purchase of Care,01-Nov-16,3200383-2342924,533.9,EMBRACE ALL LTD.
Adult and Health Services,Head of Adults,Third Party Payments,470101,Purchase of Care,01-Nov-16,3200383-2343146,"1,765.33",EMBRACE ALL LTD.
Adult and Health Services,Head of Adults,Third Party Payments,470101,Purchase of Care,01-Nov-16,3200383-2343156,"1,838.89",EMBRACE ALL LTD.
Adult and Health Services,Head of Adults,Third Party Payments,471101,Purchase of Care,01-Nov-16,3200384-2341022,"2,135.60",EMBRACE ALL LTD.
Adult and Health Services,Head of Adults,Debtors,930135,Debtor Residential Care - IC+ Rehabilitation,01-Nov-16,3200384-2341023,"1,126.24",EMBRACE ALL LTD.
Adult and Health Services,Head of Adults,Debtors,930134,Debtor Nursing Care - IC+ Time to Think,01-Nov-16,3200384-2341025,"1,105.80",EMBRACE ALL LTD.
Adult and Health Services,Head of Adults,Debtors,930135,Debtor Residential Care - IC+ Rehabilitation,01-Nov-16,3200384-2341027,"1,478.19",EMBRACE ALL LTD.
Adult and Health Services,Head of Adults,Third Party Payments,474101,Purchase of Care,01-Nov-16,3200384-2341028,"2,156.96",EMBRACE ALL LTD.
Adult and Health Services,Central/Other,Debtors,930024,Debtor-free nursing care,01-Nov-16,3200384-2341029,625,EMBRACE ALL LTD.
Adult and Health Services,Head of Adults,Third Party Payments,471101,Purchase of Care,01-Nov-16,3200384-2341030,"2,135.60",EMBRACE ALL LTD.
Adult and Health Services,Head of Adults,Third Party Payments,474101,Purchase of Care,01-Nov-16,3200384-2341031,"2,156.96",EMBRACE ALL LTD.
Adult and Health Services,Central/Other,Debtors,930024,Debtor-free nursing care,01-Nov-16,3200384-2341032,625,EMBRACE ALL LTD.
Adult and Health Services,Head of Adults,Third Party Payments,470101,Purchase of Care,01-Nov-16,3200384-2341033,"2,059.56",EMBRACE ALL LTD.
Adult and Health Services,Head of Adults,Debtors,930135,Debtor Residential Care - IC+ Rehabilitation,01-Nov-16,3200384-2341035,774.29,EMBRACE ALL LTD.
Adult and Health Services,Head of Adults,Third Party Payments,474101,Purchase of Care,01-Nov-16,3200384-2341037,770.34,EMBRACE ALL LTD.
Adult and Health Services,Head of Adults,Third Party Payments,470101,Purchase of Care,01-Nov-16,3200384-2341039,"2,059.56",EMBRACE ALL LTD.
Adult and Health Services,Head of Adults,Debtors,930135,Debtor Residential Care - IC+ Rehabilitation,01-Nov-16,3200384-2341040,"1,126.24",EMBRACE ALL LTD.
Adult and Health Services,Head of Adults,Debtors,930134,Debtor Nursing Care - IC+ Time to Think,01-Nov-16,3200384-2341041,663.48,EMBRACE ALL LTD.
Adult and Health Services,Head of Adults,Third Party Payments,470101,Purchase of Care,01-Nov-16,3200384-2341044,"2,059.56",EMBRACE ALL LTD.
Adult and Health Services,Head of Adults,Third Party Payments,471101,Purchase of Care,01-Nov-16,3200384-2341045,"1,449.15",EMBRACE ALL LTD.
Adult and Health Services,Head of Adults,Third Party Payments,474101,Purchase of Care,01-Nov-16,3200384-2341046,"2,156.96",EMBRACE ALL LTD.
Adult and Health Services,Central/Other,Debtors,930024,Debtor-free nursing care,01-Nov-16,3200384-2341047,625,EMBRACE ALL LTD.
Adult and Health Services,Head of Adults,Third Party Payments,474101,Purchase of Care,01-Nov-16,3200384-2341048,"2,156.96",EMBRACE ALL LTD.
Adult and Health Services,Central/Other,Debtors,930024,Debtor-free nursing care,01-Nov-16,3200384-2341049,625,EMBRACE ALL LTD.
Adult and Health Services,Head of Adults,Debtors,930135,Debtor Residential Care - IC+ Rehabilitation,01-Nov-16,3200384-2341052,"1,126.24",EMBRACE ALL LTD.
Adult and Health Services,Head of Adults,Third Party Payments,474101,Purchase of Care,01-Nov-16,3200384-2341053,"1,463.65",EMBRACE ALL LTD.
Adult and Health Services,Head of Adults,Third Party Payments,471101,Purchase of Care,01-Nov-16,3200384-2341055,"2,135.60",EMBRACE ALL LTD.
Adult and Health Services,Head of Adults,Third Party Payments,471101,Purchase of Care,01-Nov-16,3200384-2341056,"2,135.60",EMBRACE ALL LTD.
Adult and Health Services,Head of Adults,Third Party Payments,474101,Purchase of Care,01-Nov-16,3200384-2341057,"2,156.96",EMBRACE ALL LTD.
Adult and Health Services,Central/Other,Debtors,930024,Debtor-free nursing care,01-Nov-16,3200384-2341058,625,EMBRACE ALL LTD.
Adult and Health Services,Head of Adults,Third Party Payments,474101,Purchase of Care,01-Nov-16,3200384-2341060,"2,156.96",EMBRACE ALL LTD.
Adult and Health Services,Central/Other,Debtors,930024,Debtor-free nursing care,01-Nov-16,3200384-2341061,625,EMBRACE ALL LTD.
Adult and Health Services,Head of Adults,Third Party Payments,474101,Purchase of Care,01-Nov-16,3200384-2341062,"2,156.96",EMBRACE ALL LTD.
Adult and Health Services,Central/Other,Debtors,930024,Debtor-free nursing care,01-Nov-16,3200384-2341063,625,EMBRACE ALL LTD.
Adult and Health Services,Head of Adults,Third Party Payments,471101,Purchase of Care,01-Nov-16,3200384-2341064,"2,135.60",EMBRACE ALL LTD.
Adult and Health Services,Head of Adults,Third Party Payments,474101,Purchase of Care,01-Nov-16,3200384-2341065,"1,078.48",EMBRACE ALL LTD.
Adult and Health Services,Head of Adults,Third Party Payments,470101,Purchase of Care,01-Nov-16,3200384-2341067,"2,059.56",EMBRACE ALL LTD.
Adult and Health Services,Head of Adults,Third Party Payments,471101,Purchase of Care,01-Nov-16,3200384-2341068,"2,135.60",EMBRACE ALL LTD.
Adult and Health Services,Head of Adults,Third Party Payments,471101,Purchase of Care,01-Nov-16,3200384-2341069,"2,135.60",EMBRACE ALL LTD.
Adult and Health Services,Head of Adults,Third Party Payments,474101,Purchase of Care,01-Nov-16,3200384-2341070,"2,156.96",EMBRACE ALL LTD.
Adult and Health Services,Central/Other,Debtors,930024,Debtor-free nursing care,01-Nov-16,3200384-2341071,625,EMBRACE ALL LTD.
Adult and Health Services,Head of Adults,Third Party Payments,470101,Purchase of Care,01-Nov-16,3200384-2341072,"2,059.56",EMBRACE ALL LTD.
Adult and Health Services,Head of Adults,Third Party Payments,470101,Purchase of Care,01-Nov-16,3200384-2341073,"2,059.56",EMBRACE ALL LTD.
Adult and Health Services,Head of Adults,Third Party Payments,474101,Purchase of Care,01-Nov-16,3200384-2341074,"2,156.96",EMBRACE ALL LTD.
Adult and Health Services,Central/Other,Debtors,930024,Debtor-free nursing care,01-Nov-16,3200384-2341075,625,EMBRACE ALL LTD.
Adult and Health Services,Head of Adults,Third Party Payments,470101,Purchase of Care,01-Nov-16,3200384-2341076,"2,059.56",EMBRACE ALL LTD.
Adult and Health Services,Head of Adults,Third Party Payments,470101,Purchase of Care,01-Nov-16,3200384-2341077,"2,059.56",EMBRACE ALL LTD.
Adult and Health Services,Head of Adults,Third Party Payments,470101,Purchase of Care,01-Nov-16,3200384-2341078,"2,059.56",EMBRACE ALL LTD.
Adult and Health Services,Head of Adults,Third Party Payments,474101,Purchase of Care,01-Nov-16,3200384-2341079,"2,156.96",EMBRACE ALL LTD.
Adult and Health Services,Central/Other,Debtors,930024,Debtor-free nursing care,01-Nov-16,3200384-2341080,625,EMBRACE ALL LTD.
Adult and Health Services,Head of Adults,Third Party Payments,474101,Purchase of Care,01-Nov-16,3200384-2341081,"2,156.96",EMBRACE ALL LTD.
Adult and Health Services,Central/Other,Debtors,930024,Debtor-free nursing care,01-Nov-16,3200384-2341082,625,EMBRACE ALL LTD.
Adult and Health Services,Head of Adults,Third Party Payments,471101,Purchase of Care,01-Nov-16,3200384-2341083,"2,135.60",EMBRACE ALL LTD.
Adult and Health Services,Head of Adults,Third Party Payments,471101,Purchase of Care,01-Nov-16,3200384-2341084,"2,135.60",EMBRACE ALL LTD.
Adult and Health Services,Head of Adults,Third Party Payments,470101,Purchase of Care,01-Nov-16,3200384-2341085,"2,059.56",EMBRACE ALL LTD.
Adult and Health Services,Head of Adults,Third Party Payments,471101,Purchase of Care,01-Nov-16,3200384-2341086,"2,135.60",EMBRACE ALL LTD.
Adult and Health Services,Head of Adults,Third Party Payments,470101,Purchase of Care,01-Nov-16,3200384-2341087,"2,059.56",EMBRACE ALL LTD.
Adult and Health Services,Head of Adults,Third Party Payments,474999,Purchase of Care,01-Nov-16,3200384-2342933,714.33,EMBRACE ALL LTD.
Adult and Health Services,Head of Adults,Debtors,930135,Debtor Residential Care - IC+ Rehabilitation,01-Nov-16,3200384-2343141,774.29,EMBRACE ALL LTD.
Adult and Health Services,Head of Adults,Third Party Payments,470101,Purchase of Care,01-Nov-16,3200384-2343145,"1,324.00",EMBRACE ALL LTD.
Adult and Health Services,Head of Adults,Debtors,930135,Debtor Residential Care - IC+ Rehabilitation,01-Nov-16,3200384-2343154,"2,041.31",EMBRACE ALL LTD.
Adult and Health Services,Head of Adults,Debtors,930135,Debtor Residential Care - IC+ Rehabilitation,01-Nov-16,3200384-2343553,"1,478.19",EMBRACE ALL LTD.
Adult and Health Services,Head of Adults,Debtors,930135,Debtor Residential Care - IC+ Rehabilitation,01-Nov-16,3200384-2343554,"1,689.36",EMBRACE ALL LTD.
Adult and Health Services,Head of Adults,Third Party Payments,471101,Purchase of Care,01-Nov-16,3200385-2342519,"2,135.60",EMBRACE ALL LTD.
Adult and Health Services,Head of Adults,Debtors,930135,Debtor Residential Care - IC+ Rehabilitation,01-Nov-16,3200385-2342520,"1,689.36",EMBRACE ALL LTD.
Adult and Health Services,Head of Adults,Third Party Payments,470101,Purchase of Care,01-Nov-16,3200385-2342521,"2,059.56",EMBRACE ALL LTD.
Adult and Health Services,Head of Adults,Third Party Payments,474101,Purchase of Care,01-Nov-16,3200385-2342522,"2,465.10",EMBRACE ALL LTD.
Adult and Health Services,Central/Other,Debtors,930024,Debtor-free nursing care,01-Nov-16,3200385-2342523,625,EMBRACE ALL LTD.
Adult and Health Services,Head of Adults,Third Party Payments,474101,Purchase of Care,01-Nov-16,3200385-2342524,"2,156.96",EMBRACE ALL LTD.
Adult and Health Services,Central/Other,Debtors,930024,Debtor-free nursing care,01-Nov-16,3200385-2342525,625,EMBRACE ALL LTD.
Adult and Health Services,Head of Adults,Third Party Payments,471101,Purchase of Care,01-Nov-16,3200385-2342526,"2,135.60",EMBRACE ALL LTD.
Adult and Health Services,Head of Adults,Third Party Payments,470101,Purchase of Care,01-Nov-16,3200385-2342527,"2,059.56",EMBRACE ALL LTD.
Adult and Health Services,Head of Adults,Third Party Payments,470101,Purchase of Care,01-Nov-16,3200385-2342528,"2,059.56",EMBRACE ALL LTD.
Adult and Health Services,Head of Adults,Third Party Payments,470101,Purchase of Care,01-Nov-16,3200385-2342529,"2,059.56",EMBRACE ALL LTD.
Adult and Health Services,Head of Adults,Third Party Payments,470101,Purchase of Care,01-Nov-16,3200385-2342530,514.89,EMBRACE ALL LTD.
Adult and Health Services,Head of Adults,Debtors,930135,Debtor Residential Care - IC+ Rehabilitation,01-Nov-16,3200385-2342534,"1,970.92",EMBRACE ALL LTD.
Adult and Health Services,Head of Adults,Third Party Payments,474101,Purchase of Care,01-Nov-16,3200385-2342535,"1,078.48",EMBRACE ALL LTD.
Adult and Health Services,Head of Adults,Third Party Payments,470101,Purchase of Care,01-Nov-16,3200385-2342537,"2,059.56",EMBRACE ALL LTD.
Adult and Health Services,Head of Adults,Third Party Payments,474101,Purchase of Care,01-Nov-16,3200385-2342538,"2,156.96",EMBRACE ALL LTD.
Adult and Health Services,Central/Other,Debtors,930024,Debtor-free nursing care,01-Nov-16,3200385-2342539,625,EMBRACE ALL LTD.
Adult and Health Services,Head of Adults,Third Party Payments,474101,Purchase of Care,01-Nov-16,3200385-2342540,"2,156.96",EMBRACE ALL LTD.
Adult and Health Services,Head of Adults,Third Party Payments,474101,Purchase of Care,01-Nov-16,3200385-2342541,"2,156.96",EMBRACE ALL LTD.
Adult and Health Services,Central/Other,Debtors,930024,Debtor-free nursing care,01-Nov-16,3200385-2342542,625,EMBRACE ALL LTD.
Adult and Health Services,Head of Adults,Third Party Payments,470101,Purchase of Care,01-Nov-16,3200385-2342543,"2,059.56",EMBRACE ALL LTD.
Adult and Health Services,Head of Adults,Third Party Payments,474101,Purchase of Care,01-Nov-16,3200385-2342544,"2,156.96",EMBRACE ALL LTD.
Adult and Health Services,Central/Other,Debtors,930024,Debtor-free nursing care,01-Nov-16,3200385-2342545,625,EMBRACE ALL LTD.
Adult and Health Services,Head of Adults,Third Party Payments,470101,Purchase of Care,01-Nov-16,3200385-2342546,"2,059.56",EMBRACE ALL LTD.
Adult and Health Services,Head of Adults,Third Party Payments,470101,Purchase of Care,01-Nov-16,3200385-2342547,"2,059.56",EMBRACE ALL LTD.
Adult and Health Services,Head of Adults,Third Party Payments,470101,Purchase of Care,01-Nov-16,3200385-2342548,"2,059.56",EMBRACE ALL LTD.
Adult and Health Services,Head of Adults,Third Party Payments,470101,Purchase of Care,01-Nov-16,3200385-2342549,"2,059.56",EMBRACE ALL LTD.
Adult and Health Services,Head of Adults,Third Party Payments,474101,Purchase of Care,01-Nov-16,3200385-2342550,"1,078.48",EMBRACE ALL LTD.
Adult and Health Services,Head of Adults,Third Party Payments,471101,Purchase of Care,01-Nov-16,3200385-2342552,"2,135.60",EMBRACE ALL LTD.
Adult and Health Services,Head of Adults,Third Party Payments,474101,Purchase of Care,01-Nov-16,3200385-2342553,"2,156.96",EMBRACE ALL LTD.
Adult and Health Services,Central/Other,Debtors,930024,Debtor-free nursing care,01-Nov-16,3200385-2342554,625,EMBRACE ALL LTD.
Adult and Health Services,Head of Adults,Third Party Payments,474101,Purchase of Care,01-Nov-16,3200385-2342555,"1,078.48",EMBRACE ALL LTD.
Adult and Health Services,Head of Adults,Third Party Payments,474101,Purchase of Care,01-Nov-16,3200385-2342557,"1,078.48",EMBRACE ALL LTD.
Adult and Health Services,Head of Adults,Third Party Payments,474101,Purchase of Care,01-Nov-16,3200385-2342559,"2,156.96",EMBRACE ALL LTD.
Adult and Health Services,Central/Other,Debtors,930024,Debtor-free nursing care,01-Nov-16,3200385-2342560,625,EMBRACE ALL LTD.
Adult and Health Services,Head of Adults,Third Party Payments,470101,Purchase of Care,01-Nov-16,3200385-2343402,809.11,EMBRACE ALL LTD.
Adult and Health Services,Head of Adults,Third Party Payments,470101,Purchase of Care,01-Nov-16,3200385-2343403,"1,838.88",EMBRACE ALL LTD.
Adult and Health Services,Head of Adults,Third Party Payments,470101,Purchase of Care,01-Nov-16,3200386-2341153,"2,141.68",EOTHEN HOMES LTD.
Adult and Health Services,Head of Adults,Third Party Payments,470101,Purchase of Care,01-Nov-16,3200387-2342767,"2,032.28",EOTHEN.
Adult and Health Services,Head of Adults,Third Party Payments,470101,Purchase of Care,01-Nov-16,3200388-2340647,"6,489.92",ESPA LTD.
Adult and Health Services,Head of Adults,Third Party Payments,470101,Purchase of Care,01-Nov-16,3200388-2340648,"4,664.28",ESPA LTD.
Adult and Health Services,Head of Adults,Third Party Payments,470101,Purchase of Care,01-Nov-16,3200388-2340649,"4,759.08",ESPA LTD.
Adult and Health Services,Head of Adults,Third Party Payments,470101,Purchase of Care,01-Nov-16,3200388-2341021,"7,888.80",ESPA LTD.
Adult and Health Services,Head of Adults,Third Party Payments,470101,Purchase of Care,01-Nov-16,3200388-2342700,"9,611.92",ESPA LTD.
Adult and Health Services,Head of Adults,Third Party Payments,470101,Purchase of Care,01-Nov-16,3200388-2342754,"4,740.08",ESPA LTD.
Adult and Health Services,Head of Adults,Third Party Payments,470101,Purchase of Care,01-Nov-16,3200389-2342701,"3,300.00",ESPA LTD.
Adult and Health Services,Head of Adults,Third Party Payments,471101,Purchase of Care,01-Nov-16,3200390-2342904,"1,200.00",FARRINGTON CARE HOME LTD T/A THE FAIRWAYS RESIDENTIAL CARE HOME.
Adult and Health Services,Head of Adults,Third Party Payments,471101,Purchase of Care,01-Nov-16,3200391-2341229,"2,135.60",FIELD VIEW CARE HOME.
Adult and Health Services,Head of Adults,Third Party Payments,470101,Purchase of Care,01-Nov-16,3200391-2341231,"3,089.34",FIELD VIEW CARE HOME.
Adult and Health Services,Head of Adults,Third Party Payments,470101,Purchase of Care,01-Nov-16,3200391-2341233,"2,059.56",FIELD VIEW CARE HOME.
Adult and Health Services,Head of Adults,Third Party Payments,471101,Purchase of Care,01-Nov-16,3200391-2341234,"2,135.60",FIELD VIEW CARE HOME.
Adult and Health Services,Head of Adults,Third Party Payments,470101,Purchase of Care,01-Nov-16,3200391-2341235,"2,135.60",FIELD VIEW CARE HOME.
Adult and Health Services,Head of Adults,Third Party Payments,470101,Purchase of Care,01-Nov-16,3200391-2341236,"4,800.00",FIELD VIEW CARE HOME.
Adult and Health Services,Head of Adults,Third Party Payments,471101,Purchase of Care,01-Nov-16,3200391-2341237,"2,135.60",FIELD VIEW CARE HOME.
Adult and Health Services,Head of Adults,Third Party Payments,470101,Purchase of Care,01-Nov-16,3200391-2341239,"2,059.56",FIELD VIEW CARE HOME.
Adult and Health Services,Head of Adults,Third Party Payments,470101,Purchase of Care,01-Nov-16,3200391-2341240,"2,059.56",FIELD VIEW CARE HOME.
Adult and Health Services,Head of Adults,Third Party Payments,471101,Purchase of Care,01-Nov-16,3200391-2341242,"2,135.60",FIELD VIEW CARE HOME.
Adult and Health Services,Head of Adults,Third Party Payments,470101,Purchase of Care,01-Nov-16,3200391-2341243,"1,029.80",FIELD VIEW CARE HOME.
Adult and Health Services,Head of Adults,Third Party Payments,470101,Purchase of Care,01-Nov-16,3200391-2341244,"2,059.56",FIELD VIEW CARE HOME.
Adult and Health Services,Head of Adults,Third Party Payments,470101,Purchase of Care,01-Nov-16,3200391-2341245,"2,059.56",FIELD VIEW CARE HOME.
Adult and Health Services,Head of Adults,Third Party Payments,471101,Purchase of Care,01-Nov-16,3200391-2341246,"2,135.60",FIELD VIEW CARE HOME.
Adult and Health Services,Head of Adults,Third Party Payments,470101,Purchase of Care,01-Nov-16,3200391-2341247,"2,059.56",FIELD VIEW CARE HOME.
Adult and Health Services,Head of Adults,Third Party Payments,470101,Purchase of Care,01-Nov-16,3200391-2341248,"2,059.56",FIELD VIEW CARE HOME.
Adult and Health Services,Head of Adults,Third Party Payments,470101,Purchase of Care,01-Nov-16,3200391-2341249,"2,059.56",FIELD VIEW CARE HOME.
Adult and Health Services,Head of Adults,Third Party Payments,471101,Purchase of Care,01-Nov-16,3200391-2341250,"2,135.60",FIELD VIEW CARE HOME.
Adult and Health Services,Head of Adults,Third Party Payments,470101,Purchase of Care,01-Nov-16,3200391-2341251,"2,059.56",FIELD VIEW CARE HOME.
Adult and Health Services,Head of Adults,Third Party Payments,470101,Purchase of Care,01-Nov-16,3200391-2341252,"2,059.56",FIELD VIEW CARE HOME.
Adult and Health Services,Head of Adults,Third Party Payments,470101,Purchase of Care,01-Nov-16,3200391-2341253,"2,059.56",FIELD VIEW CARE HOME.
Adult and Health Services,Head of Adults,Third Party Payments,470101,Purchase of Care,01-Nov-16,3200391-2341254,"2,059.56",FIELD VIEW CARE HOME.
Adult and Health Services,Head of Adults,Third Party Payments,470101,Purchase of Care,01-Nov-16,3200391-2341256,"2,059.56",FIELD VIEW CARE HOME.
Adult and Health Services,Head of Adults,Third Party Payments,470101,Purchase of Care,01-Nov-16,3200391-2343158,"1,029.78",FIELD VIEW CARE HOME.
Adult and Health Services,Head of Adults,Third Party Payments,470101,Purchase of Care,01-Nov-16,3200391-2343596,"1,618.22",FIELD VIEW CARE HOME.
Adult and Health Services,Head of Adults,Third Party Payments,470101,Purchase of Care,01-Nov-16,3200391-2343597,"1,956.58",FIELD VIEW CARE HOME.
Adult and Health Services,Head of Adults,Third Party Payments,470101,Purchase of Care,01-Nov-16,3200391-2343598,"2,059.56",FIELD VIEW CARE HOME.
Adult and Health Services,Head of Adults,Third Party Payments,474101,Purchase of Care,01-Nov-16,3200392-2341000,"1,755.88",FOUR SEASONS HEALTH CARE..
Adult and Health Services,Head of Adults,Third Party Payments,471101,Purchase of Care,01-Nov-16,3200393-2341263,"1,746.63",FOUR SEASONS HEALTH CARE..
Adult and Health Services,Head of Adults,Third Party Payments,471101,Purchase of Care,01-Nov-16,3200393-2341264,"2,659.71",FOUR SEASONS HEALTH CARE..
Adult and Health Services,Head of Adults,Third Party Payments,470101,Purchase of Care,01-Nov-16,3200393-2341265,"1,384.05",FOUR SEASONS HEALTH CARE..
Adult and Health Services,Head of Adults,Third Party Payments,470101,Purchase of Care,01-Nov-16,3200394-2340814,"2,059.56",FOUR SEASONS HEALTH CARE..
Adult and Health Services,Head of Adults,Third Party Payments,470101,Purchase of Care,01-Nov-16,3200394-2340815,"2,059.56",FOUR SEASONS HEALTH CARE..
Adult and Health Services,Head of Adults,Third Party Payments,474101,Purchase of Care,01-Nov-16,3200394-2340816,"2,156.96",FOUR SEASONS HEALTH CARE..
Adult and Health Services,Central/Other,Debtors,930024,Debtor-free nursing care,01-Nov-16,3200394-2340817,625,FOUR SEASONS HEALTH CARE..
Adult and Health Services,Head of Adults,Debtors,930135,Debtor Residential Care - IC+ Rehabilitation,01-Nov-16,3200394-2340819,985.46,FOUR SEASONS HEALTH CARE..
Adult and Health Services,Head of Adults,Third Party Payments,470101,Purchase of Care,01-Nov-16,3200394-2340820,"2,353.78",FOUR SEASONS HEALTH CARE..
Adult and Health Services,Head of Adults,Third Party Payments,470101,Purchase of Care,01-Nov-16,3200394-2340821,"2,059.56",FOUR SEASONS HEALTH CARE..
Adult and Health Services,Head of Adults,Third Party Payments,470101,Purchase of Care,01-Nov-16,3200394-2340822,"2,059.56",FOUR SEASONS HEALTH CARE..
Adult and Health Services,Head of Adults,Debtors,930135,Debtor Residential Care - IC+ Rehabilitation,01-Nov-16,3200394-2340823,"1,267.02",FOUR SEASONS HEALTH CARE..
Adult and Health Services,Head of Adults,Debtors,930135,Debtor Residential Care - IC+ Rehabilitation,01-Nov-16,3200394-2340824,"1,970.92",FOUR SEASONS HEALTH CARE..
Adult and Health Services,Head of Adults,Third Party Payments,474101,Purchase of Care,01-Nov-16,3200394-2340826,"2,156.96",FOUR SEASONS HEALTH CARE..
Adult and Health Services,Central/Other,Debtors,930024,Debtor-free nursing care,01-Nov-16,3200394-2340827,625,FOUR SEASONS HEALTH CARE..
Adult and Health Services,Head of Adults,Third Party Payments,470101,Purchase of Care,01-Nov-16,3200394-2340828,"2,059.56",FOUR SEASONS HEALTH CARE..
Adult and Health Services,Head of Adults,Third Party Payments,470101,Purchase of Care,01-Nov-16,3200394-2340829,"2,059.56",FOUR SEASONS HEALTH CARE..
Adult and Health Services,Head of Adults,Third Party Payments,474101,Purchase of Care,01-Nov-16,3200394-2340830,"2,156.96",FOUR SEASONS HEALTH CARE..
Adult and Health Services,Central/Other,Debtors,930024,Debtor-free nursing care,01-Nov-16,3200394-2340831,625,FOUR SEASONS HEALTH CARE..
Adult and Health Services,Head of Adults,Third Party Payments,470101,Purchase of Care,01-Nov-16,3200394-2340832,"2,059.56",FOUR SEASONS HEALTH CARE..
Adult and Health Services,Head of Adults,Third Party Payments,474101,Purchase of Care,01-Nov-16,3200394-2340833,"2,156.96",FOUR SEASONS HEALTH CARE..
Adult and Health Services,Central/Other,Debtors,930024,Debtor-free nursing care,01-Nov-16,3200394-2340834,625,FOUR SEASONS HEALTH CARE..
Adult and Health Services,Central/Other,Debtors,930024,Debtor-free nursing care,01-Nov-16,3200394-2340835,625,FOUR SEASONS HEALTH CARE..
Adult and Health Services,Head of Adults,Third Party Payments,474101,Purchase of Care,01-Nov-16,3200394-2340836,"2,156.96",FOUR SEASONS HEALTH CARE..
Adult and Health Services,Central/Other,Debtors,930024,Debtor-free nursing care,01-Nov-16,3200394-2340837,625,FOUR SEASONS HEALTH CARE..
Adult and Health Services,Head of Adults,Third Party Payments,474101,Purchase of Care,01-Nov-16,3200394-2340838,"2,156.96",FOUR SEASONS HEALTH CARE..
Adult and Health Services,Central/Other,Debtors,930024,Debtor-free nursing care,01-Nov-16,3200394-2340839,625,FOUR SEASONS HEALTH CARE..
Adult and Health Services,Head of Adults,Third Party Payments,470101,Purchase of Care,01-Nov-16,3200394-2340840,"2,059.56",FOUR SEASONS HEALTH CARE..
Adult and Health Services,Central/Other,Debtors,930024,Debtor-free nursing care,01-Nov-16,3200394-2340841,625,FOUR SEASONS HEALTH CARE..
Adult and Health Services,Head of Adults,Third Party Payments,470101,Purchase of Care,01-Nov-16,3200394-2340842,"2,059.56",FOUR SEASONS HEALTH CARE..
Adult and Health Services,Head of Adults,Third Party Payments,474101,Purchase of Care,01-Nov-16,3200394-2340843,"2,342.44",FOUR SEASONS HEALTH CARE..
Adult and Health Services,Central/Other,Debtors,930024,Debtor-free nursing care,01-Nov-16,3200394-2340844,625,FOUR SEASONS HEALTH CARE..
Adult and Health Services,Head of Adults,Debtors,930135,Debtor Residential Care - IC+ Rehabilitation,01-Nov-16,3200394-2343452,563.12,FOUR SEASONS HEALTH CARE..
Adult and Health Services,Head of Adults,Debtors,930135,Debtor Residential Care - IC+ Rehabilitation,01-Nov-16,3200394-2343454,985.46,FOUR SEASONS HEALTH CARE..
Adult and Health Services,Head of Adults,Third Party Payments,470102,Purchase of Care,01-Nov-16,3200394-2343455,"1,126.24",FOUR SEASONS HEALTH CARE..
Adult and Health Services,Head of Adults,Debtors,930135,Debtor Residential Care - IC+ Rehabilitation,01-Nov-16,3200394-2343683,563.12,FOUR SEASONS HEALTH CARE..
Adult and Health Services,Head of Adults,Third Party Payments,470101,Purchase of Care,01-Nov-16,3200394-2343686,"1,397.55",FOUR SEASONS HEALTH CARE..
Adult and Health Services,Head of Adults,Third Party Payments,470101,Purchase of Care,01-Nov-16,3200395-2342324,"1,904.12",FOUR SEASONS HEALTH CARE..
Adult and Health Services,Head of Adults,Third Party Payments,474101,Purchase of Care,01-Nov-16,3200396-2342582,"2,156.96",GAINFORD CARE HOMES LTD.
Adult and Health Services,Central/Other,Debtors,930024,Debtor-free nursing care,01-Nov-16,3200396-2342583,625,GAINFORD CARE HOMES LTD.
Adult and Health Services,Head of Adults,Third Party Payments,474101,Purchase of Care,01-Nov-16,3200396-2342584,"2,156.96",GAINFORD CARE HOMES LTD.
Adult and Health Services,Central/Other,Debtors,930024,Debtor-free nursing care,01-Nov-16,3200396-2342585,625,GAINFORD CARE HOMES LTD.
Adult and Health Services,Head of Adults,Third Party Payments,471101,Purchase of Care,01-Nov-16,3200396-2342586,"2,135.60",GAINFORD CARE HOMES LTD.
Adult and Health Services,Central/Other,Debtors,930024,Debtor-free nursing care,01-Nov-16,3200396-2342587,625,GAINFORD CARE HOMES LTD.
Adult and Health Services,Head of Adults,Third Party Payments,474101,Purchase of Care,01-Nov-16,3200396-2342588,"2,156.96",GAINFORD CARE HOMES LTD.
Adult and Health Services,Central/Other,Debtors,930024,Debtor-free nursing care,01-Nov-16,3200396-2342589,625,GAINFORD CARE HOMES LTD.
Adult and Health Services,Head of Adults,Third Party Payments,474101,Purchase of Care,01-Nov-16,3200396-2342590,"1,078.48",GAINFORD CARE HOMES LTD.
Adult and Health Services,Central/Other,Debtors,930024,Debtor-free nursing care,01-Nov-16,3200396-2342591,625,GAINFORD CARE HOMES LTD.
Adult and Health Services,Head of Adults,Third Party Payments,470101,Purchase of Care,01-Nov-16,3200396-2342592,"2,059.56",GAINFORD CARE HOMES LTD.
Adult and Health Services,Head of Adults,Third Party Payments,471101,Purchase of Care,01-Nov-16,3200396-2342593,"2,135.60",GAINFORD CARE HOMES LTD.
Adult and Health Services,Central/Other,Debtors,930024,Debtor-free nursing care,01-Nov-16,3200396-2342594,625,GAINFORD CARE HOMES LTD.
Adult and Health Services,Head of Adults,Third Party Payments,474101,Purchase of Care,01-Nov-16,3200396-2342595,"2,156.96",GAINFORD CARE HOMES LTD.
Adult and Health Services,Central/Other,Debtors,930024,Debtor-free nursing care,01-Nov-16,3200396-2342596,625,GAINFORD CARE HOMES LTD.
Adult and Health Services,Head of Adults,Third Party Payments,471101,Purchase of Care,01-Nov-16,3200396-2342597,"1,067.80",GAINFORD CARE HOMES LTD.
Adult and Health Services,Central/Other,Debtors,930024,Debtor-free nursing care,01-Nov-16,3200396-2342598,625,GAINFORD CARE HOMES LTD.
Adult and Health Services,Head of Adults,Third Party Payments,471101,Purchase of Care,01-Nov-16,3200396-2342599,"2,135.60",GAINFORD CARE HOMES LTD.
Adult and Health Services,Head of Adults,Third Party Payments,474101,Purchase of Care,01-Nov-16,3200396-2342600,"2,156.96",GAINFORD CARE HOMES LTD.
Adult and Health Services,Central/Other,Debtors,930024,Debtor-free nursing care,01-Nov-16,3200396-2342601,625,GAINFORD CARE HOMES LTD.
Adult and Health Services,Head of Adults,Third Party Payments,470101,Purchase of Care,01-Nov-16,3200396-2342602,"2,059.56",GAINFORD CARE HOMES LTD.
Adult and Health Services,Head of Adults,Third Party Payments,471101,Purchase of Care,01-Nov-16,3200396-2342603,"2,135.60",GAINFORD CARE HOMES LTD.
Adult and Health Services,Head of Adults,Third Party Payments,470101,Purchase of Care,01-Nov-16,3200396-2342604,"2,059.56",GAINFORD CARE HOMES LTD.
Adult and Health Services,Head of Adults,Third Party Payments,470101,Purchase of Care,01-Nov-16,3200396-2342605,"2,059.56",GAINFORD CARE HOMES LTD.
Adult and Health Services,Head of Adults,Third Party Payments,471101,Purchase of Care,01-Nov-16,3200396-2342606,"2,135.60",GAINFORD CARE HOMES LTD.
Adult and Health Services,Head of Adults,Third Party Payments,474101,Purchase of Care,01-Nov-16,3200396-2342607,"2,156.96",GAINFORD CARE HOMES LTD.
Adult and Health Services,Central/Other,Debtors,930024,Debtor-free nursing care,01-Nov-16,3200396-2342608,625,GAINFORD CARE HOMES LTD.
Adult and Health Services,Head of Adults,Third Party Payments,470101,Purchase of Care,01-Nov-16,3200396-2342610,"2,059.56",GAINFORD CARE HOMES LTD.
Adult and Health Services,Central/Other,Debtors,930024,Debtor-free nursing care,01-Nov-16,3200396-2342611,625,GAINFORD CARE HOMES LTD.
Adult and Health Services,Head of Adults,Third Party Payments,470101,Purchase of Care,01-Nov-16,3200396-2342612,"2,059.56",GAINFORD CARE HOMES LTD.
Adult and Health Services,Head of Adults,Third Party Payments,474101,Purchase of Care,01-Nov-16,3200396-2342613,"1,078.48",GAINFORD CARE HOMES LTD.
Adult and Health Services,Central/Other,Debtors,930024,Debtor-free nursing care,01-Nov-16,3200396-2342615,625,GAINFORD CARE HOMES LTD.
Adult and Health Services,Head of Adults,Third Party Payments,470101,Purchase of Care,01-Nov-16,3200396-2342616,"2,059.56",GAINFORD CARE HOMES LTD.
Adult and Health Services,Head of Adults,Third Party Payments,471101,Purchase of Care,01-Nov-16,3200396-2342617,"2,135.60",GAINFORD CARE HOMES LTD.
Adult and Health Services,Head of Adults,Third Party Payments,471101,Purchase of Care,01-Nov-16,3200396-2342618,"2,135.60",GAINFORD CARE HOMES LTD.
Adult and Health Services,Head of Adults,Third Party Payments,471101,Purchase of Care,01-Nov-16,3200396-2342619,"2,135.60",GAINFORD CARE HOMES LTD.
Adult and Health Services,Head of Adults,Third Party Payments,470101,Purchase of Care,01-Nov-16,3200396-2342620,"2,059.56",GAINFORD CARE HOMES LTD.
Adult and Health Services,Head of Adults,Third Party Payments,471101,Purchase of Care,01-Nov-16,3200396-2342621,"2,135.60",GAINFORD CARE HOMES LTD.
Adult and Health Services,Head of Adults,Third Party Payments,470101,Purchase of Care,01-Nov-16,3200396-2342622,"2,059.56",GAINFORD CARE HOMES LTD.
Adult and Health Services,Head of Adults,Third Party Payments,474101,Purchase of Care,01-Nov-16,3200396-2342623,"2,156.96",GAINFORD CARE HOMES LTD.
Adult and Health Services,Central/Other,Debtors,930024,Debtor-free nursing care,01-Nov-16,3200396-2342624,625,GAINFORD CARE HOMES LTD.
Adult and Health Services,Head of Adults,Third Party Payments,471101,Purchase of Care,01-Nov-16,3200396-2342625,"2,135.60",GAINFORD CARE HOMES LTD.
Adult and Health Services,Head of Adults,Third Party Payments,471101,Purchase of Care,01-Nov-16,3200396-2342626,"2,135.60",GAINFORD CARE HOMES LTD.
Adult and Health Services,Central/Other,Debtors,930024,Debtor-free nursing care,01-Nov-16,3200396-2342627,625,GAINFORD CARE HOMES LTD.
Adult and Health Services,Head of Adults,Third Party Payments,470101,Purchase of Care,01-Nov-16,3200396-2342628,"2,059.56",GAINFORD CARE HOMES LTD.
Adult and Health Services,Head of Adults,Third Party Payments,474101,Purchase of Care,01-Nov-16,3200396-2342629,"2,156.96",GAINFORD CARE HOMES LTD.
Adult and Health Services,Central/Other,Debtors,930024,Debtor-free nursing care,01-Nov-16,3200396-2342630,625,GAINFORD CARE HOMES LTD.
Adult and Health Services,Head of Adults,Third Party Payments,471101,Purchase of Care,01-Nov-16,3200397-2340359,"1,230.31",GAINFORD CARE HOMES LTD.
Adult and Health Services,Head of Adults,Third Party Payments,474101,Purchase of Care,01-Nov-16,3200397-2340360,"2,046.60",GAINFORD CARE HOMES LTD.
Adult and Health Services,Central/Other,Debtors,930024,Debtor-free nursing care,01-Nov-16,3200397-2340361,625,GAINFORD CARE HOMES LTD.
Adult and Health Services,Head of Adults,Third Party Payments,471101,Purchase of Care,01-Nov-16,3200397-2340362,"2,026.40",GAINFORD CARE HOMES LTD.
Adult and Health Services,Central/Other,Debtors,930024,Debtor-free nursing care,01-Nov-16,3200397-2340363,625,GAINFORD CARE HOMES LTD.
Adult and Health Services,Central/Other,Debtors,930024,Debtor-free nursing care,01-Nov-16,3200397-2340364,625,GAINFORD CARE HOMES LTD.
Adult and Health Services,Head of Adults,Third Party Payments,474101,Purchase of Care,01-Nov-16,3200397-2340365,"2,046.60",GAINFORD CARE HOMES LTD.
Adult and Health Services,Central/Other,Debtors,930024,Debtor-free nursing care,01-Nov-16,3200397-2340366,625,GAINFORD CARE HOMES LTD.
Adult and Health Services,Head of Adults,Third Party Payments,474101,Purchase of Care,01-Nov-16,3200397-2340369,804.02,GAINFORD CARE HOMES LTD.
Adult and Health Services,Head of Adults,Third Party Payments,474101,Purchase of Care,01-Nov-16,3200397-2340371,"2,046.60",GAINFORD CARE HOMES LTD.
Adult and Health Services,Central/Other,Debtors,930024,Debtor-free nursing care,01-Nov-16,3200397-2340372,625,GAINFORD CARE HOMES LTD.
Adult and Health Services,Central/Other,Debtors,930024,Debtor-free nursing care,01-Nov-16,3200397-2340373,625,GAINFORD CARE HOMES LTD.
Adult and Health Services,Head of Adults,Third Party Payments,471101,Purchase of Care,01-Nov-16,3200397-2340374,"2,026.40",GAINFORD CARE HOMES LTD.
Adult and Health Services,Head of Adults,Third Party Payments,474101,Purchase of Care,01-Nov-16,3200397-2340375,"2,046.60",GAINFORD CARE HOMES LTD.
Adult and Health Services,Central/Other,Debtors,930024,Debtor-free nursing care,01-Nov-16,3200397-2340376,625,GAINFORD CARE HOMES LTD.
Adult and Health Services,Head of Adults,Third Party Payments,474101,Purchase of Care,01-Nov-16,3200397-2340377,"1,023.28",GAINFORD CARE HOMES LTD.
Adult and Health Services,Head of Adults,Third Party Payments,474101,Purchase of Care,01-Nov-16,3200397-2340378,"14,274.44",GAINFORD CARE HOMES LTD.
Adult and Health Services,Head of Adults,Third Party Payments,471101,Purchase of Care,01-Nov-16,3200397-2340380,"2,026.40",GAINFORD CARE HOMES LTD.
Adult and Health Services,Central/Other,Debtors,930024,Debtor-free nursing care,01-Nov-16,3200397-2340381,625,GAINFORD CARE HOMES LTD.
Adult and Health Services,Head of Adults,Third Party Payments,471101,Purchase of Care,01-Nov-16,3200397-2340382,"2,533.00",GAINFORD CARE HOMES LTD.
